{"text_format":"1","workbook":"xlsx","n_sheets":4,"sheets":["Risikoregister","Risikoportfolio","Ganglinien","Planung"],"not_rendered":{"charts":5,"images":1,"macros":1,"external_links":0,"defined_names":7,"comments":0,"pivot_tables":0},"unopened":[],"bounds":{"document_bytes":16777216,"sheet_cells":100000,"rows_first":2000,"rows_last":500,"rows_between":2000,"halvings":0,"cell_chars":16384,"cell_head_chars":4096},"cells_cut":0,"cells_raw":0,"read":"whole","date_system":"1900"}

{"sheet":"Risikoregister","index":0,"n_rows":41,"n_cols":65,"rows_kept":41,"cut":false,"hidden":false,"merged":[[3,54,3,64],[3,43,3,52],[3,37,3,40],[3,0,3,8],[3,26,3,35],[3,10,3,18]]}
[null,null,"Identifikation",null,null,null,null,null,null,"qual. Ana.",null,null,null,null,null,null,null,null,null,"quant. Ana.",null,null,null,null,null,"Maßnahmen",null,null,null,null,null,null,null,null,null,null,"Controlling",null,null,null,null,"Portfolio",null,null,null,null,null,null,null,null,null,null,null,"Ganglinien"]
[]
["HILFE","Kurzbeschreibung als Schlagworte, die in der Regel in weiteren Dokumenten verwendet wird.",null,"Ereignis, durch das das Risiko herbeigeführt wird.","Erläuterung der Unsicherheit, bezogen auf die Bedrohung oder Chance","Die Konsequenzen, die sich für die Ziele des Projektes ergeben würden, wenn dieses Risiko eintreten würde.","Datum der Risiko-Identifizierung","Person, die das Risiko entdeckt hat","Verantwortlicher für das Risiko",null,"Beschreibung der Erwartung des Eintretens eines Risikos","Auswirkungen bzw. Folgen des Eintretens von Risikofällen bezogen auf die Kostenziele","Auswirkungen bzw. Folgen des Eintretens von Risikofällen bezogen auf die Terminziele","Auswirkungen bzw. Folgen des Eintretens von Risikofällen bezogen auf Umfangs- und Qualitätsziele","Frühindikatoren zeigen eine erhöhte Wahrscheinlichkeit eines Projektrisikos an, während eine Verhinderung seines Eintretens noch möglich ist","Gruppe gleichartiger oder ähnlicher Risiken bezüglich möglicher Ursachen, Eintritts-wahrscheinlichkeit, Auswirkungen oder sonstiger Kriterien","Beginn des risikobehafteten Zeitraumes","Ende des risikobehafteten Zeitraumes","Risikowert ergibt sich aus der Risikowahr-scheinlichkeit und der max. Auswirkung",null,"Beschreibung der Erwartung des Eintretens eines Risikos als konkreter Wert","Monetäre Bewertung des Schadens bei Eintritt des Risikos.","Terminliche Bewertung des Schadens bei Eintritt des Risikos.","Bewertung des Schadens auf Umfang und Qualität bei Eintritt des Risikos.","Berechnetes Produkt der Schadenshöhe und Wahrscheinlichkeit.",null,"Art und Weise des Umgangs mit Risiken und die Gestaltung der Risikobewältigung.","Beschreibung der Risikomaßnahme","Kosten zur Durchführung der Maßnahme.","Beschreibung der Erwartung des Eintretens eines Risikofalles oder einer Chance unter Berücksichtigung der Risiko-Maßnahme.","Auswirkungen bzw. Folgen des Eintretens von Risikofällen unter Berücksichtigung der Risiko-Maßnahme.",null,null,null,"Berechnetes Produkt der Punktewerte von Wahrscheinlichkeit und Auswirkung nach Maßnahme.","Berechnetes Produkt der Schadenshöhe und Wahrscheinlichkeit* (nach Maßnahme).",null,"Status der Arbeiten an der Risiko-Maßnahme","Termin, an dem die Maßnahme geplant beendet ist.","Status des Risikos.","freies Textfeld",null,"Numerischer Wert der Wahrscheinlichkeit. Bezieht sich auf das Risiko vor Maßnahmenumsetzung","Hilfswert der Wahrscheinlichkeit zur Darstellung im Risikoportfolio. Bezieht sich auf das Risiko vor Maßnahmenumsetzung","Numerischer Wert Gesamtauswirkung (maximaler Wert der Auswirkungen von Kosten, Termine und Leistung). Bezieht sich auf das Risiko vor Maßnahmenumsetzung",null,"Hilfswert für Berechnung",null,"Hilfswert der Auswirkung zur Darstellung im Risikoportfolio. Bezieht sich auf das Risiko vor Maßnahmenumsetzung","Hilfswert der Wahrscheinlichkeit zur Darstellung im Risikoportfolio. Bezieht sich auf das Risiko nach Maßnahmenumsetzung","Hilfswert der Auswirkung zur Darstellung im Risikoportfolio. Bezieht sich auf das Risiko nach Maßnahmenumsetzung","Numerischer Wert der Wahrscheinlichkeit in Abhängigkeit des aktuellen Standes der Maßnahmenumsetzung","Numerischer Wert der Auswirkung in Abhängigkeit des aktuellen Standes der Maßnahmenumsetzung"]
["Risikoidentifikation",null,null,null,null,null,null,null,null,null,"qualitative / semi-quantitative Risikoanalyse",null,null,null,null,null,null,null,null,null,null,"quantitative Analyse",null,null,null,null,"Risikobewältigungsplanung",null,null,null,null,null,null,null,null,null,null,"Risikoüberwachung und -steuerung",null,null,null,null,null,"Risikoportfolio"]
["ID","Risiko-Kurzbeschreibung","1","Risiko-Ursache","Risiko-Ereignis","Risiko-Auswirkung","Identifiziert am","Risiko-Entdecker","Risiko-Owner","2","Wahrscheinlichkeit qual. (vor Maßnahme)","Auswirkung Kosten qual. (vor Maßnahme)","Auswirkung Termine  qual.  (vor Maßnahme)","Auswirkung Leistung  qual.  (vor Maßnahme)","Frühwarnindikator","Risiko-Kategorie","Zeitraum von","Zeitraum bis","Risikowert (in Punkten)","3","Wahrscheinlichkeit quant. (vor Maßnahme)","Auswirkung Kosten quant.","Auswirkung Termine  quant.","Auswirkung Leistung  quant.","Risikowert\n(in Kosten)","4","Risikostrategie","Risiko-Maßnahme","Maßnahmen-Kosten","Wahrscheinlichkeit* (nach Maßnahme)","Auswirkung Kosten (nach Maßnahme)","Auswirkung Termine (nach Maßnahme)","Auswirkung Leistung (nach Maßnahme)","Maßnahmen-Owner","Risikowert* (in Punkten)","Risikowert*\n(in Kosten)","5","Maßnahmen-Status","Endtermin","Risikostatus","Bemerkung","6","W. num (vor Maßnahme)","W. num Portfolio (vor Maßnahme)","A. num (vor Maßnahme)","A. num (nach Maßnahme)","A. num Portfolio Hilfswert  (vor Maßnahme)","A. num Portfolio Hilfswert  (nach Maßnahme)","A. num Portfolio (vor Maßnahme)","W. num (nach Maßnahme)","A. num (nach Maßnahme)2","W. num (aktuell)","A. num (aktuell)","7","Zeitraum von num","Zeitraum bis num","Risikowert Zeitraum 1","Risikowert Zeitraum 2","Risikowert Zeitraum 3","Risikowert Zeitraum 4","Risikowert Zeitraum 5","Risikowert Zeitraum 6","Risikowert Zeitraum 7","Risikowert Zeitraum 8","Risikowert Zeitraum 9"]
[1,"Wetterbedinge Unfallgefahr",null,"Bodenfrost und Nebel ","Auf der Fahrt passiert ein Unfall ","Auto wird beschädigt.","2014-08-08",null,"Herr Müller ",null,"wahrscheinlich (65 - 90%)","fatal","fatal",null,"Temperatur sinkt auf weniger als 3 Grad. Nebel zieht auf",null,"Fahrt Bonn - Dortmund",null,{"$f":"IFERROR(Risikoregister[[#This Row],[W. num (vor Maßnahme)]]*Risikoregister[[#This Row],[A. num (vor Maßnahme)]],#N/A)","v":72},null,0.75,11800,"Familienfeier wird verpasst",null,{"$f":"IFERROR(Risikoregister[[#This Row],[Wahrscheinlichkeit quant. (vor Maßnahme)]]*Risikoregister[[#This Row],[Auswirkung Kosten quant.]],#N/A)","v":8850},null,"Bedrohung: vermindern","Vorsichtige Fahrweise (präventiv), Winterreifen (präventiv), Vollkaskoversicherung (korrektiv), Beitritt in ADAC (korrektiv)",350,"kaum denkbar (< 10%)","gering","gering",null,"Herr Müller ",{"$f":"IFERROR(VLOOKUP(Risikoregister[[#This Row],[Wahrscheinlichkeit* (nach Maßnahme)]],Tab_Wahrscheinlichkeit[],7,0)*Risikoregister[[#This Row],[A. num (nach Maßnahme)]],#N/A)","v":2},{"$f":"IFERROR(VLOOKUP(Risikoregister[[#This Row],[Wahrscheinlichkeit* (nach Maßnahme)]],Tab_Wahrscheinlichkeit[],6,0)*Risikoregister[[#This Row],[Auswirkung Kosten quant.]],#N/A)","v":590},null,"abgeschlossen","2017-10-06","geschlossen","Mittlerweile ist es Mittag und die Temperaturen liegen über 10 Grad.",null,{"$f":"IFERROR(VLOOKUP(Risikoregister[[#This Row],[Wahrscheinlichkeit qual. (vor Maßnahme)]],Tab_Wahrscheinlichkeit[],7,FALSE),#N/A)","v":8},{"$f":"IFERROR(VLOOKUP(Risikoregister[[#This Row],[Wahrscheinlichkeit qual. (vor Maßnahme)]],Tab_Wahrscheinlichkeit[],5,FALSE)+Versatz_Portfolio,#N/A)","v":4.4203450229599568},{"$f":"MAX(\n  IF(ISBLANK(Risikoregister[[#This Row],[Auswirkung Kosten qual. (vor Maßnahme)]]),0,\n    VLOOKUP(Risikoregister[[#This Row],[Auswirkung Kosten qual. (vor Maßnahme)]],Tab_Auswirkung[],6,FALSE)\n  ),\n  IF(ISBLANK(Risikoregister[[#This Row],[Auswirkung Termine  qual.  (vor Maßnahme)]]),0,\n    VLOOKUP(Risikoregister[[#This Row],[Auswirkung Termine  qual.  (vor Maßnahme)]],Tab_Auswirkung[],6,FALSE)\n  ),\n  IF(ISBLANK(Risikoregister[[#This Row],[Auswirkung Leistung  qual.  (vor Maßnahme)]]),0,\n    VLOOKUP(Risikoregister[[#This Row],[Auswirkung Leistung  qual.  (vor Maßnahme)]],Tab_Auswirkung[],6,FALSE)\n  ),\n)","v":9},{"$f":"MAX(\n  IF(ISBLANK(Risikoregister[[#This Row],[Auswirkung Kosten (nach Maßnahme)]]),0,\n    VLOOKUP(Risikoregister[[#This Row],[Auswirkung Kosten (nach Maßnahme)]],Tab_Auswirkung[],6,FALSE)\n  ),\n  IF(ISBLANK(Risikoregister[[#This Row],[Auswirkung Termine (nach Maßnahme)]]),0,\n    VLOOKUP(Risikoregister[[#This Row],[Auswirkung Termine (nach Maßnahme)]],Tab_Auswirkung[],6,FALSE)\n  ),\n  IF(ISBLANK(Risikoregister[[#This Row],[Auswirkung Leistung (nach Maßnahme)]]),0,\n    VLOOKUP(Risikoregister[[#This Row],[Auswirkung Leistung (nach Maßnahme)]],Tab_Auswirkung[],6,FALSE)\n  ),\n)","v":2},{"$f":"MAX(\n  IF(ISBLANK(Risikoregister[[#This Row],[Auswirkung Kosten qual. (vor Maßnahme)]]),0,\n    VLOOKUP(Risikoregister[[#This Row],[Auswirkung Kosten qual. (vor Maßnahme)]],Tab_Auswirkung[],5,FALSE)\n  ),\n  IF(ISBLANK(Risikoregister[[#This Row],[Auswirkung Termine  qual.  (vor Maßnahme)]]),0,\n    VLOOKUP(Risikoregister[[#This Row],[Auswirkung Termine  qual.  (vor Maßnahme)]],Tab_Auswirkung[],5,FALSE)\n  ),\n  IF(ISBLANK(Risikoregister[[#This Row],[Auswirkung Leistung  qual.  (vor Maßnahme)]]),0,\n    VLOOKUP(Risikoregister[[#This Row],[Auswirkung Leistung  qual.  (vor Maßnahme)]],Tab_Auswirkung[],5,FALSE)\n  ),\n)","v":5.5},{"$f":"MAX(\n  IF(ISBLANK(Risikoregister[[#This Row],[Auswirkung Kosten (nach Maßnahme)]]),0,\n    VLOOKUP(Risikoregister[[#This Row],[Auswirkung Kosten (nach Maßnahme)]],Tab_Auswirkung[],5,FALSE)\n  ),\n  IF(ISBLANK(Risikoregister[[#This Row],[Auswirkung Termine (nach Maßnahme)]]),0,\n    VLOOKUP(Risikoregister[[#This Row],[Auswirkung Termine (nach Maßnahme)]],Tab_Auswirkung[],5,FALSE)\n  ),\n  IF(ISBLANK(Risikoregister[[#This Row],[Auswirkung Leistung (nach Maßnahme)]]),0,\n    VLOOKUP(Risikoregister[[#This Row],[Auswirkung Leistung (nach Maßnahme)]],Tab_Auswirkung[],5,FALSE)\n  ),\n)","v":1.5},{"$f":"IF(Risikoregister[[#This Row],[A. num Portfolio Hilfswert  (vor Maßnahme)]]=0,#N/A,Risikoregister[[#This Row],[A. num Portfolio Hilfswert  (vor Maßnahme)]]+Versatz_Portfolio)","v":5.411567214561062},{"$f":"IFERROR(VLOOKUP(Risikoregister[[#This Row],[Wahrscheinlichkeit* (nach Maßnahme)]],Tab_Wahrscheinlichkeit[],5,FALSE)+Versatz_Portfolio,#N/A)","v":0.56573732366365259},{"$f":"IF(Risikoregister[[#This Row],[A. num Portfolio Hilfswert  (nach Maßnahme)]]=0,#N/A,Risikoregister[[#This Row],[A. num Portfolio Hilfswert  (nach Maßnahme)]]+Versatz_Portfolio)","v":1.3762841653186757},{"$f":"IF(Risikoregister[[#This Row],[Maßnahmen-Status]]=Planung!$W$9,Risikoregister[[#This Row],[W. num (nach Maßnahme)]],Risikoregister[[#This Row],[W. num Portfolio (vor Maßnahme)]])","v":0.56573732366365259},{"$f":"IF(Risikoregister[[#This Row],[Maßnahmen-Status]]=Planung!$W$9,Risikoregister[[#This Row],[A. num (nach Maßnahme)2]],Risikoregister[[#This Row],[A. num Portfolio (vor Maßnahme)]])","v":1.3762841653186757},null,{"$f":"VLOOKUP(Risikoregister[[#This Row],[Zeitraum von]],Zeiträume[],2,FALSE)","v":1},{"$f":"IF(ISBLANK(Risikoregister[[#This Row],[Zeitraum bis]]),Risikoregister[[#This Row],[Zeitraum von num]],VLOOKUP(Risikoregister[[#This Row],[Zeitraum bis]],Zeiträume[],2,FALSE))","v":1},{"$f":"IFERROR(IF(AND(Risikoregister[[#This Row],[Zeitraum von num]]<=1,1<=Risikoregister[[#This Row],[Zeitraum bis num]]),Risikoregister[[#This Row],[Risikowert (in Punkten)]],0),\"\")","v":72},{"$f":"IFERROR(IF(AND(Risikoregister[[#This Row],[Zeitraum von num]]<=2,2<=Risikoregister[[#This Row],[Zeitraum bis num]]),Risikoregister[[#This Row],[Risikowert (in Punkten)]],0),\"\")","v":0},{"$f":"IFERROR(IF(AND(Risikoregister[[#This Row],[Zeitraum von num]]<=3,3<=Risikoregister[[#This Row],[Zeitraum bis num]]),Risikoregister[[#This Row],[Risikowert (in Punkten)]],0),\"\")","v":0},{"$f":"IFERROR(IF(AND(Risikoregister[[#This Row],[Zeitraum von num]]<=4,4<=Risikoregister[[#This Row],[Zeitraum bis num]]),Risikoregister[[#This Row],[Risikowert (in Punkten)]],0),\"\")","v":0},{"$f":"IFERROR(IF(AND(Risikoregister[[#This Row],[Zeitraum von num]]<=5,5<=Risikoregister[[#This Row],[Zeitraum bis num]]),Risikoregister[[#This Row],[Risikowert (in Punkten)]],0),\"\")","v":0},{"$f":"IFERROR(IF(AND(Risikoregister[[#This Row],[Zeitraum von num]]<=6,6<=Risikoregister[[#This Row],[Zeitraum bis num]]),Risikoregister[[#This Row],[Risikowert (in Punkten)]],0),\"\")","v":0},{"$f":"IFERROR(IF(AND(Risikoregister[[#This Row],[Zeitraum von num]]<=7,7<=Risikoregister[[#This Row],[Zeitraum bis num]]),Risikoregister[[#This Row],[Risikowert (in Punkten)]],0),\"\")","v":0},{"$f":"IFERROR(IF(AND(Risikoregister[[#This Row],[Zeitraum von num]]<=8,8<=Risikoregister[[#This Row],[Zeitraum bis num]]),Risikoregister[[#This Row],[Risikowert (in Punkten)]],0),\"\")","v":0},{"$f":"IFERROR(IF(AND(Risikoregister[[#This Row],[Zeitraum von num]]<=9,9<=Risikoregister[[#This Row],[Zeitraum bis num]]),Risikoregister[[#This Row],[Risikowert (in Punkten)]],0),\"\")","v":0}]
[2,"Strafzettel durch zu schnelles Fahren",null,"Viele Baustellen und Geschwindigkeitsbegrenzungen","Wir werden „geblitzt“","Wir bekommen einen Strafzettel","2014-08-08",null,"Herr Müller ",null,"kaum denkbar (< 10%)","gering",null,null,"Geschwindigkeit wird oft überschritten",null,"Fahrt Bonn - Dortmund","Fahrt Magdeburg - Berlin",{"$f":"IFERROR(Risikoregister[[#This Row],[W. num (vor Maßnahme)]]*Risikoregister[[#This Row],[A. num (vor Maßnahme)]],#N/A)","v":2},null,0.05,100,null,null,{"$f":"IFERROR(Risikoregister[[#This Row],[Wahrscheinlichkeit quant. (vor Maßnahme)]]*Risikoregister[[#This Row],[Auswirkung Kosten quant.]],#N/A)","v":5},null,"Bedrohung: akzeptieren","Das Risiko ist aufgrund des Tempomaten gering und wird getragen. Dennoch genügend Bargeld einstecken.",0,"kaum denkbar (< 10%)","gering",null,null,null,{"$f":"IFERROR(VLOOKUP(Risikoregister[[#This Row],[Wahrscheinlichkeit* (nach Maßnahme)]],Tab_Wahrscheinlichkeit[],7,0)*Risikoregister[[#This Row],[A. num (nach Maßnahme)]],#N/A)","v":2},{"$f":"IFERROR(VLOOKUP(Risikoregister[[#This Row],[Wahrscheinlichkeit* (nach Maßnahme)]],Tab_Wahrscheinlichkeit[],6,0)*Risikoregister[[#This Row],[Auswirkung Kosten quant.]],#N/A)","v":5},null,null,null,"offen",null,null,{"$f":"IFERROR(VLOOKUP(Risikoregister[[#This Row],[Wahrscheinlichkeit qual. (vor Maßnahme)]],Tab_Wahrscheinlichkeit[],7,FALSE),#N/A)","v":1},{"$f":"IFERROR(VLOOKUP(Risikoregister[[#This Row],[Wahrscheinlichkeit qual. (vor Maßnahme)]],Tab_Wahrscheinlichkeit[],5,FALSE)+Versatz_Portfolio,#N/A)","v":0.47384999841889042},{"$f":"MAX(\n  IF(ISBLANK(Risikoregister[[#This Row],[Auswirkung Kosten qual. (vor Maßnahme)]]),0,\n    VLOOKUP(Risikoregister[[#This Row],[Auswirkung Kosten qual. (vor Maßnahme)]],Tab_Auswirkung[],6,FALSE)\n  ),\n  IF(ISBLANK(Risikoregister[[#This Row],[Auswirkung Termine  qual.  (vor Maßnahme)]]),0,\n    VLOOKUP(Risikoregister[[#This Row],[Auswirkung Termine  qual.  (vor Maßnahme)]],Tab_Auswirkung[],6,FALSE)\n  ),\n  IF(ISBLANK(Risikoregister[[#This Row],[Auswirkung Leistung  qual.  (vor Maßnahme)]]),0,\n    VLOOKUP(Risikoregister[[#This Row],[Auswirkung Leistung  qual.  (vor Maßnahme)]],Tab_Auswirkung[],6,FALSE)\n  ),\n)","v":2},{"$f":"MAX(\n  IF(ISBLANK(Risikoregister[[#This Row],[Auswirkung Kosten (nach Maßnahme)]]),0,\n    VLOOKUP(Risikoregister[[#This Row],[Auswirkung Kosten (nach Maßnahme)]],Tab_Auswirkung[],6,FALSE)\n  ),\n  IF(ISBLANK(Risikoregister[[#This Row],[Auswirkung Termine (nach Maßnahme)]]),0,\n    VLOOKUP(Risikoregister[[#This Row],[Auswirkung Termine (nach Maßnahme)]],Tab_Auswirkung[],6,FALSE)\n  ),\n  IF(ISBLANK(Risikoregister[[#This Row],[Auswirkung Leistung (nach Maßnahme)]]),0,\n    VLOOKUP(Risikoregister[[#This Row],[Auswirkung Leistung (nach Maßnahme)]],Tab_Auswirkung[],6,FALSE)\n  ),\n)","v":2},{"$f":"MAX(\n  IF(ISBLANK(Risikoregister[[#This Row],[Auswirkung Kosten qual. (vor Maßnahme)]]),0,\n    VLOOKUP(Risikoregister[[#This Row],[Auswirkung Kosten qual. (vor Maßnahme)]],Tab_Auswirkung[],5,FALSE)\n  ),\n  IF(ISBLANK(Risikoregister[[#This Row],[Auswirkung Termine  qual.  (vor Maßnahme)]]),0,\n    VLOOKUP(Risikoregister[[#This Row],[Auswirkung Termine  qual.  (vor Maßnahme)]],Tab_Auswirkung[],5,FALSE)\n  ),\n  IF(ISBLANK(Risikoregister[[#This Row],[Auswirkung Leistung  qual.  (vor Maßnahme)]]),0,\n    VLOOKUP(Risikoregister[[#This Row],[Auswirkung Leistung  qual.  (vor Maßnahme)]],Tab_Auswirkung[],5,FALSE)\n  ),\n)","v":1.5},{"$f":"MAX(\n  IF(ISBLANK(Risikoregister[[#This Row],[Auswirkung Kosten (nach Maßnahme)]]),0,\n    VLOOKUP(Risikoregister[[#This Row],[Auswirkung Kosten (nach Maßnahme)]],Tab_Auswirkung[],5,FALSE)\n  ),\n  IF(ISBLANK(Risikoregister[[#This Row],[Auswirkung Termine (nach Maßnahme)]]),0,\n    VLOOKUP(Risikoregister[[#This Row],[Auswirkung Termine (nach Maßnahme)]],Tab_Auswirkung[],5,FALSE)\n  ),\n  IF(ISBLANK(Risikoregister[[#This Row],[Auswirkung Leistung (nach Maßnahme)]]),0,\n    VLOOKUP(Risikoregister[[#This Row],[Auswirkung Leistung (nach Maßnahme)]],Tab_Auswirkung[],5,FALSE)\n  ),\n)","v":1.5},{"$f":"IF(Risikoregister[[#This Row],[A. num Portfolio Hilfswert  (vor Maßnahme)]]=0,#N/A,Risikoregister[[#This Row],[A. num Portfolio Hilfswert  (vor Maßnahme)]]+Versatz_Portfolio)","v":1.591153629280214},{"$f":"IFERROR(VLOOKUP(Risikoregister[[#This Row],[Wahrscheinlichkeit* (nach Maßnahme)]],Tab_Wahrscheinlichkeit[],5,FALSE)+Versatz_Portfolio,#N/A)","v":0.40915390658230144},{"$f":"IF(Risikoregister[[#This Row],[A. num Portfolio Hilfswert  (nach Maßnahme)]]=0,#N/A,Risikoregister[[#This Row],[A. num Portfolio Hilfswert  (nach Maßnahme)]]+Versatz_Portfolio)","v":1.5017477619229005},{"$f":"IF(Risikoregister[[#This Row],[Maßnahmen-Status]]=Planung!$W$9,Risikoregister[[#This Row],[W. num (nach Maßnahme)]],Risikoregister[[#This Row],[W. num Portfolio (vor Maßnahme)]])","v":0.47384999841889042},{"$f":"IF(Risikoregister[[#This Row],[Maßnahmen-Status]]=Planung!$W$9,Risikoregister[[#This Row],[A. num (nach Maßnahme)2]],Risikoregister[[#This Row],[A. num Portfolio (vor Maßnahme)]])","v":1.591153629280214},null,{"$f":"VLOOKUP(Risikoregister[[#This Row],[Zeitraum von]],Zeiträume[],2,FALSE)","v":1},{"$f":"IF(ISBLANK(Risikoregister[[#This Row],[Zeitraum bis]]),Risikoregister[[#This Row],[Zeitraum von num]],VLOOKUP(Risikoregister[[#This Row],[Zeitraum bis]],Zeiträume[],2,FALSE))","v":5},{"$f":"IFERROR(IF(AND(Risikoregister[[#This Row],[Zeitraum von num]]<=1,1<=Risikoregister[[#This Row],[Zeitraum bis num]]),Risikoregister[[#This Row],[Risikowert (in Punkten)]],0),\"\")","v":2},{"$f":"IFERROR(IF(AND(Risikoregister[[#This Row],[Zeitraum von num]]<=2,2<=Risikoregister[[#This Row],[Zeitraum bis num]]),Risikoregister[[#This Row],[Risikowert (in Punkten)]],0),\"\")","v":2},{"$f":"IFERROR(IF(AND(Risikoregister[[#This Row],[Zeitraum von num]]<=3,3<=Risikoregister[[#This Row],[Zeitraum bis num]]),Risikoregister[[#This Row],[Risikowert (in Punkten)]],0),\"\")","v":2},{"$f":"IFERROR(IF(AND(Risikoregister[[#This Row],[Zeitraum von num]]<=4,4<=Risikoregister[[#This Row],[Zeitraum bis num]]),Risikoregister[[#This Row],[Risikowert (in Punkten)]],0),\"\")","v":2},{"$f":"IFERROR(IF(AND(Risikoregister[[#This Row],[Zeitraum von num]]<=5,5<=Risikoregister[[#This Row],[Zeitraum bis num]]),Risikoregister[[#This Row],[Risikowert (in Punkten)]],0),\"\")","v":2},{"$f":"IFERROR(IF(AND(Risikoregister[[#This Row],[Zeitraum von num]]<=6,6<=Risikoregister[[#This Row],[Zeitraum bis num]]),Risikoregister[[#This Row],[Risikowert (in Punkten)]],0),\"\")","v":0},{"$f":"IFERROR(IF(AND(Risikoregister[[#This Row],[Zeitraum von num]]<=7,7<=Risikoregister[[#This Row],[Zeitraum bis num]]),Risikoregister[[#This Row],[Risikowert (in Punkten)]],0),\"\")","v":0},{"$f":"IFERROR(IF(AND(Risikoregister[[#This Row],[Zeitraum von num]]<=8,8<=Risikoregister[[#This Row],[Zeitraum bis num]]),Risikoregister[[#This Row],[Risikowert (in Punkten)]],0),\"\")","v":0},{"$f":"IFERROR(IF(AND(Risikoregister[[#This Row],[Zeitraum von num]]<=9,9<=Risikoregister[[#This Row],[Zeitraum bis num]]),Risikoregister[[#This Row],[Risikowert (in Punkten)]],0),\"\")","v":0}]
[3,"Autoschaden",null,"Schaden am Auto","Auto bleibt liegen","Wir erscheinen nicht rechtzeitig zur Feier in Berlin.","2014-08-08",null,"Herr Müller ",null,"unwahrscheinlich (35 - 50%)",null,"fatal",null,null,null,"Fahrt Bonn - Dortmund","Fahrt Magdeburg - Berlin",{"$f":"IFERROR(Risikoregister[[#This Row],[W. num (vor Maßnahme)]]*Risikoregister[[#This Row],[A. num (vor Maßnahme)]],#N/A)","v":36},null,0.35,null,"Familienfeier wird verpasst",null,{"$f":"IFERROR(Risikoregister[[#This Row],[Wahrscheinlichkeit quant. (vor Maßnahme)]]*Risikoregister[[#This Row],[Auswirkung Kosten quant.]],#N/A)","v":0},null,"Bedrohung: vermindern","Das Auto vor der Fahrt in der Werkstatt warten (präventiv). Außerdem ADAC Versicherung abschließen (korrektiv)",250,"kaum denkbar (< 10%)",null,"erheblich",null,"Herr Müller ",{"$f":"IFERROR(VLOOKUP(Risikoregister[[#This Row],[Wahrscheinlichkeit* (nach Maßnahme)]],Tab_Wahrscheinlichkeit[],7,0)*Risikoregister[[#This Row],[A. num (nach Maßnahme)]],#N/A)","v":6},{"$f":"IFERROR(VLOOKUP(Risikoregister[[#This Row],[Wahrscheinlichkeit* (nach Maßnahme)]],Tab_Wahrscheinlichkeit[],6,0)*Risikoregister[[#This Row],[Auswirkung Kosten quant.]],#N/A)","v":0},null,"abgeschlossen",null,"offen",null,null,{"$f":"IFERROR(VLOOKUP(Risikoregister[[#This Row],[Wahrscheinlichkeit qual. (vor Maßnahme)]],Tab_Wahrscheinlichkeit[],7,FALSE),#N/A)","v":4},{"$f":"IFERROR(VLOOKUP(Risikoregister[[#This Row],[Wahrscheinlichkeit qual. (vor Maßnahme)]],Tab_Wahrscheinlichkeit[],5,FALSE)+Versatz_Portfolio,#N/A)","v":2.4428124360268675},{"$f":"MAX(\n  IF(ISBLANK(Risikoregister[[#This Row],[Auswirkung Kosten qual. (vor Maßnahme)]]),0,\n    VLOOKUP(Risikoregister[[#This Row],[Auswirkung Kosten qual. (vor Maßnahme)]],Tab_Auswirkung[],6,FALSE)\n  ),\n  IF(ISBLANK(Risikoregister[[#This Row],[Auswirkung Termine  qual.  (vor Maßnahme)]]),0,\n    VLOOKUP(Risikoregister[[#This Row],[Auswirkung Termine  qual.  (vor Maßnahme)]],Tab_Auswirkung[],6,FALSE)\n  ),\n  IF(ISBLANK(Risikoregister[[#This Row],[Auswirkung Leistung  qual.  (vor Maßnahme)]]),0,\n    VLOOKUP(Risikoregister[[#This Row],[Auswirkung Leistung  qual.  (vor Maßnahme)]],Tab_Auswirkung[],6,FALSE)\n  ),\n)","v":9},{"$f":"MAX(\n  IF(ISBLANK(Risikoregister[[#This Row],[Auswirkung Kosten (nach Maßnahme)]]),0,\n    VLOOKUP(Risikoregister[[#This Row],[Auswirkung Kosten (nach Maßnahme)]],Tab_Auswirkung[],6,FALSE)\n  ),\n  IF(ISBLANK(Risikoregister[[#This Row],[Auswirkung Termine (nach Maßnahme)]]),0,\n    VLOOKUP(Risikoregister[[#This Row],[Auswirkung Termine (nach Maßnahme)]],Tab_Auswirkung[],6,FALSE)\n  ),\n  IF(ISBLANK(Risikoregister[[#This Row],[Auswirkung Leistung (nach Maßnahme)]]),0,\n    VLOOKUP(Risikoregister[[#This Row],[Auswirkung Leistung (nach Maßnahme)]],Tab_Auswirkung[],6,FALSE)\n  ),\n)","v":6},{"$f":"MAX(\n  IF(ISBLANK(Risikoregister[[#This Row],[Auswirkung Kosten qual. (vor Maßnahme)]]),0,\n    VLOOKUP(Risikoregister[[#This Row],[Auswirkung Kosten qual. (vor Maßnahme)]],Tab_Auswirkung[],5,FALSE)\n  ),\n  IF(ISBLANK(Risikoregister[[#This Row],[Auswirkung Termine  qual.  (vor Maßnahme)]]),0,\n    VLOOKUP(Risikoregister[[#This Row],[Auswirkung Termine  qual.  (vor Maßnahme)]],Tab_Auswirkung[],5,FALSE)\n  ),\n  IF(ISBLANK(Risikoregister[[#This Row],[Auswirkung Leistung  qual.  (vor Maßnahme)]]),0,\n    VLOOKUP(Risikoregister[[#This Row],[Auswirkung Leistung  qual.  (vor Maßnahme)]],Tab_Auswirkung[],5,FALSE)\n  ),\n)","v":5.5},{"$f":"MAX(\n  IF(ISBLANK(Risikoregister[[#This Row],[Auswirkung Kosten (nach Maßnahme)]]),0,\n    VLOOKUP(Risikoregister[[#This Row],[Auswirkung Kosten (nach Maßnahme)]],Tab_Auswirkung[],5,FALSE)\n  ),\n  IF(ISBLANK(Risikoregister[[#This Row],[Auswirkung Termine (nach Maßnahme)]]),0,\n    VLOOKUP(Risikoregister[[#This Row],[Auswirkung Termine (nach Maßnahme)]],Tab_Auswirkung[],5,FALSE)\n  ),\n  IF(ISBLANK(Risikoregister[[#This Row],[Auswirkung Leistung (nach Maßnahme)]]),0,\n    VLOOKUP(Risikoregister[[#This Row],[Auswirkung Leistung (nach Maßnahme)]],Tab_Auswirkung[],5,FALSE)\n  ),\n)","v":3.5},{"$f":"IF(Risikoregister[[#This Row],[A. num Portfolio Hilfswert  (vor Maßnahme)]]=0,#N/A,Risikoregister[[#This Row],[A. num Portfolio Hilfswert  (vor Maßnahme)]]+Versatz_Portfolio)","v":5.4246752320125049},{"$f":"IFERROR(VLOOKUP(Risikoregister[[#This Row],[Wahrscheinlichkeit* (nach Maßnahme)]],Tab_Wahrscheinlichkeit[],5,FALSE)+Versatz_Portfolio,#N/A)","v":0.50934321657932258},{"$f":"IF(Risikoregister[[#This Row],[A. num Portfolio Hilfswert  (nach Maßnahme)]]=0,#N/A,Risikoregister[[#This Row],[A. num Portfolio Hilfswert  (nach Maßnahme)]]+Versatz_Portfolio)","v":3.5827428062144224},{"$f":"IF(Risikoregister[[#This Row],[Maßnahmen-Status]]=Planung!$W$9,Risikoregister[[#This Row],[W. num (nach Maßnahme)]],Risikoregister[[#This Row],[W. num Portfolio (vor Maßnahme)]])","v":0.50934321657932258},{"$f":"IF(Risikoregister[[#This Row],[Maßnahmen-Status]]=Planung!$W$9,Risikoregister[[#This Row],[A. num (nach Maßnahme)2]],Risikoregister[[#This Row],[A. num Portfolio (vor Maßnahme)]])","v":3.5827428062144224},null,{"$f":"VLOOKUP(Risikoregister[[#This Row],[Zeitraum von]],Zeiträume[],2,FALSE)","v":1},{"$f":"IF(ISBLANK(Risikoregister[[#This Row],[Zeitraum bis]]),Risikoregister[[#This Row],[Zeitraum von num]],VLOOKUP(Risikoregister[[#This Row],[Zeitraum bis]],Zeiträume[],2,FALSE))","v":5},{"$f":"IFERROR(IF(AND(Risikoregister[[#This Row],[Zeitraum von num]]<=1,1<=Risikoregister[[#This Row],[Zeitraum bis num]]),Risikoregister[[#This Row],[Risikowert (in Punkten)]],0),\"\")","v":36},{"$f":"IFERROR(IF(AND(Risikoregister[[#This Row],[Zeitraum von num]]<=2,2<=Risikoregister[[#This Row],[Zeitraum bis num]]),Risikoregister[[#This Row],[Risikowert (in Punkten)]],0),\"\")","v":36},{"$f":"IFERROR(IF(AND(Risikoregister[[#This Row],[Zeitraum von num]]<=3,3<=Risikoregister[[#This Row],[Zeitraum bis num]]),Risikoregister[[#This Row],[Risikowert (in Punkten)]],0),\"\")","v":36},{"$f":"IFERROR(IF(AND(Risikoregister[[#This Row],[Zeitraum von num]]<=4,4<=Risikoregister[[#This Row],[Zeitraum bis num]]),Risikoregister[[#This Row],[Risikowert (in Punkten)]],0),\"\")","v":36},{"$f":"IFERROR(IF(AND(Risikoregister[[#This Row],[Zeitraum von num]]<=5,5<=Risikoregister[[#This Row],[Zeitraum bis num]]),Risikoregister[[#This Row],[Risikowert (in Punkten)]],0),\"\")","v":36},{"$f":"IFERROR(IF(AND(Risikoregister[[#This Row],[Zeitraum von num]]<=6,6<=Risikoregister[[#This Row],[Zeitraum bis num]]),Risikoregister[[#This Row],[Risikowert (in Punkten)]],0),\"\")","v":0},{"$f":"IFERROR(IF(AND(Risikoregister[[#This Row],[Zeitraum von num]]<=7,7<=Risikoregister[[#This Row],[Zeitraum bis num]]),Risikoregister[[#This Row],[Risikowert (in Punkten)]],0),\"\")","v":0},{"$f":"IFERROR(IF(AND(Risikoregister[[#This Row],[Zeitraum von num]]<=8,8<=Risikoregister[[#This Row],[Zeitraum bis num]]),Risikoregister[[#This Row],[Risikowert (in Punkten)]],0),\"\")","v":0},{"$f":"IFERROR(IF(AND(Risikoregister[[#This Row],[Zeitraum von num]]<=9,9<=Risikoregister[[#This Row],[Zeitraum bis num]]),Risikoregister[[#This Row],[Risikowert (in Punkten)]],0),\"\")","v":0}]
[4,"Herr Müller übermüdet",null,"Anstrengende Woche und lange Fahrt","Herr Müller übermüdet, daher müssen wir eine ungeplante Pause einlegen.","Wir erscheinen nicht rechtzeitig zur Feier in Berlin.","2014-08-08",null,"Frau Müller",null,"möglich (50 - 65%)",null,"erheblich",null,"Herr Müller gähnt wiederholt",null,"Fahrt Braunschweig - Magdeburg","Fahrt Magdeburg - Berlin",{"$f":"IFERROR(Risikoregister[[#This Row],[W. num (vor Maßnahme)]]*Risikoregister[[#This Row],[A. num (vor Maßnahme)]],#N/A)","v":36},null,0.6,0,"Familie Müller kommt zwei Stunden zu spät zur Feier",null,{"$f":"IFERROR(Risikoregister[[#This Row],[Wahrscheinlichkeit quant. (vor Maßnahme)]]*Risikoregister[[#This Row],[Auswirkung Kosten quant.]],#N/A)","v":0},null,"Bedrohung: vermeiden","Es fährt Frau Müller anstatt Herr Müller (sie ist ausgeruhter)",0,"kaum denkbar (< 10%)",null,"unbedeutend",null,"Frau Müller",{"$f":"IFERROR(VLOOKUP(Risikoregister[[#This Row],[Wahrscheinlichkeit* (nach Maßnahme)]],Tab_Wahrscheinlichkeit[],7,0)*Risikoregister[[#This Row],[A. num (nach Maßnahme)]],#N/A)","v":1},{"$f":"IFERROR(VLOOKUP(Risikoregister[[#This Row],[Wahrscheinlichkeit* (nach Maßnahme)]],Tab_Wahrscheinlichkeit[],6,0)*Risikoregister[[#This Row],[Auswirkung Kosten quant.]],#N/A)","v":0},null,"geplant",null,"offen",null,null,{"$f":"IFERROR(VLOOKUP(Risikoregister[[#This Row],[Wahrscheinlichkeit qual. (vor Maßnahme)]],Tab_Wahrscheinlichkeit[],7,FALSE),#N/A)","v":6},{"$f":"IFERROR(VLOOKUP(Risikoregister[[#This Row],[Wahrscheinlichkeit qual. (vor Maßnahme)]],Tab_Wahrscheinlichkeit[],5,FALSE)+Versatz_Portfolio,#N/A)","v":3.5819433865930352},{"$f":"MAX(\n  IF(ISBLANK(Risikoregister[[#This Row],[Auswirkung Kosten qual. (vor Maßnahme)]]),0,\n    VLOOKUP(Risikoregister[[#This Row],[Auswirkung Kosten qual. (vor Maßnahme)]],Tab_Auswirkung[],6,FALSE)\n  ),\n  IF(ISBLANK(Risikoregister[[#This Row],[Auswirkung Termine  qual.  (vor Maßnahme)]]),0,\n    VLOOKUP(Risikoregister[[#This Row],[Auswirkung Termine  qual.  (vor Maßnahme)]],Tab_Auswirkung[],6,FALSE)\n  ),\n  IF(ISBLANK(Risikoregister[[#This Row],[Auswirkung Leistung  qual.  (vor Maßnahme)]]),0,\n    VLOOKUP(Risikoregister[[#This Row],[Auswirkung Leistung  qual.  (vor Maßnahme)]],Tab_Auswirkung[],6,FALSE)\n  ),\n)","v":6},{"$f":"MAX(\n  IF(ISBLANK(Risikoregister[[#This Row],[Auswirkung Kosten (nach Maßnahme)]]),0,\n    VLOOKUP(Risikoregister[[#This Row],[Auswirkung Kosten (nach Maßnahme)]],Tab_Auswirkung[],6,FALSE)\n  ),\n  IF(ISBLANK(Risikoregister[[#This Row],[Auswirkung Termine (nach Maßnahme)]]),0,\n    VLOOKUP(Risikoregister[[#This Row],[Auswirkung Termine (nach Maßnahme)]],Tab_Auswirkung[],6,FALSE)\n  ),\n  IF(ISBLANK(Risikoregister[[#This Row],[Auswirkung Leistung (nach Maßnahme)]]),0,\n    VLOOKUP(Risikoregister[[#This Row],[Auswirkung Leistung (nach Maßnahme)]],Tab_Auswirkung[],6,FALSE)\n  ),\n)","v":1},{"$f":"MAX(\n  IF(ISBLANK(Risikoregister[[#This Row],[Auswirkung Kosten qual. (vor Maßnahme)]]),0,\n    VLOOKUP(Risikoregister[[#This Row],[Auswirkung Kosten qual. (vor Maßnahme)]],Tab_Auswirkung[],5,FALSE)\n  ),\n  IF(ISBLANK(Risikoregister[[#This Row],[Auswirkung Termine  qual.  (vor Maßnahme)]]),0,\n    VLOOKUP(Risikoregister[[#This Row],[Auswirkung Termine  qual.  (vor Maßnahme)]],Tab_Auswirkung[],5,FALSE)\n  ),\n  IF(ISBLANK(Risikoregister[[#This Row],[Auswirkung Leistung  qual.  (vor Maßnahme)]]),0,\n    VLOOKUP(Risikoregister[[#This Row],[Auswirkung Leistung  qual.  (vor Maßnahme)]],Tab_Auswirkung[],5,FALSE)\n  ),\n)","v":3.5},{"$f":"MAX(\n  IF(ISBLANK(Risikoregister[[#This Row],[Auswirkung Kosten (nach Maßnahme)]]),0,\n    VLOOKUP(Risikoregister[[#This Row],[Auswirkung Kosten (nach Maßnahme)]],Tab_Auswirkung[],5,FALSE)\n  ),\n  IF(ISBLANK(Risikoregister[[#This Row],[Auswirkung Termine (nach Maßnahme)]]),0,\n    VLOOKUP(Risikoregister[[#This Row],[Auswirkung Termine (nach Maßnahme)]],Tab_Auswirkung[],5,FALSE)\n  ),\n  IF(ISBLANK(Risikoregister[[#This Row],[Auswirkung Leistung (nach Maßnahme)]]),0,\n    VLOOKUP(Risikoregister[[#This Row],[Auswirkung Leistung (nach Maßnahme)]],Tab_Auswirkung[],5,FALSE)\n  ),\n)","v":0.5},{"$f":"IF(Risikoregister[[#This Row],[A. num Portfolio Hilfswert  (vor Maßnahme)]]=0,#N/A,Risikoregister[[#This Row],[A. num Portfolio Hilfswert  (vor Maßnahme)]]+Versatz_Portfolio)","v":3.3975216623513527},{"$f":"IFERROR(VLOOKUP(Risikoregister[[#This Row],[Wahrscheinlichkeit* (nach Maßnahme)]],Tab_Wahrscheinlichkeit[],5,FALSE)+Versatz_Portfolio,#N/A)","v":0.5080521262508938},{"$f":"IF(Risikoregister[[#This Row],[A. num Portfolio Hilfswert  (nach Maßnahme)]]=0,#N/A,Risikoregister[[#This Row],[A. num Portfolio Hilfswert  (nach Maßnahme)]]+Versatz_Portfolio)","v":0.50013936467638964},{"$f":"IF(Risikoregister[[#This Row],[Maßnahmen-Status]]=Planung!$W$9,Risikoregister[[#This Row],[W. num (nach Maßnahme)]],Risikoregister[[#This Row],[W. num Portfolio (vor Maßnahme)]])","v":3.5819433865930352},{"$f":"IF(Risikoregister[[#This Row],[Maßnahmen-Status]]=Planung!$W$9,Risikoregister[[#This Row],[A. num (nach Maßnahme)2]],Risikoregister[[#This Row],[A. num Portfolio (vor Maßnahme)]])","v":3.3975216623513527},null,{"$f":"VLOOKUP(Risikoregister[[#This Row],[Zeitraum von]],Zeiträume[],2,FALSE)","v":4},{"$f":"IF(ISBLANK(Risikoregister[[#This Row],[Zeitraum bis]]),Risikoregister[[#This Row],[Zeitraum von num]],VLOOKUP(Risikoregister[[#This Row],[Zeitraum bis]],Zeiträume[],2,FALSE))","v":5},{"$f":"IFERROR(IF(AND(Risikoregister[[#This Row],[Zeitraum von num]]<=1,1<=Risikoregister[[#This Row],[Zeitraum bis num]]),Risikoregister[[#This Row],[Risikowert (in Punkten)]],0),\"\")","v":0},{"$f":"IFERROR(IF(AND(Risikoregister[[#This Row],[Zeitraum von num]]<=2,2<=Risikoregister[[#This Row],[Zeitraum bis num]]),Risikoregister[[#This Row],[Risikowert (in Punkten)]],0),\"\")","v":0},{"$f":"IFERROR(IF(AND(Risikoregister[[#This Row],[Zeitraum von num]]<=3,3<=Risikoregister[[#This Row],[Zeitraum bis num]]),Risikoregister[[#This Row],[Risikowert (in Punkten)]],0),\"\")","v":0},{"$f":"IFERROR(IF(AND(Risikoregister[[#This Row],[Zeitraum von num]]<=4,4<=Risikoregister[[#This Row],[Zeitraum bis num]]),Risikoregister[[#This Row],[Risikowert (in Punkten)]],0),\"\")","v":36},{"$f":"IFERROR(IF(AND(Risikoregister[[#This Row],[Zeitraum von num]]<=5,5<=Risikoregister[[#This Row],[Zeitraum bis num]]),Risikoregister[[#This Row],[Risikowert (in Punkten)]],0),\"\")","v":36},{"$f":"IFERROR(IF(AND(Risikoregister[[#This Row],[Zeitraum von num]]<=6,6<=Risikoregister[[#This Row],[Zeitraum bis num]]),Risikoregister[[#This Row],[Risikowert (in Punkten)]],0),\"\")","v":0},{"$f":"IFERROR(IF(AND(Risikoregister[[#This Row],[Zeitraum von num]]<=7,7<=Risikoregister[[#This Row],[Zeitraum bis num]]),Risikoregister[[#This Row],[Risikowert (in Punkten)]],0),\"\")","v":0},{"$f":"IFERROR(IF(AND(Risikoregister[[#This Row],[Zeitraum von num]]<=8,8<=Risikoregister[[#This Row],[Zeitraum bis num]]),Risikoregister[[#This Row],[Risikowert (in Punkten)]],0),\"\")","v":0},{"$f":"IFERROR(IF(AND(Risikoregister[[#This Row],[Zeitraum von num]]<=9,9<=Risikoregister[[#This Row],[Zeitraum bis num]]),Risikoregister[[#This Row],[Risikowert (in Punkten)]],0),\"\")","v":0}]
[5,"Jungs fordern Pausen",null,"Den Jungs wird es langweilig ","Wir müssen wiederholt Pausen einlegen","Wir erscheinen nicht rechtzeitig zur Feier in Berlin.","2014-08-08",null,"Frau Müller",null,"unwahrscheinlich (35 - 50%)",null,"erheblich",null,"Jungs beschweren sich über die langweilige Fahrt",null,"Fahrt Braunschweig - Magdeburg","Fahrt Magdeburg - Berlin",{"$f":"IFERROR(Risikoregister[[#This Row],[W. num (vor Maßnahme)]]*Risikoregister[[#This Row],[A. num (vor Maßnahme)]],#N/A)","v":24},null,0.35,0,"Familie Müller kommt eine Stunde zu spät zur Feier",null,{"$f":"IFERROR(Risikoregister[[#This Row],[Wahrscheinlichkeit quant. (vor Maßnahme)]]*Risikoregister[[#This Row],[Auswirkung Kosten quant.]],#N/A)","v":0},null,"Bedrohung: vermeiden","Die Kinder bekommen für die Fahrt jeweils ein Tablet mit einigen altersgerechten Videos (präventiv)",0,"selten (10 - 35%)",null,"erheblich",null,"Frau Müller",{"$f":"IFERROR(VLOOKUP(Risikoregister[[#This Row],[Wahrscheinlichkeit* (nach Maßnahme)]],Tab_Wahrscheinlichkeit[],7,0)*Risikoregister[[#This Row],[A. num (nach Maßnahme)]],#N/A)","v":12},{"$f":"IFERROR(VLOOKUP(Risikoregister[[#This Row],[Wahrscheinlichkeit* (nach Maßnahme)]],Tab_Wahrscheinlichkeit[],6,0)*Risikoregister[[#This Row],[Auswirkung Kosten quant.]],#N/A)","v":0},null,"abgeschlossen",null,"eingetreten","Jungs fordern trotz der Tablets leider wiederholt Pausen.",null,{"$f":"IFERROR(VLOOKUP(Risikoregister[[#This Row],[Wahrscheinlichkeit qual. (vor Maßnahme)]],Tab_Wahrscheinlichkeit[],7,FALSE),#N/A)","v":4},{"$f":"IFERROR(VLOOKUP(Risikoregister[[#This Row],[Wahrscheinlichkeit qual. (vor Maßnahme)]],Tab_Wahrscheinlichkeit[],5,FALSE)+Versatz_Portfolio,#N/A)","v":2.5203527539617649},{"$f":"MAX(\n  IF(ISBLANK(Risikoregister[[#This Row],[Auswirkung Kosten qual. (vor Maßnahme)]]),0,\n    VLOOKUP(Risikoregister[[#This Row],[Auswirkung Kosten qual. (vor Maßnahme)]],Tab_Auswirkung[],6,FALSE)\n  ),\n  IF(ISBLANK(Risikoregister[[#This Row],[Auswirkung Termine  qual.  (vor Maßnahme)]]),0,\n    VLOOKUP(Risikoregister[[#This Row],[Auswirkung Termine  qual.  (vor Maßnahme)]],Tab_Auswirkung[],6,FALSE)\n  ),\n  IF(ISBLANK(Risikoregister[[#This Row],[Auswirkung Leistung  qual.  (vor Maßnahme)]]),0,\n    VLOOKUP(Risikoregister[[#This Row],[Auswirkung Leistung  qual.  (vor Maßnahme)]],Tab_Auswirkung[],6,FALSE)\n  ),\n)","v":6},{"$f":"MAX(\n  IF(ISBLANK(Risikoregister[[#This Row],[Auswirkung Kosten (nach Maßnahme)]]),0,\n    VLOOKUP(Risikoregister[[#This Row],[Auswirkung Kosten (nach Maßnahme)]],Tab_Auswirkung[],6,FALSE)\n  ),\n  IF(ISBLANK(Risikoregister[[#This Row],[Auswirkung Termine (nach Maßnahme)]]),0,\n    VLOOKUP(Risikoregister[[#This Row],[Auswirkung Termine (nach Maßnahme)]],Tab_Auswirkung[],6,FALSE)\n  ),\n  IF(ISBLANK(Risikoregister[[#This Row],[Auswirkung Leistung (nach Maßnahme)]]),0,\n    VLOOKUP(Risikoregister[[#This Row],[Auswirkung Leistung (nach Maßnahme)]],Tab_Auswirkung[],6,FALSE)\n  ),\n)","v":6},{"$f":"MAX(\n  IF(ISBLANK(Risikoregister[[#This Row],[Auswirkung Kosten qual. (vor Maßnahme)]]),0,\n    VLOOKUP(Risikoregister[[#This Row],[Auswirkung Kosten qual. (vor Maßnahme)]],Tab_Auswirkung[],5,FALSE)\n  ),\n  IF(ISBLANK(Risikoregister[[#This Row],[Auswirkung Termine  qual.  (vor Maßnahme)]]),0,\n    VLOOKUP(Risikoregister[[#This Row],[Auswirkung Termine  qual.  (vor Maßnahme)]],Tab_Auswirkung[],5,FALSE)\n  ),\n  IF(ISBLANK(Risikoregister[[#This Row],[Auswirkung Leistung  qual.  (vor Maßnahme)]]),0,\n    VLOOKUP(Risikoregister[[#This Row],[Auswirkung Leistung  qual.  (vor Maßnahme)]],Tab_Auswirkung[],5,FALSE)\n  ),\n)","v":3.5},{"$f":"MAX(\n  IF(ISBLANK(Risikoregister[[#This Row],[Auswirkung Kosten (nach Maßnahme)]]),0,\n    VLOOKUP(Risikoregister[[#This Row],[Auswirkung Kosten (nach Maßnahme)]],Tab_Auswirkung[],5,FALSE)\n  ),\n  IF(ISBLANK(Risikoregister[[#This Row],[Auswirkung Termine (nach Maßnahme)]]),0,\n    VLOOKUP(Risikoregister[[#This Row],[Auswirkung Termine (nach Maßnahme)]],Tab_Auswirkung[],5,FALSE)\n  ),\n  IF(ISBLANK(Risikoregister[[#This Row],[Auswirkung Leistung (nach Maßnahme)]]),0,\n    VLOOKUP(Risikoregister[[#This Row],[Auswirkung Leistung (nach Maßnahme)]],Tab_Auswirkung[],5,FALSE)\n  ),\n)","v":3.5},{"$f":"IF(Risikoregister[[#This Row],[A. num Portfolio Hilfswert  (vor Maßnahme)]]=0,#N/A,Risikoregister[[#This Row],[A. num Portfolio Hilfswert  (vor Maßnahme)]]+Versatz_Portfolio)","v":3.6167138361720967},{"$f":"IFERROR(VLOOKUP(Risikoregister[[#This Row],[Wahrscheinlichkeit* (nach Maßnahme)]],Tab_Wahrscheinlichkeit[],5,FALSE)+Versatz_Portfolio,#N/A)","v":1.5412856166953104},{"$f":"IF(Risikoregister[[#This Row],[A. num Portfolio Hilfswert  (nach Maßnahme)]]=0,#N/A,Risikoregister[[#This Row],[A. num Portfolio Hilfswert  (nach Maßnahme)]]+Versatz_Portfolio)","v":3.3930714467580314},{"$f":"IF(Risikoregister[[#This Row],[Maßnahmen-Status]]=Planung!$W$9,Risikoregister[[#This Row],[W. num (nach Maßnahme)]],Risikoregister[[#This Row],[W. num Portfolio (vor Maßnahme)]])","v":1.5412856166953104},{"$f":"IF(Risikoregister[[#This Row],[Maßnahmen-Status]]=Planung!$W$9,Risikoregister[[#This Row],[A. num (nach Maßnahme)2]],Risikoregister[[#This Row],[A. num Portfolio (vor Maßnahme)]])","v":3.3930714467580314},null,{"$f":"VLOOKUP(Risikoregister[[#This Row],[Zeitraum von]],Zeiträume[],2,FALSE)","v":4},{"$f":"IF(ISBLANK(Risikoregister[[#This Row],[Zeitraum bis]]),Risikoregister[[#This Row],[Zeitraum von num]],VLOOKUP(Risikoregister[[#This Row],[Zeitraum bis]],Zeiträume[],2,FALSE))","v":5},{"$f":"IFERROR(IF(AND(Risikoregister[[#This Row],[Zeitraum von num]]<=1,1<=Risikoregister[[#This Row],[Zeitraum bis num]]),Risikoregister[[#This Row],[Risikowert (in Punkten)]],0),\"\")","v":0},{"$f":"IFERROR(IF(AND(Risikoregister[[#This Row],[Zeitraum von num]]<=2,2<=Risikoregister[[#This Row],[Zeitraum bis num]]),Risikoregister[[#This Row],[Risikowert (in Punkten)]],0),\"\")","v":0},{"$f":"IFERROR(IF(AND(Risikoregister[[#This Row],[Zeitraum von num]]<=3,3<=Risikoregister[[#This Row],[Zeitraum bis num]]),Risikoregister[[#This Row],[Risikowert (in Punkten)]],0),\"\")","v":0},{"$f":"IFERROR(IF(AND(Risikoregister[[#This Row],[Zeitraum von num]]<=4,4<=Risikoregister[[#This Row],[Zeitraum bis num]]),Risikoregister[[#This Row],[Risikowert (in Punkten)]],0),\"\")","v":24},{"$f":"IFERROR(IF(AND(Risikoregister[[#This Row],[Zeitraum von num]]<=5,5<=Risikoregister[[#This Row],[Zeitraum bis num]]),Risikoregister[[#This Row],[Risikowert (in Punkten)]],0),\"\")","v":24},{"$f":"IFERROR(IF(AND(Risikoregister[[#This Row],[Zeitraum von num]]<=6,6<=Risikoregister[[#This Row],[Zeitraum bis num]]),Risikoregister[[#This Row],[Risikowert (in Punkten)]],0),\"\")","v":0},{"$f":"IFERROR(IF(AND(Risikoregister[[#This Row],[Zeitraum von num]]<=7,7<=Risikoregister[[#This Row],[Zeitraum bis num]]),Risikoregister[[#This Row],[Risikowert (in Punkten)]],0),\"\")","v":0},{"$f":"IFERROR(IF(AND(Risikoregister[[#This Row],[Zeitraum von num]]<=8,8<=Risikoregister[[#This Row],[Zeitraum bis num]]),Risikoregister[[#This Row],[Risikowert (in Punkten)]],0),\"\")","v":0},{"$f":"IFERROR(IF(AND(Risikoregister[[#This Row],[Zeitraum von num]]<=9,9<=Risikoregister[[#This Row],[Zeitraum bis num]]),Risikoregister[[#This Row],[Risikowert (in Punkten)]],0),\"\")","v":0}]
[null,null,null,null,null,null,null,null,null,null,null,null,null,null,null,null,null,null,{"$f":"IFERROR(Risikoregister[[#This Row],[W. num (vor Maßnahme)]]*Risikoregister[[#This Row],[A. num (vor Maßnahme)]],#N/A)","v":{"$error":"#N/A"}},null,null,null,null,null,{"$f":"IFERROR(Risikoregister[[#This Row],[Wahrscheinlichkeit quant. (vor Maßnahme)]]*Risikoregister[[#This Row],[Auswirkung Kosten quant.]],#N/A)","v":0},null,null,null,null,null,null,null,null,null,{"$f":"IFERROR(VLOOKUP(Risikoregister[[#This Row],[Wahrscheinlichkeit* (nach Maßnahme)]],Tab_Wahrscheinlichkeit[],7,0)*Risikoregister[[#This Row],[A. num (nach Maßnahme)]],#N/A)","v":{"$error":"#N/A"}},{"$f":"IFERROR(VLOOKUP(Risikoregister[[#This Row],[Wahrscheinlichkeit* (nach Maßnahme)]],Tab_Wahrscheinlichkeit[],6,0)*Risikoregister[[#This Row],[Auswirkung Kosten quant.]],#N/A)","v":{"$error":"#N/A"}},null,null,null,null,null,null,{"$f":"IFERROR(VLOOKUP(Risikoregister[[#This Row],[Wahrscheinlichkeit qual. (vor Maßnahme)]],Tab_Wahrscheinlichkeit[],7,FALSE),#N/A)","v":{"$error":"#N/A"}},{"$f":"IFERROR(VLOOKUP(Risikoregister[[#This Row],[Wahrscheinlichkeit qual. (vor Maßnahme)]],Tab_Wahrscheinlichkeit[],5,FALSE)+Versatz_Portfolio,#N/A)","v":{"$error":"#N/A"}},{"$f":"MAX(\n  IF(ISBLANK(Risikoregister[[#This Row],[Auswirkung Kosten qual. (vor Maßnahme)]]),0,\n    VLOOKUP(Risikoregister[[#This Row],[Auswirkung Kosten qual. (vor Maßnahme)]],Tab_Auswirkung[],6,FALSE)\n  ),\n  IF(ISBLANK(Risikoregister[[#This Row],[Auswirkung Termine  qual.  (vor Maßnahme)]]),0,\n    VLOOKUP(Risikoregister[[#This Row],[Auswirkung Termine  qual.  (vor Maßnahme)]],Tab_Auswirkung[],6,FALSE)\n  ),\n  IF(ISBLANK(Risikoregister[[#This Row],[Auswirkung Leistung  qual.  (vor Maßnahme)]]),0,\n    VLOOKUP(Risikoregister[[#This Row],[Auswirkung Leistung  qual.  (vor Maßnahme)]],Tab_Auswirkung[],6,FALSE)\n  ),\n)","v":0},{"$f":"MAX(\n  IF(ISBLANK(Risikoregister[[#This Row],[Auswirkung Kosten (nach Maßnahme)]]),0,\n    VLOOKUP(Risikoregister[[#This Row],[Auswirkung Kosten (nach Maßnahme)]],Tab_Auswirkung[],6,FALSE)\n  ),\n  IF(ISBLANK(Risikoregister[[#This Row],[Auswirkung Termine (nach Maßnahme)]]),0,\n    VLOOKUP(Risikoregister[[#This Row],[Auswirkung Termine (nach Maßnahme)]],Tab_Auswirkung[],6,FALSE)\n  ),\n  IF(ISBLANK(Risikoregister[[#This Row],[Auswirkung Leistung (nach Maßnahme)]]),0,\n    VLOOKUP(Risikoregister[[#This Row],[Auswirkung Leistung (nach Maßnahme)]],Tab_Auswirkung[],6,FALSE)\n  ),\n)","v":0},{"$f":"MAX(\n  IF(ISBLANK(Risikoregister[[#This Row],[Auswirkung Kosten qual. (vor Maßnahme)]]),0,\n    VLOOKUP(Risikoregister[[#This Row],[Auswirkung Kosten qual. (vor Maßnahme)]],Tab_Auswirkung[],5,FALSE)\n  ),\n  IF(ISBLANK(Risikoregister[[#This Row],[Auswirkung Termine  qual.  (vor Maßnahme)]]),0,\n    VLOOKUP(Risikoregister[[#This Row],[Auswirkung Termine  qual.  (vor Maßnahme)]],Tab_Auswirkung[],5,FALSE)\n  ),\n  IF(ISBLANK(Risikoregister[[#This Row],[Auswirkung Leistung  qual.  (vor Maßnahme)]]),0,\n    VLOOKUP(Risikoregister[[#This Row],[Auswirkung Leistung  qual.  (vor Maßnahme)]],Tab_Auswirkung[],5,FALSE)\n  ),\n)","v":0},{"$f":"MAX(\n  IF(ISBLANK(Risikoregister[[#This Row],[Auswirkung Kosten (nach Maßnahme)]]),0,\n    VLOOKUP(Risikoregister[[#This Row],[Auswirkung Kosten (nach Maßnahme)]],Tab_Auswirkung[],5,FALSE)\n  ),\n  IF(ISBLANK(Risikoregister[[#This Row],[Auswirkung Termine (nach Maßnahme)]]),0,\n    VLOOKUP(Risikoregister[[#This Row],[Auswirkung Termine (nach Maßnahme)]],Tab_Auswirkung[],5,FALSE)\n  ),\n  IF(ISBLANK(Risikoregister[[#This Row],[Auswirkung Leistung (nach Maßnahme)]]),0,\n    VLOOKUP(Risikoregister[[#This Row],[Auswirkung Leistung (nach Maßnahme)]],Tab_Auswirkung[],5,FALSE)\n  ),\n)","v":0},{"$f":"IF(Risikoregister[[#This Row],[A. num Portfolio Hilfswert  (vor Maßnahme)]]=0,#N/A,Risikoregister[[#This Row],[A. num Portfolio Hilfswert  (vor Maßnahme)]]+Versatz_Portfolio)","v":{"$error":"#N/A"}},{"$f":"IFERROR(VLOOKUP(Risikoregister[[#This Row],[Wahrscheinlichkeit* (nach Maßnahme)]],Tab_Wahrscheinlichkeit[],5,FALSE)+Versatz_Portfolio,#N/A)","v":{"$error":"#N/A"}},{"$f":"IF(Risikoregister[[#This Row],[A. num Portfolio Hilfswert  (nach Maßnahme)]]=0,#N/A,Risikoregister[[#This Row],[A. num Portfolio Hilfswert  (nach Maßnahme)]]+Versatz_Portfolio)","v":{"$error":"#N/A"}},{"$f":"IF(Risikoregister[[#This Row],[Maßnahmen-Status]]=Planung!$W$9,Risikoregister[[#This Row],[W. num (nach Maßnahme)]],Risikoregister[[#This Row],[W. num Portfolio (vor Maßnahme)]])","v":{"$error":"#N/A"}},{"$f":"IF(Risikoregister[[#This Row],[Maßnahmen-Status]]=Planung!$W$9,Risikoregister[[#This Row],[A. num (nach Maßnahme)2]],Risikoregister[[#This Row],[A. num Portfolio (vor Maßnahme)]])","v":{"$error":"#N/A"}},null,{"$f":"VLOOKUP(Risikoregister[[#This Row],[Zeitraum von]],Zeiträume[],2,FALSE)","v":{"$error":"#N/A"}},{"$f":"IF(ISBLANK(Risikoregister[[#This Row],[Zeitraum bis]]),Risikoregister[[#This Row],[Zeitraum von num]],VLOOKUP(Risikoregister[[#This Row],[Zeitraum bis]],Zeiträume[],2,FALSE))","v":{"$error":"#N/A"}},{"$f":"IFERROR(IF(AND(Risikoregister[[#This Row],[Zeitraum von num]]<=1,1<=Risikoregister[[#This Row],[Zeitraum bis num]]),Risikoregister[[#This Row],[Risikowert (in Punkten)]],0),\"\")","v":""},{"$f":"IFERROR(IF(AND(Risikoregister[[#This Row],[Zeitraum von num]]<=2,2<=Risikoregister[[#This Row],[Zeitraum bis num]]),Risikoregister[[#This Row],[Risikowert (in Punkten)]],0),\"\")","v":""},{"$f":"IFERROR(IF(AND(Risikoregister[[#This Row],[Zeitraum von num]]<=3,3<=Risikoregister[[#This Row],[Zeitraum bis num]]),Risikoregister[[#This Row],[Risikowert (in Punkten)]],0),\"\")","v":""},{"$f":"IFERROR(IF(AND(Risikoregister[[#This Row],[Zeitraum von num]]<=4,4<=Risikoregister[[#This Row],[Zeitraum bis num]]),Risikoregister[[#This Row],[Risikowert (in Punkten)]],0),\"\")","v":""},{"$f":"IFERROR(IF(AND(Risikoregister[[#This Row],[Zeitraum von num]]<=5,5<=Risikoregister[[#This Row],[Zeitraum bis num]]),Risikoregister[[#This Row],[Risikowert (in Punkten)]],0),\"\")","v":""},{"$f":"IFERROR(IF(AND(Risikoregister[[#This Row],[Zeitraum von num]]<=6,6<=Risikoregister[[#This Row],[Zeitraum bis num]]),Risikoregister[[#This Row],[Risikowert (in Punkten)]],0),\"\")","v":""},{"$f":"IFERROR(IF(AND(Risikoregister[[#This Row],[Zeitraum von num]]<=7,7<=Risikoregister[[#This Row],[Zeitraum bis num]]),Risikoregister[[#This Row],[Risikowert (in Punkten)]],0),\"\")","v":""},{"$f":"IFERROR(IF(AND(Risikoregister[[#This Row],[Zeitraum von num]]<=8,8<=Risikoregister[[#This Row],[Zeitraum bis num]]),Risikoregister[[#This Row],[Risikowert (in Punkten)]],0),\"\")","v":""},{"$f":"IFERROR(IF(AND(Risikoregister[[#This Row],[Zeitraum von num]]<=9,9<=Risikoregister[[#This Row],[Zeitraum bis num]]),Risikoregister[[#This Row],[Risikowert (in Punkten)]],0),\"\")","v":""}]
[null,null,null,null,null,null,null,null,null,null,null,null,null,null,null,null,null,null,{"$f":"IFERROR(Risikoregister[[#This Row],[W. num (vor Maßnahme)]]*Risikoregister[[#This Row],[A. num (vor Maßnahme)]],#N/A)","v":{"$error":"#N/A"}},null,null,null,null,null,{"$f":"IFERROR(Risikoregister[[#This Row],[Wahrscheinlichkeit quant. (vor Maßnahme)]]*Risikoregister[[#This Row],[Auswirkung Kosten quant.]],#N/A)","v":0},null,null,null,null,null,null,null,null,null,{"$f":"IFERROR(VLOOKUP(Risikoregister[[#This Row],[Wahrscheinlichkeit* (nach Maßnahme)]],Tab_Wahrscheinlichkeit[],7,0)*Risikoregister[[#This Row],[A. num (nach Maßnahme)]],#N/A)","v":{"$error":"#N/A"}},{"$f":"IFERROR(VLOOKUP(Risikoregister[[#This Row],[Wahrscheinlichkeit* (nach Maßnahme)]],Tab_Wahrscheinlichkeit[],6,0)*Risikoregister[[#This Row],[Auswirkung Kosten quant.]],#N/A)","v":{"$error":"#N/A"}},null,null,null,null,null,null,{"$f":"IFERROR(VLOOKUP(Risikoregister[[#This Row],[Wahrscheinlichkeit qual. (vor Maßnahme)]],Tab_Wahrscheinlichkeit[],7,FALSE),#N/A)","v":{"$error":"#N/A"}},{"$f":"IFERROR(VLOOKUP(Risikoregister[[#This Row],[Wahrscheinlichkeit qual. (vor Maßnahme)]],Tab_Wahrscheinlichkeit[],5,FALSE)+Versatz_Portfolio,#N/A)","v":{"$error":"#N/A"}},{"$f":"MAX(\n  IF(ISBLANK(Risikoregister[[#This Row],[Auswirkung Kosten qual. (vor Maßnahme)]]),0,\n    VLOOKUP(Risikoregister[[#This Row],[Auswirkung Kosten qual. (vor Maßnahme)]],Tab_Auswirkung[],6,FALSE)\n  ),\n  IF(ISBLANK(Risikoregister[[#This Row],[Auswirkung Termine  qual.  (vor Maßnahme)]]),0,\n    VLOOKUP(Risikoregister[[#This Row],[Auswirkung Termine  qual.  (vor Maßnahme)]],Tab_Auswirkung[],6,FALSE)\n  ),\n  IF(ISBLANK(Risikoregister[[#This Row],[Auswirkung Leistung  qual.  (vor Maßnahme)]]),0,\n    VLOOKUP(Risikoregister[[#This Row],[Auswirkung Leistung  qual.  (vor Maßnahme)]],Tab_Auswirkung[],6,FALSE)\n  ),\n)","v":0},{"$f":"MAX(\n  IF(ISBLANK(Risikoregister[[#This Row],[Auswirkung Kosten (nach Maßnahme)]]),0,\n    VLOOKUP(Risikoregister[[#This Row],[Auswirkung Kosten (nach Maßnahme)]],Tab_Auswirkung[],6,FALSE)\n  ),\n  IF(ISBLANK(Risikoregister[[#This Row],[Auswirkung Termine (nach Maßnahme)]]),0,\n    VLOOKUP(Risikoregister[[#This Row],[Auswirkung Termine (nach Maßnahme)]],Tab_Auswirkung[],6,FALSE)\n  ),\n  IF(ISBLANK(Risikoregister[[#This Row],[Auswirkung Leistung (nach Maßnahme)]]),0,\n    VLOOKUP(Risikoregister[[#This Row],[Auswirkung Leistung (nach Maßnahme)]],Tab_Auswirkung[],6,FALSE)\n  ),\n)","v":0},{"$f":"MAX(\n  IF(ISBLANK(Risikoregister[[#This Row],[Auswirkung Kosten qual. (vor Maßnahme)]]),0,\n    VLOOKUP(Risikoregister[[#This Row],[Auswirkung Kosten qual. (vor Maßnahme)]],Tab_Auswirkung[],5,FALSE)\n  ),\n  IF(ISBLANK(Risikoregister[[#This Row],[Auswirkung Termine  qual.  (vor Maßnahme)]]),0,\n    VLOOKUP(Risikoregister[[#This Row],[Auswirkung Termine  qual.  (vor Maßnahme)]],Tab_Auswirkung[],5,FALSE)\n  ),\n  IF(ISBLANK(Risikoregister[[#This Row],[Auswirkung Leistung  qual.  (vor Maßnahme)]]),0,\n    VLOOKUP(Risikoregister[[#This Row],[Auswirkung Leistung  qual.  (vor Maßnahme)]],Tab_Auswirkung[],5,FALSE)\n  ),\n)","v":0},{"$f":"MAX(\n  IF(ISBLANK(Risikoregister[[#This Row],[Auswirkung Kosten (nach Maßnahme)]]),0,\n    VLOOKUP(Risikoregister[[#This Row],[Auswirkung Kosten (nach Maßnahme)]],Tab_Auswirkung[],5,FALSE)\n  ),\n  IF(ISBLANK(Risikoregister[[#This Row],[Auswirkung Termine (nach Maßnahme)]]),0,\n    VLOOKUP(Risikoregister[[#This Row],[Auswirkung Termine (nach Maßnahme)]],Tab_Auswirkung[],5,FALSE)\n  ),\n  IF(ISBLANK(Risikoregister[[#This Row],[Auswirkung Leistung (nach Maßnahme)]]),0,\n    VLOOKUP(Risikoregister[[#This Row],[Auswirkung Leistung (nach Maßnahme)]],Tab_Auswirkung[],5,FALSE)\n  ),\n)","v":0},{"$f":"IF(Risikoregister[[#This Row],[A. num Portfolio Hilfswert  (vor Maßnahme)]]=0,#N/A,Risikoregister[[#This Row],[A. num Portfolio Hilfswert  (vor Maßnahme)]]+Versatz_Portfolio)","v":{"$error":"#N/A"}},{"$f":"IFERROR(VLOOKUP(Risikoregister[[#This Row],[Wahrscheinlichkeit* (nach Maßnahme)]],Tab_Wahrscheinlichkeit[],5,FALSE)+Versatz_Portfolio,#N/A)","v":{"$error":"#N/A"}},{"$f":"IF(Risikoregister[[#This Row],[A. num Portfolio Hilfswert  (nach Maßnahme)]]=0,#N/A,Risikoregister[[#This Row],[A. num Portfolio Hilfswert  (nach Maßnahme)]]+Versatz_Portfolio)","v":{"$error":"#N/A"}},{"$f":"IF(Risikoregister[[#This Row],[Maßnahmen-Status]]=Planung!$W$9,Risikoregister[[#This Row],[W. num (nach Maßnahme)]],Risikoregister[[#This Row],[W. num Portfolio (vor Maßnahme)]])","v":{"$error":"#N/A"}},{"$f":"IF(Risikoregister[[#This Row],[Maßnahmen-Status]]=Planung!$W$9,Risikoregister[[#This Row],[A. num (nach Maßnahme)2]],Risikoregister[[#This Row],[A. num Portfolio (vor Maßnahme)]])","v":{"$error":"#N/A"}},null,{"$f":"VLOOKUP(Risikoregister[[#This Row],[Zeitraum von]],Zeiträume[],2,FALSE)","v":{"$error":"#N/A"}},{"$f":"IF(ISBLANK(Risikoregister[[#This Row],[Zeitraum bis]]),Risikoregister[[#This Row],[Zeitraum von num]],VLOOKUP(Risikoregister[[#This Row],[Zeitraum bis]],Zeiträume[],2,FALSE))","v":{"$error":"#N/A"}},{"$f":"IFERROR(IF(AND(Risikoregister[[#This Row],[Zeitraum von num]]<=1,1<=Risikoregister[[#This Row],[Zeitraum bis num]]),Risikoregister[[#This Row],[Risikowert (in Punkten)]],0),\"\")","v":""},{"$f":"IFERROR(IF(AND(Risikoregister[[#This Row],[Zeitraum von num]]<=2,2<=Risikoregister[[#This Row],[Zeitraum bis num]]),Risikoregister[[#This Row],[Risikowert (in Punkten)]],0),\"\")","v":""},{"$f":"IFERROR(IF(AND(Risikoregister[[#This Row],[Zeitraum von num]]<=3,3<=Risikoregister[[#This Row],[Zeitraum bis num]]),Risikoregister[[#This Row],[Risikowert (in Punkten)]],0),\"\")","v":""},{"$f":"IFERROR(IF(AND(Risikoregister[[#This Row],[Zeitraum von num]]<=4,4<=Risikoregister[[#This Row],[Zeitraum bis num]]),Risikoregister[[#This Row],[Risikowert (in Punkten)]],0),\"\")","v":""},{"$f":"IFERROR(IF(AND(Risikoregister[[#This Row],[Zeitraum von num]]<=5,5<=Risikoregister[[#This Row],[Zeitraum bis num]]),Risikoregister[[#This Row],[Risikowert (in Punkten)]],0),\"\")","v":""},{"$f":"IFERROR(IF(AND(Risikoregister[[#This Row],[Zeitraum von num]]<=6,6<=Risikoregister[[#This Row],[Zeitraum bis num]]),Risikoregister[[#This Row],[Risikowert (in Punkten)]],0),\"\")","v":""},{"$f":"IFERROR(IF(AND(Risikoregister[[#This Row],[Zeitraum von num]]<=7,7<=Risikoregister[[#This Row],[Zeitraum bis num]]),Risikoregister[[#This Row],[Risikowert (in Punkten)]],0),\"\")","v":""},{"$f":"IFERROR(IF(AND(Risikoregister[[#This Row],[Zeitraum von num]]<=8,8<=Risikoregister[[#This Row],[Zeitraum bis num]]),Risikoregister[[#This Row],[Risikowert (in Punkten)]],0),\"\")","v":""},{"$f":"IFERROR(IF(AND(Risikoregister[[#This Row],[Zeitraum von num]]<=9,9<=Risikoregister[[#This Row],[Zeitraum bis num]]),Risikoregister[[#This Row],[Risikowert (in Punkten)]],0),\"\")","v":""}]
[null,null,null,null,null,null,null,null,null,null,null,null,null,null,null,null,null,null,{"$f":"IFERROR(Risikoregister[[#This Row],[W. num (vor Maßnahme)]]*Risikoregister[[#This Row],[A. num (vor Maßnahme)]],#N/A)","v":{"$error":"#N/A"}},null,null,null,null,null,{"$f":"IFERROR(Risikoregister[[#This Row],[Wahrscheinlichkeit quant. (vor Maßnahme)]]*Risikoregister[[#This Row],[Auswirkung Kosten quant.]],#N/A)","v":0},null,null,null,null,null,null,null,null,null,{"$f":"IFERROR(VLOOKUP(Risikoregister[[#This Row],[Wahrscheinlichkeit* (nach Maßnahme)]],Tab_Wahrscheinlichkeit[],7,0)*Risikoregister[[#This Row],[A. num (nach Maßnahme)]],#N/A)","v":{"$error":"#N/A"}},{"$f":"IFERROR(VLOOKUP(Risikoregister[[#This Row],[Wahrscheinlichkeit* (nach Maßnahme)]],Tab_Wahrscheinlichkeit[],6,0)*Risikoregister[[#This Row],[Auswirkung Kosten quant.]],#N/A)","v":{"$error":"#N/A"}},null,null,null,null,null,null,{"$f":"IFERROR(VLOOKUP(Risikoregister[[#This Row],[Wahrscheinlichkeit qual. (vor Maßnahme)]],Tab_Wahrscheinlichkeit[],7,FALSE),#N/A)","v":{"$error":"#N/A"}},{"$f":"IFERROR(VLOOKUP(Risikoregister[[#This Row],[Wahrscheinlichkeit qual. (vor Maßnahme)]],Tab_Wahrscheinlichkeit[],5,FALSE)+Versatz_Portfolio,#N/A)","v":{"$error":"#N/A"}},{"$f":"MAX(\n  IF(ISBLANK(Risikoregister[[#This Row],[Auswirkung Kosten qual. (vor Maßnahme)]]),0,\n    VLOOKUP(Risikoregister[[#This Row],[Auswirkung Kosten qual. (vor Maßnahme)]],Tab_Auswirkung[],6,FALSE)\n  ),\n  IF(ISBLANK(Risikoregister[[#This Row],[Auswirkung Termine  qual.  (vor Maßnahme)]]),0,\n    VLOOKUP(Risikoregister[[#This Row],[Auswirkung Termine  qual.  (vor Maßnahme)]],Tab_Auswirkung[],6,FALSE)\n  ),\n  IF(ISBLANK(Risikoregister[[#This Row],[Auswirkung Leistung  qual.  (vor Maßnahme)]]),0,\n    VLOOKUP(Risikoregister[[#This Row],[Auswirkung Leistung  qual.  (vor Maßnahme)]],Tab_Auswirkung[],6,FALSE)\n  ),\n)","v":0},{"$f":"MAX(\n  IF(ISBLANK(Risikoregister[[#This Row],[Auswirkung Kosten (nach Maßnahme)]]),0,\n    VLOOKUP(Risikoregister[[#This Row],[Auswirkung Kosten (nach Maßnahme)]],Tab_Auswirkung[],6,FALSE)\n  ),\n  IF(ISBLANK(Risikoregister[[#This Row],[Auswirkung Termine (nach Maßnahme)]]),0,\n    VLOOKUP(Risikoregister[[#This Row],[Auswirkung Termine (nach Maßnahme)]],Tab_Auswirkung[],6,FALSE)\n  ),\n  IF(ISBLANK(Risikoregister[[#This Row],[Auswirkung Leistung (nach Maßnahme)]]),0,\n    VLOOKUP(Risikoregister[[#This Row],[Auswirkung Leistung (nach Maßnahme)]],Tab_Auswirkung[],6,FALSE)\n  ),\n)","v":0},{"$f":"MAX(\n  IF(ISBLANK(Risikoregister[[#This Row],[Auswirkung Kosten qual. (vor Maßnahme)]]),0,\n    VLOOKUP(Risikoregister[[#This Row],[Auswirkung Kosten qual. (vor Maßnahme)]],Tab_Auswirkung[],5,FALSE)\n  ),\n  IF(ISBLANK(Risikoregister[[#This Row],[Auswirkung Termine  qual.  (vor Maßnahme)]]),0,\n    VLOOKUP(Risikoregister[[#This Row],[Auswirkung Termine  qual.  (vor Maßnahme)]],Tab_Auswirkung[],5,FALSE)\n  ),\n  IF(ISBLANK(Risikoregister[[#This Row],[Auswirkung Leistung  qual.  (vor Maßnahme)]]),0,\n    VLOOKUP(Risikoregister[[#This Row],[Auswirkung Leistung  qual.  (vor Maßnahme)]],Tab_Auswirkung[],5,FALSE)\n  ),\n)","v":0},{"$f":"MAX(\n  IF(ISBLANK(Risikoregister[[#This Row],[Auswirkung Kosten (nach Maßnahme)]]),0,\n    VLOOKUP(Risikoregister[[#This Row],[Auswirkung Kosten (nach Maßnahme)]],Tab_Auswirkung[],5,FALSE)\n  ),\n  IF(ISBLANK(Risikoregister[[#This Row],[Auswirkung Termine (nach Maßnahme)]]),0,\n    VLOOKUP(Risikoregister[[#This Row],[Auswirkung Termine (nach Maßnahme)]],Tab_Auswirkung[],5,FALSE)\n  ),\n  IF(ISBLANK(Risikoregister[[#This Row],[Auswirkung Leistung (nach Maßnahme)]]),0,\n    VLOOKUP(Risikoregister[[#This Row],[Auswirkung Leistung (nach Maßnahme)]],Tab_Auswirkung[],5,FALSE)\n  ),\n)","v":0},{"$f":"IF(Risikoregister[[#This Row],[A. num Portfolio Hilfswert  (vor Maßnahme)]]=0,#N/A,Risikoregister[[#This Row],[A. num Portfolio Hilfswert  (vor Maßnahme)]]+Versatz_Portfolio)","v":{"$error":"#N/A"}},{"$f":"IFERROR(VLOOKUP(Risikoregister[[#This Row],[Wahrscheinlichkeit* (nach Maßnahme)]],Tab_Wahrscheinlichkeit[],5,FALSE)+Versatz_Portfolio,#N/A)","v":{"$error":"#N/A"}},{"$f":"IF(Risikoregister[[#This Row],[A. num Portfolio Hilfswert  (nach Maßnahme)]]=0,#N/A,Risikoregister[[#This Row],[A. num Portfolio Hilfswert  (nach Maßnahme)]]+Versatz_Portfolio)","v":{"$error":"#N/A"}},{"$f":"IF(Risikoregister[[#This Row],[Maßnahmen-Status]]=Planung!$W$9,Risikoregister[[#This Row],[W. num (nach Maßnahme)]],Risikoregister[[#This Row],[W. num Portfolio (vor Maßnahme)]])","v":{"$error":"#N/A"}},{"$f":"IF(Risikoregister[[#This Row],[Maßnahmen-Status]]=Planung!$W$9,Risikoregister[[#This Row],[A. num (nach Maßnahme)2]],Risikoregister[[#This Row],[A. num Portfolio (vor Maßnahme)]])","v":{"$error":"#N/A"}},null,{"$f":"VLOOKUP(Risikoregister[[#This Row],[Zeitraum von]],Zeiträume[],2,FALSE)","v":{"$error":"#N/A"}},{"$f":"IF(ISBLANK(Risikoregister[[#This Row],[Zeitraum bis]]),Risikoregister[[#This Row],[Zeitraum von num]],VLOOKUP(Risikoregister[[#This Row],[Zeitraum bis]],Zeiträume[],2,FALSE))","v":{"$error":"#N/A"}},{"$f":"IFERROR(IF(AND(Risikoregister[[#This Row],[Zeitraum von num]]<=1,1<=Risikoregister[[#This Row],[Zeitraum bis num]]),Risikoregister[[#This Row],[Risikowert (in Punkten)]],0),\"\")","v":""},{"$f":"IFERROR(IF(AND(Risikoregister[[#This Row],[Zeitraum von num]]<=2,2<=Risikoregister[[#This Row],[Zeitraum bis num]]),Risikoregister[[#This Row],[Risikowert (in Punkten)]],0),\"\")","v":""},{"$f":"IFERROR(IF(AND(Risikoregister[[#This Row],[Zeitraum von num]]<=3,3<=Risikoregister[[#This Row],[Zeitraum bis num]]),Risikoregister[[#This Row],[Risikowert (in Punkten)]],0),\"\")","v":""},{"$f":"IFERROR(IF(AND(Risikoregister[[#This Row],[Zeitraum von num]]<=4,4<=Risikoregister[[#This Row],[Zeitraum bis num]]),Risikoregister[[#This Row],[Risikowert (in Punkten)]],0),\"\")","v":""},{"$f":"IFERROR(IF(AND(Risikoregister[[#This Row],[Zeitraum von num]]<=5,5<=Risikoregister[[#This Row],[Zeitraum bis num]]),Risikoregister[[#This Row],[Risikowert (in Punkten)]],0),\"\")","v":""},{"$f":"IFERROR(IF(AND(Risikoregister[[#This Row],[Zeitraum von num]]<=6,6<=Risikoregister[[#This Row],[Zeitraum bis num]]),Risikoregister[[#This Row],[Risikowert (in Punkten)]],0),\"\")","v":""},{"$f":"IFERROR(IF(AND(Risikoregister[[#This Row],[Zeitraum von num]]<=7,7<=Risikoregister[[#This Row],[Zeitraum bis num]]),Risikoregister[[#This Row],[Risikowert (in Punkten)]],0),\"\")","v":""},{"$f":"IFERROR(IF(AND(Risikoregister[[#This Row],[Zeitraum von num]]<=8,8<=Risikoregister[[#This Row],[Zeitraum bis num]]),Risikoregister[[#This Row],[Risikowert (in Punkten)]],0),\"\")","v":""},{"$f":"IFERROR(IF(AND(Risikoregister[[#This Row],[Zeitraum von num]]<=9,9<=Risikoregister[[#This Row],[Zeitraum bis num]]),Risikoregister[[#This Row],[Risikowert (in Punkten)]],0),\"\")","v":""}]
[null,null,null,null,null,null,null,null,null,null,null,null,null,null,null,null,null,null,{"$f":"IFERROR(Risikoregister[[#This Row],[W. num (vor Maßnahme)]]*Risikoregister[[#This Row],[A. num (vor Maßnahme)]],#N/A)","v":{"$error":"#N/A"}},null,null,null,null,null,{"$f":"IFERROR(Risikoregister[[#This Row],[Wahrscheinlichkeit quant. (vor Maßnahme)]]*Risikoregister[[#This Row],[Auswirkung Kosten quant.]],#N/A)","v":0},null,null,null,null,null,null,null,null,null,{"$f":"IFERROR(VLOOKUP(Risikoregister[[#This Row],[Wahrscheinlichkeit* (nach Maßnahme)]],Tab_Wahrscheinlichkeit[],7,0)*Risikoregister[[#This Row],[A. num (nach Maßnahme)]],#N/A)","v":{"$error":"#N/A"}},{"$f":"IFERROR(VLOOKUP(Risikoregister[[#This Row],[Wahrscheinlichkeit* (nach Maßnahme)]],Tab_Wahrscheinlichkeit[],6,0)*Risikoregister[[#This Row],[Auswirkung Kosten quant.]],#N/A)","v":{"$error":"#N/A"}},null,null,null,null,null,null,{"$f":"IFERROR(VLOOKUP(Risikoregister[[#This Row],[Wahrscheinlichkeit qual. (vor Maßnahme)]],Tab_Wahrscheinlichkeit[],7,FALSE),#N/A)","v":{"$error":"#N/A"}},{"$f":"IFERROR(VLOOKUP(Risikoregister[[#This Row],[Wahrscheinlichkeit qual. (vor Maßnahme)]],Tab_Wahrscheinlichkeit[],5,FALSE)+Versatz_Portfolio,#N/A)","v":{"$error":"#N/A"}},{"$f":"MAX(\n  IF(ISBLANK(Risikoregister[[#This Row],[Auswirkung Kosten qual. (vor Maßnahme)]]),0,\n    VLOOKUP(Risikoregister[[#This Row],[Auswirkung Kosten qual. (vor Maßnahme)]],Tab_Auswirkung[],6,FALSE)\n  ),\n  IF(ISBLANK(Risikoregister[[#This Row],[Auswirkung Termine  qual.  (vor Maßnahme)]]),0,\n    VLOOKUP(Risikoregister[[#This Row],[Auswirkung Termine  qual.  (vor Maßnahme)]],Tab_Auswirkung[],6,FALSE)\n  ),\n  IF(ISBLANK(Risikoregister[[#This Row],[Auswirkung Leistung  qual.  (vor Maßnahme)]]),0,\n    VLOOKUP(Risikoregister[[#This Row],[Auswirkung Leistung  qual.  (vor Maßnahme)]],Tab_Auswirkung[],6,FALSE)\n  ),\n)","v":0},{"$f":"MAX(\n  IF(ISBLANK(Risikoregister[[#This Row],[Auswirkung Kosten (nach Maßnahme)]]),0,\n    VLOOKUP(Risikoregister[[#This Row],[Auswirkung Kosten (nach Maßnahme)]],Tab_Auswirkung[],6,FALSE)\n  ),\n  IF(ISBLANK(Risikoregister[[#This Row],[Auswirkung Termine (nach Maßnahme)]]),0,\n    VLOOKUP(Risikoregister[[#This Row],[Auswirkung Termine (nach Maßnahme)]],Tab_Auswirkung[],6,FALSE)\n  ),\n  IF(ISBLANK(Risikoregister[[#This Row],[Auswirkung Leistung (nach Maßnahme)]]),0,\n    VLOOKUP(Risikoregister[[#This Row],[Auswirkung Leistung (nach Maßnahme)]],Tab_Auswirkung[],6,FALSE)\n  ),\n)","v":0},{"$f":"MAX(\n  IF(ISBLANK(Risikoregister[[#This Row],[Auswirkung Kosten qual. (vor Maßnahme)]]),0,\n    VLOOKUP(Risikoregister[[#This Row],[Auswirkung Kosten qual. (vor Maßnahme)]],Tab_Auswirkung[],5,FALSE)\n  ),\n  IF(ISBLANK(Risikoregister[[#This Row],[Auswirkung Termine  qual.  (vor Maßnahme)]]),0,\n    VLOOKUP(Risikoregister[[#This Row],[Auswirkung Termine  qual.  (vor Maßnahme)]],Tab_Auswirkung[],5,FALSE)\n  ),\n  IF(ISBLANK(Risikoregister[[#This Row],[Auswirkung Leistung  qual.  (vor Maßnahme)]]),0,\n    VLOOKUP(Risikoregister[[#This Row],[Auswirkung Leistung  qual.  (vor Maßnahme)]],Tab_Auswirkung[],5,FALSE)\n  ),\n)","v":0},{"$f":"MAX(\n  IF(ISBLANK(Risikoregister[[#This Row],[Auswirkung Kosten (nach Maßnahme)]]),0,\n    VLOOKUP(Risikoregister[[#This Row],[Auswirkung Kosten (nach Maßnahme)]],Tab_Auswirkung[],5,FALSE)\n  ),\n  IF(ISBLANK(Risikoregister[[#This Row],[Auswirkung Termine (nach Maßnahme)]]),0,\n    VLOOKUP(Risikoregister[[#This Row],[Auswirkung Termine (nach Maßnahme)]],Tab_Auswirkung[],5,FALSE)\n  ),\n  IF(ISBLANK(Risikoregister[[#This Row],[Auswirkung Leistung (nach Maßnahme)]]),0,\n    VLOOKUP(Risikoregister[[#This Row],[Auswirkung Leistung (nach Maßnahme)]],Tab_Auswirkung[],5,FALSE)\n  ),\n)","v":0},{"$f":"IF(Risikoregister[[#This Row],[A. num Portfolio Hilfswert  (vor Maßnahme)]]=0,#N/A,Risikoregister[[#This Row],[A. num Portfolio Hilfswert  (vor Maßnahme)]]+Versatz_Portfolio)","v":{"$error":"#N/A"}},{"$f":"IFERROR(VLOOKUP(Risikoregister[[#This Row],[Wahrscheinlichkeit* (nach Maßnahme)]],Tab_Wahrscheinlichkeit[],5,FALSE)+Versatz_Portfolio,#N/A)","v":{"$error":"#N/A"}},{"$f":"IF(Risikoregister[[#This Row],[A. num Portfolio Hilfswert  (nach Maßnahme)]]=0,#N/A,Risikoregister[[#This Row],[A. num Portfolio Hilfswert  (nach Maßnahme)]]+Versatz_Portfolio)","v":{"$error":"#N/A"}},{"$f":"IF(Risikoregister[[#This Row],[Maßnahmen-Status]]=Planung!$W$9,Risikoregister[[#This Row],[W. num (nach Maßnahme)]],Risikoregister[[#This Row],[W. num Portfolio (vor Maßnahme)]])","v":{"$error":"#N/A"}},{"$f":"IF(Risikoregister[[#This Row],[Maßnahmen-Status]]=Planung!$W$9,Risikoregister[[#This Row],[A. num (nach Maßnahme)2]],Risikoregister[[#This Row],[A. num Portfolio (vor Maßnahme)]])","v":{"$error":"#N/A"}},null,{"$f":"VLOOKUP(Risikoregister[[#This Row],[Zeitraum von]],Zeiträume[],2,FALSE)","v":{"$error":"#N/A"}},{"$f":"IF(ISBLANK(Risikoregister[[#This Row],[Zeitraum bis]]),Risikoregister[[#This Row],[Zeitraum von num]],VLOOKUP(Risikoregister[[#This Row],[Zeitraum bis]],Zeiträume[],2,FALSE))","v":{"$error":"#N/A"}},{"$f":"IFERROR(IF(AND(Risikoregister[[#This Row],[Zeitraum von num]]<=1,1<=Risikoregister[[#This Row],[Zeitraum bis num]]),Risikoregister[[#This Row],[Risikowert (in Punkten)]],0),\"\")","v":""},{"$f":"IFERROR(IF(AND(Risikoregister[[#This Row],[Zeitraum von num]]<=2,2<=Risikoregister[[#This Row],[Zeitraum bis num]]),Risikoregister[[#This Row],[Risikowert (in Punkten)]],0),\"\")","v":""},{"$f":"IFERROR(IF(AND(Risikoregister[[#This Row],[Zeitraum von num]]<=3,3<=Risikoregister[[#This Row],[Zeitraum bis num]]),Risikoregister[[#This Row],[Risikowert (in Punkten)]],0),\"\")","v":""},{"$f":"IFERROR(IF(AND(Risikoregister[[#This Row],[Zeitraum von num]]<=4,4<=Risikoregister[[#This Row],[Zeitraum bis num]]),Risikoregister[[#This Row],[Risikowert (in Punkten)]],0),\"\")","v":""},{"$f":"IFERROR(IF(AND(Risikoregister[[#This Row],[Zeitraum von num]]<=5,5<=Risikoregister[[#This Row],[Zeitraum bis num]]),Risikoregister[[#This Row],[Risikowert (in Punkten)]],0),\"\")","v":""},{"$f":"IFERROR(IF(AND(Risikoregister[[#This Row],[Zeitraum von num]]<=6,6<=Risikoregister[[#This Row],[Zeitraum bis num]]),Risikoregister[[#This Row],[Risikowert (in Punkten)]],0),\"\")","v":""},{"$f":"IFERROR(IF(AND(Risikoregister[[#This Row],[Zeitraum von num]]<=7,7<=Risikoregister[[#This Row],[Zeitraum bis num]]),Risikoregister[[#This Row],[Risikowert (in Punkten)]],0),\"\")","v":""},{"$f":"IFERROR(IF(AND(Risikoregister[[#This Row],[Zeitraum von num]]<=8,8<=Risikoregister[[#This Row],[Zeitraum bis num]]),Risikoregister[[#This Row],[Risikowert (in Punkten)]],0),\"\")","v":""},{"$f":"IFERROR(IF(AND(Risikoregister[[#This Row],[Zeitraum von num]]<=9,9<=Risikoregister[[#This Row],[Zeitraum bis num]]),Risikoregister[[#This Row],[Risikowert (in Punkten)]],0),\"\")","v":""}]
[null,null,null,null,null,null,null,null,null,null,null,null,null,null,null,null,null,null,{"$f":"IFERROR(Risikoregister[[#This Row],[W. num (vor Maßnahme)]]*Risikoregister[[#This Row],[A. num (vor Maßnahme)]],#N/A)","v":{"$error":"#N/A"}},null,null,null,null,null,{"$f":"IFERROR(Risikoregister[[#This Row],[Wahrscheinlichkeit quant. (vor Maßnahme)]]*Risikoregister[[#This Row],[Auswirkung Kosten quant.]],#N/A)","v":0},null,null,null,null,null,null,null,null,null,{"$f":"IFERROR(VLOOKUP(Risikoregister[[#This Row],[Wahrscheinlichkeit* (nach Maßnahme)]],Tab_Wahrscheinlichkeit[],7,0)*Risikoregister[[#This Row],[A. num (nach Maßnahme)]],#N/A)","v":{"$error":"#N/A"}},{"$f":"IFERROR(VLOOKUP(Risikoregister[[#This Row],[Wahrscheinlichkeit* (nach Maßnahme)]],Tab_Wahrscheinlichkeit[],6,0)*Risikoregister[[#This Row],[Auswirkung Kosten quant.]],#N/A)","v":{"$error":"#N/A"}},null,null,null,null,null,null,{"$f":"IFERROR(VLOOKUP(Risikoregister[[#This Row],[Wahrscheinlichkeit qual. (vor Maßnahme)]],Tab_Wahrscheinlichkeit[],7,FALSE),#N/A)","v":{"$error":"#N/A"}},{"$f":"IFERROR(VLOOKUP(Risikoregister[[#This Row],[Wahrscheinlichkeit qual. (vor Maßnahme)]],Tab_Wahrscheinlichkeit[],5,FALSE)+Versatz_Portfolio,#N/A)","v":{"$error":"#N/A"}},{"$f":"MAX(\n  IF(ISBLANK(Risikoregister[[#This Row],[Auswirkung Kosten qual. (vor Maßnahme)]]),0,\n    VLOOKUP(Risikoregister[[#This Row],[Auswirkung Kosten qual. (vor Maßnahme)]],Tab_Auswirkung[],6,FALSE)\n  ),\n  IF(ISBLANK(Risikoregister[[#This Row],[Auswirkung Termine  qual.  (vor Maßnahme)]]),0,\n    VLOOKUP(Risikoregister[[#This Row],[Auswirkung Termine  qual.  (vor Maßnahme)]],Tab_Auswirkung[],6,FALSE)\n  ),\n  IF(ISBLANK(Risikoregister[[#This Row],[Auswirkung Leistung  qual.  (vor Maßnahme)]]),0,\n    VLOOKUP(Risikoregister[[#This Row],[Auswirkung Leistung  qual.  (vor Maßnahme)]],Tab_Auswirkung[],6,FALSE)\n  ),\n)","v":0},{"$f":"MAX(\n  IF(ISBLANK(Risikoregister[[#This Row],[Auswirkung Kosten (nach Maßnahme)]]),0,\n    VLOOKUP(Risikoregister[[#This Row],[Auswirkung Kosten (nach Maßnahme)]],Tab_Auswirkung[],6,FALSE)\n  ),\n  IF(ISBLANK(Risikoregister[[#This Row],[Auswirkung Termine (nach Maßnahme)]]),0,\n    VLOOKUP(Risikoregister[[#This Row],[Auswirkung Termine (nach Maßnahme)]],Tab_Auswirkung[],6,FALSE)\n  ),\n  IF(ISBLANK(Risikoregister[[#This Row],[Auswirkung Leistung (nach Maßnahme)]]),0,\n    VLOOKUP(Risikoregister[[#This Row],[Auswirkung Leistung (nach Maßnahme)]],Tab_Auswirkung[],6,FALSE)\n  ),\n)","v":0},{"$f":"MAX(\n  IF(ISBLANK(Risikoregister[[#This Row],[Auswirkung Kosten qual. (vor Maßnahme)]]),0,\n    VLOOKUP(Risikoregister[[#This Row],[Auswirkung Kosten qual. (vor Maßnahme)]],Tab_Auswirkung[],5,FALSE)\n  ),\n  IF(ISBLANK(Risikoregister[[#This Row],[Auswirkung Termine  qual.  (vor Maßnahme)]]),0,\n    VLOOKUP(Risikoregister[[#This Row],[Auswirkung Termine  qual.  (vor Maßnahme)]],Tab_Auswirkung[],5,FALSE)\n  ),\n  IF(ISBLANK(Risikoregister[[#This Row],[Auswirkung Leistung  qual.  (vor Maßnahme)]]),0,\n    VLOOKUP(Risikoregister[[#This Row],[Auswirkung Leistung  qual.  (vor Maßnahme)]],Tab_Auswirkung[],5,FALSE)\n  ),\n)","v":0},{"$f":"MAX(\n  IF(ISBLANK(Risikoregister[[#This Row],[Auswirkung Kosten (nach Maßnahme)]]),0,\n    VLOOKUP(Risikoregister[[#This Row],[Auswirkung Kosten (nach Maßnahme)]],Tab_Auswirkung[],5,FALSE)\n  ),\n  IF(ISBLANK(Risikoregister[[#This Row],[Auswirkung Termine (nach Maßnahme)]]),0,\n    VLOOKUP(Risikoregister[[#This Row],[Auswirkung Termine (nach Maßnahme)]],Tab_Auswirkung[],5,FALSE)\n  ),\n  IF(ISBLANK(Risikoregister[[#This Row],[Auswirkung Leistung (nach Maßnahme)]]),0,\n    VLOOKUP(Risikoregister[[#This Row],[Auswirkung Leistung (nach Maßnahme)]],Tab_Auswirkung[],5,FALSE)\n  ),\n)","v":0},{"$f":"IF(Risikoregister[[#This Row],[A. num Portfolio Hilfswert  (vor Maßnahme)]]=0,#N/A,Risikoregister[[#This Row],[A. num Portfolio Hilfswert  (vor Maßnahme)]]+Versatz_Portfolio)","v":{"$error":"#N/A"}},{"$f":"IFERROR(VLOOKUP(Risikoregister[[#This Row],[Wahrscheinlichkeit* (nach Maßnahme)]],Tab_Wahrscheinlichkeit[],5,FALSE)+Versatz_Portfolio,#N/A)","v":{"$error":"#N/A"}},{"$f":"IF(Risikoregister[[#This Row],[A. num Portfolio Hilfswert  (nach Maßnahme)]]=0,#N/A,Risikoregister[[#This Row],[A. num Portfolio Hilfswert  (nach Maßnahme)]]+Versatz_Portfolio)","v":{"$error":"#N/A"}},{"$f":"IF(Risikoregister[[#This Row],[Maßnahmen-Status]]=Planung!$W$9,Risikoregister[[#This Row],[W. num (nach Maßnahme)]],Risikoregister[[#This Row],[W. num Portfolio (vor Maßnahme)]])","v":{"$error":"#N/A"}},{"$f":"IF(Risikoregister[[#This Row],[Maßnahmen-Status]]=Planung!$W$9,Risikoregister[[#This Row],[A. num (nach Maßnahme)2]],Risikoregister[[#This Row],[A. num Portfolio (vor Maßnahme)]])","v":{"$error":"#N/A"}},null,{"$f":"VLOOKUP(Risikoregister[[#This Row],[Zeitraum von]],Zeiträume[],2,FALSE)","v":{"$error":"#N/A"}},{"$f":"IF(ISBLANK(Risikoregister[[#This Row],[Zeitraum bis]]),Risikoregister[[#This Row],[Zeitraum von num]],VLOOKUP(Risikoregister[[#This Row],[Zeitraum bis]],Zeiträume[],2,FALSE))","v":{"$error":"#N/A"}},{"$f":"IFERROR(IF(AND(Risikoregister[[#This Row],[Zeitraum von num]]<=1,1<=Risikoregister[[#This Row],[Zeitraum bis num]]),Risikoregister[[#This Row],[Risikowert (in Punkten)]],0),\"\")","v":""},{"$f":"IFERROR(IF(AND(Risikoregister[[#This Row],[Zeitraum von num]]<=2,2<=Risikoregister[[#This Row],[Zeitraum bis num]]),Risikoregister[[#This Row],[Risikowert (in Punkten)]],0),\"\")","v":""},{"$f":"IFERROR(IF(AND(Risikoregister[[#This Row],[Zeitraum von num]]<=3,3<=Risikoregister[[#This Row],[Zeitraum bis num]]),Risikoregister[[#This Row],[Risikowert (in Punkten)]],0),\"\")","v":""},{"$f":"IFERROR(IF(AND(Risikoregister[[#This Row],[Zeitraum von num]]<=4,4<=Risikoregister[[#This Row],[Zeitraum bis num]]),Risikoregister[[#This Row],[Risikowert (in Punkten)]],0),\"\")","v":""},{"$f":"IFERROR(IF(AND(Risikoregister[[#This Row],[Zeitraum von num]]<=5,5<=Risikoregister[[#This Row],[Zeitraum bis num]]),Risikoregister[[#This Row],[Risikowert (in Punkten)]],0),\"\")","v":""},{"$f":"IFERROR(IF(AND(Risikoregister[[#This Row],[Zeitraum von num]]<=6,6<=Risikoregister[[#This Row],[Zeitraum bis num]]),Risikoregister[[#This Row],[Risikowert (in Punkten)]],0),\"\")","v":""},{"$f":"IFERROR(IF(AND(Risikoregister[[#This Row],[Zeitraum von num]]<=7,7<=Risikoregister[[#This Row],[Zeitraum bis num]]),Risikoregister[[#This Row],[Risikowert (in Punkten)]],0),\"\")","v":""},{"$f":"IFERROR(IF(AND(Risikoregister[[#This Row],[Zeitraum von num]]<=8,8<=Risikoregister[[#This Row],[Zeitraum bis num]]),Risikoregister[[#This Row],[Risikowert (in Punkten)]],0),\"\")","v":""},{"$f":"IFERROR(IF(AND(Risikoregister[[#This Row],[Zeitraum von num]]<=9,9<=Risikoregister[[#This Row],[Zeitraum bis num]]),Risikoregister[[#This Row],[Risikowert (in Punkten)]],0),\"\")","v":""}]
[null,null,null,null,null,null,null,null,null,null,null,null,null,null,null,null,null,null,{"$f":"IFERROR(Risikoregister[[#This Row],[W. num (vor Maßnahme)]]*Risikoregister[[#This Row],[A. num (vor Maßnahme)]],#N/A)","v":{"$error":"#N/A"}},null,null,null,null,null,{"$f":"IFERROR(Risikoregister[[#This Row],[Wahrscheinlichkeit quant. (vor Maßnahme)]]*Risikoregister[[#This Row],[Auswirkung Kosten quant.]],#N/A)","v":0},null,null,null,null,null,null,null,null,null,{"$f":"IFERROR(VLOOKUP(Risikoregister[[#This Row],[Wahrscheinlichkeit* (nach Maßnahme)]],Tab_Wahrscheinlichkeit[],7,0)*Risikoregister[[#This Row],[A. num (nach Maßnahme)]],#N/A)","v":{"$error":"#N/A"}},{"$f":"IFERROR(VLOOKUP(Risikoregister[[#This Row],[Wahrscheinlichkeit* (nach Maßnahme)]],Tab_Wahrscheinlichkeit[],6,0)*Risikoregister[[#This Row],[Auswirkung Kosten quant.]],#N/A)","v":{"$error":"#N/A"}},null,null,null,null,null,null,{"$f":"IFERROR(VLOOKUP(Risikoregister[[#This Row],[Wahrscheinlichkeit qual. (vor Maßnahme)]],Tab_Wahrscheinlichkeit[],7,FALSE),#N/A)","v":{"$error":"#N/A"}},{"$f":"IFERROR(VLOOKUP(Risikoregister[[#This Row],[Wahrscheinlichkeit qual. (vor Maßnahme)]],Tab_Wahrscheinlichkeit[],5,FALSE)+Versatz_Portfolio,#N/A)","v":{"$error":"#N/A"}},{"$f":"MAX(\n  IF(ISBLANK(Risikoregister[[#This Row],[Auswirkung Kosten qual. (vor Maßnahme)]]),0,\n    VLOOKUP(Risikoregister[[#This Row],[Auswirkung Kosten qual. (vor Maßnahme)]],Tab_Auswirkung[],6,FALSE)\n  ),\n  IF(ISBLANK(Risikoregister[[#This Row],[Auswirkung Termine  qual.  (vor Maßnahme)]]),0,\n    VLOOKUP(Risikoregister[[#This Row],[Auswirkung Termine  qual.  (vor Maßnahme)]],Tab_Auswirkung[],6,FALSE)\n  ),\n  IF(ISBLANK(Risikoregister[[#This Row],[Auswirkung Leistung  qual.  (vor Maßnahme)]]),0,\n    VLOOKUP(Risikoregister[[#This Row],[Auswirkung Leistung  qual.  (vor Maßnahme)]],Tab_Auswirkung[],6,FALSE)\n  ),\n)","v":0},{"$f":"MAX(\n  IF(ISBLANK(Risikoregister[[#This Row],[Auswirkung Kosten (nach Maßnahme)]]),0,\n    VLOOKUP(Risikoregister[[#This Row],[Auswirkung Kosten (nach Maßnahme)]],Tab_Auswirkung[],6,FALSE)\n  ),\n  IF(ISBLANK(Risikoregister[[#This Row],[Auswirkung Termine (nach Maßnahme)]]),0,\n    VLOOKUP(Risikoregister[[#This Row],[Auswirkung Termine (nach Maßnahme)]],Tab_Auswirkung[],6,FALSE)\n  ),\n  IF(ISBLANK(Risikoregister[[#This Row],[Auswirkung Leistung (nach Maßnahme)]]),0,\n    VLOOKUP(Risikoregister[[#This Row],[Auswirkung Leistung (nach Maßnahme)]],Tab_Auswirkung[],6,FALSE)\n  ),\n)","v":0},{"$f":"MAX(\n  IF(ISBLANK(Risikoregister[[#This Row],[Auswirkung Kosten qual. (vor Maßnahme)]]),0,\n    VLOOKUP(Risikoregister[[#This Row],[Auswirkung Kosten qual. (vor Maßnahme)]],Tab_Auswirkung[],5,FALSE)\n  ),\n  IF(ISBLANK(Risikoregister[[#This Row],[Auswirkung Termine  qual.  (vor Maßnahme)]]),0,\n    VLOOKUP(Risikoregister[[#This Row],[Auswirkung Termine  qual.  (vor Maßnahme)]],Tab_Auswirkung[],5,FALSE)\n  ),\n  IF(ISBLANK(Risikoregister[[#This Row],[Auswirkung Leistung  qual.  (vor Maßnahme)]]),0,\n    VLOOKUP(Risikoregister[[#This Row],[Auswirkung Leistung  qual.  (vor Maßnahme)]],Tab_Auswirkung[],5,FALSE)\n  ),\n)","v":0},{"$f":"MAX(\n  IF(ISBLANK(Risikoregister[[#This Row],[Auswirkung Kosten (nach Maßnahme)]]),0,\n    VLOOKUP(Risikoregister[[#This Row],[Auswirkung Kosten (nach Maßnahme)]],Tab_Auswirkung[],5,FALSE)\n  ),\n  IF(ISBLANK(Risikoregister[[#This Row],[Auswirkung Termine (nach Maßnahme)]]),0,\n    VLOOKUP(Risikoregister[[#This Row],[Auswirkung Termine (nach Maßnahme)]],Tab_Auswirkung[],5,FALSE)\n  ),\n  IF(ISBLANK(Risikoregister[[#This Row],[Auswirkung Leistung (nach Maßnahme)]]),0,\n    VLOOKUP(Risikoregister[[#This Row],[Auswirkung Leistung (nach Maßnahme)]],Tab_Auswirkung[],5,FALSE)\n  ),\n)","v":0},{"$f":"IF(Risikoregister[[#This Row],[A. num Portfolio Hilfswert  (vor Maßnahme)]]=0,#N/A,Risikoregister[[#This Row],[A. num Portfolio Hilfswert  (vor Maßnahme)]]+Versatz_Portfolio)","v":{"$error":"#N/A"}},{"$f":"IFERROR(VLOOKUP(Risikoregister[[#This Row],[Wahrscheinlichkeit* (nach Maßnahme)]],Tab_Wahrscheinlichkeit[],5,FALSE)+Versatz_Portfolio,#N/A)","v":{"$error":"#N/A"}},{"$f":"IF(Risikoregister[[#This Row],[A. num Portfolio Hilfswert  (nach Maßnahme)]]=0,#N/A,Risikoregister[[#This Row],[A. num Portfolio Hilfswert  (nach Maßnahme)]]+Versatz_Portfolio)","v":{"$error":"#N/A"}},{"$f":"IF(Risikoregister[[#This Row],[Maßnahmen-Status]]=Planung!$W$9,Risikoregister[[#This Row],[W. num (nach Maßnahme)]],Risikoregister[[#This Row],[W. num Portfolio (vor Maßnahme)]])","v":{"$error":"#N/A"}},{"$f":"IF(Risikoregister[[#This Row],[Maßnahmen-Status]]=Planung!$W$9,Risikoregister[[#This Row],[A. num (nach Maßnahme)2]],Risikoregister[[#This Row],[A. num Portfolio (vor Maßnahme)]])","v":{"$error":"#N/A"}},null,{"$f":"VLOOKUP(Risikoregister[[#This Row],[Zeitraum von]],Zeiträume[],2,FALSE)","v":{"$error":"#N/A"}},{"$f":"IF(ISBLANK(Risikoregister[[#This Row],[Zeitraum bis]]),Risikoregister[[#This Row],[Zeitraum von num]],VLOOKUP(Risikoregister[[#This Row],[Zeitraum bis]],Zeiträume[],2,FALSE))","v":{"$error":"#N/A"}},{"$f":"IFERROR(IF(AND(Risikoregister[[#This Row],[Zeitraum von num]]<=1,1<=Risikoregister[[#This Row],[Zeitraum bis num]]),Risikoregister[[#This Row],[Risikowert (in Punkten)]],0),\"\")","v":""},{"$f":"IFERROR(IF(AND(Risikoregister[[#This Row],[Zeitraum von num]]<=2,2<=Risikoregister[[#This Row],[Zeitraum bis num]]),Risikoregister[[#This Row],[Risikowert (in Punkten)]],0),\"\")","v":""},{"$f":"IFERROR(IF(AND(Risikoregister[[#This Row],[Zeitraum von num]]<=3,3<=Risikoregister[[#This Row],[Zeitraum bis num]]),Risikoregister[[#This Row],[Risikowert (in Punkten)]],0),\"\")","v":""},{"$f":"IFERROR(IF(AND(Risikoregister[[#This Row],[Zeitraum von num]]<=4,4<=Risikoregister[[#This Row],[Zeitraum bis num]]),Risikoregister[[#This Row],[Risikowert (in Punkten)]],0),\"\")","v":""},{"$f":"IFERROR(IF(AND(Risikoregister[[#This Row],[Zeitraum von num]]<=5,5<=Risikoregister[[#This Row],[Zeitraum bis num]]),Risikoregister[[#This Row],[Risikowert (in Punkten)]],0),\"\")","v":""},{"$f":"IFERROR(IF(AND(Risikoregister[[#This Row],[Zeitraum von num]]<=6,6<=Risikoregister[[#This Row],[Zeitraum bis num]]),Risikoregister[[#This Row],[Risikowert (in Punkten)]],0),\"\")","v":""},{"$f":"IFERROR(IF(AND(Risikoregister[[#This Row],[Zeitraum von num]]<=7,7<=Risikoregister[[#This Row],[Zeitraum bis num]]),Risikoregister[[#This Row],[Risikowert (in Punkten)]],0),\"\")","v":""},{"$f":"IFERROR(IF(AND(Risikoregister[[#This Row],[Zeitraum von num]]<=8,8<=Risikoregister[[#This Row],[Zeitraum bis num]]),Risikoregister[[#This Row],[Risikowert (in Punkten)]],0),\"\")","v":""},{"$f":"IFERROR(IF(AND(Risikoregister[[#This Row],[Zeitraum von num]]<=9,9<=Risikoregister[[#This Row],[Zeitraum bis num]]),Risikoregister[[#This Row],[Risikowert (in Punkten)]],0),\"\")","v":""}]
[null,null,null,null,null,null,null,null,null,null,null,null,null,null,null,null,null,null,{"$f":"IFERROR(Risikoregister[[#This Row],[W. num (vor Maßnahme)]]*Risikoregister[[#This Row],[A. num (vor Maßnahme)]],#N/A)","v":{"$error":"#N/A"}},null,null,null,null,null,{"$f":"IFERROR(Risikoregister[[#This Row],[Wahrscheinlichkeit quant. (vor Maßnahme)]]*Risikoregister[[#This Row],[Auswirkung Kosten quant.]],#N/A)","v":0},null,null,null,null,null,null,null,null,null,{"$f":"IFERROR(VLOOKUP(Risikoregister[[#This Row],[Wahrscheinlichkeit* (nach Maßnahme)]],Tab_Wahrscheinlichkeit[],7,0)*Risikoregister[[#This Row],[A. num (nach Maßnahme)]],#N/A)","v":{"$error":"#N/A"}},{"$f":"IFERROR(VLOOKUP(Risikoregister[[#This Row],[Wahrscheinlichkeit* (nach Maßnahme)]],Tab_Wahrscheinlichkeit[],6,0)*Risikoregister[[#This Row],[Auswirkung Kosten quant.]],#N/A)","v":{"$error":"#N/A"}},null,null,null,null,null,null,{"$f":"IFERROR(VLOOKUP(Risikoregister[[#This Row],[Wahrscheinlichkeit qual. (vor Maßnahme)]],Tab_Wahrscheinlichkeit[],7,FALSE),#N/A)","v":{"$error":"#N/A"}},{"$f":"IFERROR(VLOOKUP(Risikoregister[[#This Row],[Wahrscheinlichkeit qual. (vor Maßnahme)]],Tab_Wahrscheinlichkeit[],5,FALSE)+Versatz_Portfolio,#N/A)","v":{"$error":"#N/A"}},{"$f":"MAX(\n  IF(ISBLANK(Risikoregister[[#This Row],[Auswirkung Kosten qual. (vor Maßnahme)]]),0,\n    VLOOKUP(Risikoregister[[#This Row],[Auswirkung Kosten qual. (vor Maßnahme)]],Tab_Auswirkung[],6,FALSE)\n  ),\n  IF(ISBLANK(Risikoregister[[#This Row],[Auswirkung Termine  qual.  (vor Maßnahme)]]),0,\n    VLOOKUP(Risikoregister[[#This Row],[Auswirkung Termine  qual.  (vor Maßnahme)]],Tab_Auswirkung[],6,FALSE)\n  ),\n  IF(ISBLANK(Risikoregister[[#This Row],[Auswirkung Leistung  qual.  (vor Maßnahme)]]),0,\n    VLOOKUP(Risikoregister[[#This Row],[Auswirkung Leistung  qual.  (vor Maßnahme)]],Tab_Auswirkung[],6,FALSE)\n  ),\n)","v":0},{"$f":"MAX(\n  IF(ISBLANK(Risikoregister[[#This Row],[Auswirkung Kosten (nach Maßnahme)]]),0,\n    VLOOKUP(Risikoregister[[#This Row],[Auswirkung Kosten (nach Maßnahme)]],Tab_Auswirkung[],6,FALSE)\n  ),\n  IF(ISBLANK(Risikoregister[[#This Row],[Auswirkung Termine (nach Maßnahme)]]),0,\n    VLOOKUP(Risikoregister[[#This Row],[Auswirkung Termine (nach Maßnahme)]],Tab_Auswirkung[],6,FALSE)\n  ),\n  IF(ISBLANK(Risikoregister[[#This Row],[Auswirkung Leistung (nach Maßnahme)]]),0,\n    VLOOKUP(Risikoregister[[#This Row],[Auswirkung Leistung (nach Maßnahme)]],Tab_Auswirkung[],6,FALSE)\n  ),\n)","v":0},{"$f":"MAX(\n  IF(ISBLANK(Risikoregister[[#This Row],[Auswirkung Kosten qual. (vor Maßnahme)]]),0,\n    VLOOKUP(Risikoregister[[#This Row],[Auswirkung Kosten qual. (vor Maßnahme)]],Tab_Auswirkung[],5,FALSE)\n  ),\n  IF(ISBLANK(Risikoregister[[#This Row],[Auswirkung Termine  qual.  (vor Maßnahme)]]),0,\n    VLOOKUP(Risikoregister[[#This Row],[Auswirkung Termine  qual.  (vor Maßnahme)]],Tab_Auswirkung[],5,FALSE)\n  ),\n  IF(ISBLANK(Risikoregister[[#This Row],[Auswirkung Leistung  qual.  (vor Maßnahme)]]),0,\n    VLOOKUP(Risikoregister[[#This Row],[Auswirkung Leistung  qual.  (vor Maßnahme)]],Tab_Auswirkung[],5,FALSE)\n  ),\n)","v":0},{"$f":"MAX(\n  IF(ISBLANK(Risikoregister[[#This Row],[Auswirkung Kosten (nach Maßnahme)]]),0,\n    VLOOKUP(Risikoregister[[#This Row],[Auswirkung Kosten (nach Maßnahme)]],Tab_Auswirkung[],5,FALSE)\n  ),\n  IF(ISBLANK(Risikoregister[[#This Row],[Auswirkung Termine (nach Maßnahme)]]),0,\n    VLOOKUP(Risikoregister[[#This Row],[Auswirkung Termine (nach Maßnahme)]],Tab_Auswirkung[],5,FALSE)\n  ),\n  IF(ISBLANK(Risikoregister[[#This Row],[Auswirkung Leistung (nach Maßnahme)]]),0,\n    VLOOKUP(Risikoregister[[#This Row],[Auswirkung Leistung (nach Maßnahme)]],Tab_Auswirkung[],5,FALSE)\n  ),\n)","v":0},{"$f":"IF(Risikoregister[[#This Row],[A. num Portfolio Hilfswert  (vor Maßnahme)]]=0,#N/A,Risikoregister[[#This Row],[A. num Portfolio Hilfswert  (vor Maßnahme)]]+Versatz_Portfolio)","v":{"$error":"#N/A"}},{"$f":"IFERROR(VLOOKUP(Risikoregister[[#This Row],[Wahrscheinlichkeit* (nach Maßnahme)]],Tab_Wahrscheinlichkeit[],5,FALSE)+Versatz_Portfolio,#N/A)","v":{"$error":"#N/A"}},{"$f":"IF(Risikoregister[[#This Row],[A. num Portfolio Hilfswert  (nach Maßnahme)]]=0,#N/A,Risikoregister[[#This Row],[A. num Portfolio Hilfswert  (nach Maßnahme)]]+Versatz_Portfolio)","v":{"$error":"#N/A"}},{"$f":"IF(Risikoregister[[#This Row],[Maßnahmen-Status]]=Planung!$W$9,Risikoregister[[#This Row],[W. num (nach Maßnahme)]],Risikoregister[[#This Row],[W. num Portfolio (vor Maßnahme)]])","v":{"$error":"#N/A"}},{"$f":"IF(Risikoregister[[#This Row],[Maßnahmen-Status]]=Planung!$W$9,Risikoregister[[#This Row],[A. num (nach Maßnahme)2]],Risikoregister[[#This Row],[A. num Portfolio (vor Maßnahme)]])","v":{"$error":"#N/A"}},null,{"$f":"VLOOKUP(Risikoregister[[#This Row],[Zeitraum von]],Zeiträume[],2,FALSE)","v":{"$error":"#N/A"}},{"$f":"IF(ISBLANK(Risikoregister[[#This Row],[Zeitraum bis]]),Risikoregister[[#This Row],[Zeitraum von num]],VLOOKUP(Risikoregister[[#This Row],[Zeitraum bis]],Zeiträume[],2,FALSE))","v":{"$error":"#N/A"}},{"$f":"IFERROR(IF(AND(Risikoregister[[#This Row],[Zeitraum von num]]<=1,1<=Risikoregister[[#This Row],[Zeitraum bis num]]),Risikoregister[[#This Row],[Risikowert (in Punkten)]],0),\"\")","v":""},{"$f":"IFERROR(IF(AND(Risikoregister[[#This Row],[Zeitraum von num]]<=2,2<=Risikoregister[[#This Row],[Zeitraum bis num]]),Risikoregister[[#This Row],[Risikowert (in Punkten)]],0),\"\")","v":""},{"$f":"IFERROR(IF(AND(Risikoregister[[#This Row],[Zeitraum von num]]<=3,3<=Risikoregister[[#This Row],[Zeitraum bis num]]),Risikoregister[[#This Row],[Risikowert (in Punkten)]],0),\"\")","v":""},{"$f":"IFERROR(IF(AND(Risikoregister[[#This Row],[Zeitraum von num]]<=4,4<=Risikoregister[[#This Row],[Zeitraum bis num]]),Risikoregister[[#This Row],[Risikowert (in Punkten)]],0),\"\")","v":""},{"$f":"IFERROR(IF(AND(Risikoregister[[#This Row],[Zeitraum von num]]<=5,5<=Risikoregister[[#This Row],[Zeitraum bis num]]),Risikoregister[[#This Row],[Risikowert (in Punkten)]],0),\"\")","v":""},{"$f":"IFERROR(IF(AND(Risikoregister[[#This Row],[Zeitraum von num]]<=6,6<=Risikoregister[[#This Row],[Zeitraum bis num]]),Risikoregister[[#This Row],[Risikowert (in Punkten)]],0),\"\")","v":""},{"$f":"IFERROR(IF(AND(Risikoregister[[#This Row],[Zeitraum von num]]<=7,7<=Risikoregister[[#This Row],[Zeitraum bis num]]),Risikoregister[[#This Row],[Risikowert (in Punkten)]],0),\"\")","v":""},{"$f":"IFERROR(IF(AND(Risikoregister[[#This Row],[Zeitraum von num]]<=8,8<=Risikoregister[[#This Row],[Zeitraum bis num]]),Risikoregister[[#This Row],[Risikowert (in Punkten)]],0),\"\")","v":""},{"$f":"IFERROR(IF(AND(Risikoregister[[#This Row],[Zeitraum von num]]<=9,9<=Risikoregister[[#This Row],[Zeitraum bis num]]),Risikoregister[[#This Row],[Risikowert (in Punkten)]],0),\"\")","v":""}]
[null,null,null,null,null,null,null,null,null,null,null,null,null,null,null,null,null,null,{"$f":"IFERROR(Risikoregister[[#This Row],[W. num (vor Maßnahme)]]*Risikoregister[[#This Row],[A. num (vor Maßnahme)]],#N/A)","v":{"$error":"#N/A"}},null,null,null,null,null,{"$f":"IFERROR(Risikoregister[[#This Row],[Wahrscheinlichkeit quant. (vor Maßnahme)]]*Risikoregister[[#This Row],[Auswirkung Kosten quant.]],#N/A)","v":0},null,null,null,null,null,null,null,null,null,{"$f":"IFERROR(VLOOKUP(Risikoregister[[#This Row],[Wahrscheinlichkeit* (nach Maßnahme)]],Tab_Wahrscheinlichkeit[],7,0)*Risikoregister[[#This Row],[A. num (nach Maßnahme)]],#N/A)","v":{"$error":"#N/A"}},{"$f":"IFERROR(VLOOKUP(Risikoregister[[#This Row],[Wahrscheinlichkeit* (nach Maßnahme)]],Tab_Wahrscheinlichkeit[],6,0)*Risikoregister[[#This Row],[Auswirkung Kosten quant.]],#N/A)","v":{"$error":"#N/A"}},null,null,null,null,null,null,{"$f":"IFERROR(VLOOKUP(Risikoregister[[#This Row],[Wahrscheinlichkeit qual. (vor Maßnahme)]],Tab_Wahrscheinlichkeit[],7,FALSE),#N/A)","v":{"$error":"#N/A"}},{"$f":"IFERROR(VLOOKUP(Risikoregister[[#This Row],[Wahrscheinlichkeit qual. (vor Maßnahme)]],Tab_Wahrscheinlichkeit[],5,FALSE)+Versatz_Portfolio,#N/A)","v":{"$error":"#N/A"}},{"$f":"MAX(\n  IF(ISBLANK(Risikoregister[[#This Row],[Auswirkung Kosten qual. (vor Maßnahme)]]),0,\n    VLOOKUP(Risikoregister[[#This Row],[Auswirkung Kosten qual. (vor Maßnahme)]],Tab_Auswirkung[],6,FALSE)\n  ),\n  IF(ISBLANK(Risikoregister[[#This Row],[Auswirkung Termine  qual.  (vor Maßnahme)]]),0,\n    VLOOKUP(Risikoregister[[#This Row],[Auswirkung Termine  qual.  (vor Maßnahme)]],Tab_Auswirkung[],6,FALSE)\n  ),\n  IF(ISBLANK(Risikoregister[[#This Row],[Auswirkung Leistung  qual.  (vor Maßnahme)]]),0,\n    VLOOKUP(Risikoregister[[#This Row],[Auswirkung Leistung  qual.  (vor Maßnahme)]],Tab_Auswirkung[],6,FALSE)\n  ),\n)","v":0},{"$f":"MAX(\n  IF(ISBLANK(Risikoregister[[#This Row],[Auswirkung Kosten (nach Maßnahme)]]),0,\n    VLOOKUP(Risikoregister[[#This Row],[Auswirkung Kosten (nach Maßnahme)]],Tab_Auswirkung[],6,FALSE)\n  ),\n  IF(ISBLANK(Risikoregister[[#This Row],[Auswirkung Termine (nach Maßnahme)]]),0,\n    VLOOKUP(Risikoregister[[#This Row],[Auswirkung Termine (nach Maßnahme)]],Tab_Auswirkung[],6,FALSE)\n  ),\n  IF(ISBLANK(Risikoregister[[#This Row],[Auswirkung Leistung (nach Maßnahme)]]),0,\n    VLOOKUP(Risikoregister[[#This Row],[Auswirkung Leistung (nach Maßnahme)]],Tab_Auswirkung[],6,FALSE)\n  ),\n)","v":0},{"$f":"MAX(\n  IF(ISBLANK(Risikoregister[[#This Row],[Auswirkung Kosten qual. (vor Maßnahme)]]),0,\n    VLOOKUP(Risikoregister[[#This Row],[Auswirkung Kosten qual. (vor Maßnahme)]],Tab_Auswirkung[],5,FALSE)\n  ),\n  IF(ISBLANK(Risikoregister[[#This Row],[Auswirkung Termine  qual.  (vor Maßnahme)]]),0,\n    VLOOKUP(Risikoregister[[#This Row],[Auswirkung Termine  qual.  (vor Maßnahme)]],Tab_Auswirkung[],5,FALSE)\n  ),\n  IF(ISBLANK(Risikoregister[[#This Row],[Auswirkung Leistung  qual.  (vor Maßnahme)]]),0,\n    VLOOKUP(Risikoregister[[#This Row],[Auswirkung Leistung  qual.  (vor Maßnahme)]],Tab_Auswirkung[],5,FALSE)\n  ),\n)","v":0},{"$f":"MAX(\n  IF(ISBLANK(Risikoregister[[#This Row],[Auswirkung Kosten (nach Maßnahme)]]),0,\n    VLOOKUP(Risikoregister[[#This Row],[Auswirkung Kosten (nach Maßnahme)]],Tab_Auswirkung[],5,FALSE)\n  ),\n  IF(ISBLANK(Risikoregister[[#This Row],[Auswirkung Termine (nach Maßnahme)]]),0,\n    VLOOKUP(Risikoregister[[#This Row],[Auswirkung Termine (nach Maßnahme)]],Tab_Auswirkung[],5,FALSE)\n  ),\n  IF(ISBLANK(Risikoregister[[#This Row],[Auswirkung Leistung (nach Maßnahme)]]),0,\n    VLOOKUP(Risikoregister[[#This Row],[Auswirkung Leistung (nach Maßnahme)]],Tab_Auswirkung[],5,FALSE)\n  ),\n)","v":0},{"$f":"IF(Risikoregister[[#This Row],[A. num Portfolio Hilfswert  (vor Maßnahme)]]=0,#N/A,Risikoregister[[#This Row],[A. num Portfolio Hilfswert  (vor Maßnahme)]]+Versatz_Portfolio)","v":{"$error":"#N/A"}},{"$f":"IFERROR(VLOOKUP(Risikoregister[[#This Row],[Wahrscheinlichkeit* (nach Maßnahme)]],Tab_Wahrscheinlichkeit[],5,FALSE)+Versatz_Portfolio,#N/A)","v":{"$error":"#N/A"}},{"$f":"IF(Risikoregister[[#This Row],[A. num Portfolio Hilfswert  (nach Maßnahme)]]=0,#N/A,Risikoregister[[#This Row],[A. num Portfolio Hilfswert  (nach Maßnahme)]]+Versatz_Portfolio)","v":{"$error":"#N/A"}},{"$f":"IF(Risikoregister[[#This Row],[Maßnahmen-Status]]=Planung!$W$9,Risikoregister[[#This Row],[W. num (nach Maßnahme)]],Risikoregister[[#This Row],[W. num Portfolio (vor Maßnahme)]])","v":{"$error":"#N/A"}},{"$f":"IF(Risikoregister[[#This Row],[Maßnahmen-Status]]=Planung!$W$9,Risikoregister[[#This Row],[A. num (nach Maßnahme)2]],Risikoregister[[#This Row],[A. num Portfolio (vor Maßnahme)]])","v":{"$error":"#N/A"}},null,{"$f":"VLOOKUP(Risikoregister[[#This Row],[Zeitraum von]],Zeiträume[],2,FALSE)","v":{"$error":"#N/A"}},{"$f":"IF(ISBLANK(Risikoregister[[#This Row],[Zeitraum bis]]),Risikoregister[[#This Row],[Zeitraum von num]],VLOOKUP(Risikoregister[[#This Row],[Zeitraum bis]],Zeiträume[],2,FALSE))","v":{"$error":"#N/A"}},{"$f":"IFERROR(IF(AND(Risikoregister[[#This Row],[Zeitraum von num]]<=1,1<=Risikoregister[[#This Row],[Zeitraum bis num]]),Risikoregister[[#This Row],[Risikowert (in Punkten)]],0),\"\")","v":""},{"$f":"IFERROR(IF(AND(Risikoregister[[#This Row],[Zeitraum von num]]<=2,2<=Risikoregister[[#This Row],[Zeitraum bis num]]),Risikoregister[[#This Row],[Risikowert (in Punkten)]],0),\"\")","v":""},{"$f":"IFERROR(IF(AND(Risikoregister[[#This Row],[Zeitraum von num]]<=3,3<=Risikoregister[[#This Row],[Zeitraum bis num]]),Risikoregister[[#This Row],[Risikowert (in Punkten)]],0),\"\")","v":""},{"$f":"IFERROR(IF(AND(Risikoregister[[#This Row],[Zeitraum von num]]<=4,4<=Risikoregister[[#This Row],[Zeitraum bis num]]),Risikoregister[[#This Row],[Risikowert (in Punkten)]],0),\"\")","v":""},{"$f":"IFERROR(IF(AND(Risikoregister[[#This Row],[Zeitraum von num]]<=5,5<=Risikoregister[[#This Row],[Zeitraum bis num]]),Risikoregister[[#This Row],[Risikowert (in Punkten)]],0),\"\")","v":""},{"$f":"IFERROR(IF(AND(Risikoregister[[#This Row],[Zeitraum von num]]<=6,6<=Risikoregister[[#This Row],[Zeitraum bis num]]),Risikoregister[[#This Row],[Risikowert (in Punkten)]],0),\"\")","v":""},{"$f":"IFERROR(IF(AND(Risikoregister[[#This Row],[Zeitraum von num]]<=7,7<=Risikoregister[[#This Row],[Zeitraum bis num]]),Risikoregister[[#This Row],[Risikowert (in Punkten)]],0),\"\")","v":""},{"$f":"IFERROR(IF(AND(Risikoregister[[#This Row],[Zeitraum von num]]<=8,8<=Risikoregister[[#This Row],[Zeitraum bis num]]),Risikoregister[[#This Row],[Risikowert (in Punkten)]],0),\"\")","v":""},{"$f":"IFERROR(IF(AND(Risikoregister[[#This Row],[Zeitraum von num]]<=9,9<=Risikoregister[[#This Row],[Zeitraum bis num]]),Risikoregister[[#This Row],[Risikowert (in Punkten)]],0),\"\")","v":""}]
[null,null,null,null,null,null,null,null,null,null,null,null,null,null,null,null,null,null,{"$f":"IFERROR(Risikoregister[[#This Row],[W. num (vor Maßnahme)]]*Risikoregister[[#This Row],[A. num (vor Maßnahme)]],#N/A)","v":{"$error":"#N/A"}},null,null,null,null,null,{"$f":"IFERROR(Risikoregister[[#This Row],[Wahrscheinlichkeit quant. (vor Maßnahme)]]*Risikoregister[[#This Row],[Auswirkung Kosten quant.]],#N/A)","v":0},null,null,null,null,null,null,null,null,null,{"$f":"IFERROR(VLOOKUP(Risikoregister[[#This Row],[Wahrscheinlichkeit* (nach Maßnahme)]],Tab_Wahrscheinlichkeit[],7,0)*Risikoregister[[#This Row],[A. num (nach Maßnahme)]],#N/A)","v":{"$error":"#N/A"}},{"$f":"IFERROR(VLOOKUP(Risikoregister[[#This Row],[Wahrscheinlichkeit* (nach Maßnahme)]],Tab_Wahrscheinlichkeit[],6,0)*Risikoregister[[#This Row],[Auswirkung Kosten quant.]],#N/A)","v":{"$error":"#N/A"}},null,null,null,null,null,null,{"$f":"IFERROR(VLOOKUP(Risikoregister[[#This Row],[Wahrscheinlichkeit qual. (vor Maßnahme)]],Tab_Wahrscheinlichkeit[],7,FALSE),#N/A)","v":{"$error":"#N/A"}},{"$f":"IFERROR(VLOOKUP(Risikoregister[[#This Row],[Wahrscheinlichkeit qual. (vor Maßnahme)]],Tab_Wahrscheinlichkeit[],5,FALSE)+Versatz_Portfolio,#N/A)","v":{"$error":"#N/A"}},{"$f":"MAX(\n  IF(ISBLANK(Risikoregister[[#This Row],[Auswirkung Kosten qual. (vor Maßnahme)]]),0,\n    VLOOKUP(Risikoregister[[#This Row],[Auswirkung Kosten qual. (vor Maßnahme)]],Tab_Auswirkung[],6,FALSE)\n  ),\n  IF(ISBLANK(Risikoregister[[#This Row],[Auswirkung Termine  qual.  (vor Maßnahme)]]),0,\n    VLOOKUP(Risikoregister[[#This Row],[Auswirkung Termine  qual.  (vor Maßnahme)]],Tab_Auswirkung[],6,FALSE)\n  ),\n  IF(ISBLANK(Risikoregister[[#This Row],[Auswirkung Leistung  qual.  (vor Maßnahme)]]),0,\n    VLOOKUP(Risikoregister[[#This Row],[Auswirkung Leistung  qual.  (vor Maßnahme)]],Tab_Auswirkung[],6,FALSE)\n  ),\n)","v":0},{"$f":"MAX(\n  IF(ISBLANK(Risikoregister[[#This Row],[Auswirkung Kosten (nach Maßnahme)]]),0,\n    VLOOKUP(Risikoregister[[#This Row],[Auswirkung Kosten (nach Maßnahme)]],Tab_Auswirkung[],6,FALSE)\n  ),\n  IF(ISBLANK(Risikoregister[[#This Row],[Auswirkung Termine (nach Maßnahme)]]),0,\n    VLOOKUP(Risikoregister[[#This Row],[Auswirkung Termine (nach Maßnahme)]],Tab_Auswirkung[],6,FALSE)\n  ),\n  IF(ISBLANK(Risikoregister[[#This Row],[Auswirkung Leistung (nach Maßnahme)]]),0,\n    VLOOKUP(Risikoregister[[#This Row],[Auswirkung Leistung (nach Maßnahme)]],Tab_Auswirkung[],6,FALSE)\n  ),\n)","v":0},{"$f":"MAX(\n  IF(ISBLANK(Risikoregister[[#This Row],[Auswirkung Kosten qual. (vor Maßnahme)]]),0,\n    VLOOKUP(Risikoregister[[#This Row],[Auswirkung Kosten qual. (vor Maßnahme)]],Tab_Auswirkung[],5,FALSE)\n  ),\n  IF(ISBLANK(Risikoregister[[#This Row],[Auswirkung Termine  qual.  (vor Maßnahme)]]),0,\n    VLOOKUP(Risikoregister[[#This Row],[Auswirkung Termine  qual.  (vor Maßnahme)]],Tab_Auswirkung[],5,FALSE)\n  ),\n  IF(ISBLANK(Risikoregister[[#This Row],[Auswirkung Leistung  qual.  (vor Maßnahme)]]),0,\n    VLOOKUP(Risikoregister[[#This Row],[Auswirkung Leistung  qual.  (vor Maßnahme)]],Tab_Auswirkung[],5,FALSE)\n  ),\n)","v":0},{"$f":"MAX(\n  IF(ISBLANK(Risikoregister[[#This Row],[Auswirkung Kosten (nach Maßnahme)]]),0,\n    VLOOKUP(Risikoregister[[#This Row],[Auswirkung Kosten (nach Maßnahme)]],Tab_Auswirkung[],5,FALSE)\n  ),\n  IF(ISBLANK(Risikoregister[[#This Row],[Auswirkung Termine (nach Maßnahme)]]),0,\n    VLOOKUP(Risikoregister[[#This Row],[Auswirkung Termine (nach Maßnahme)]],Tab_Auswirkung[],5,FALSE)\n  ),\n  IF(ISBLANK(Risikoregister[[#This Row],[Auswirkung Leistung (nach Maßnahme)]]),0,\n    VLOOKUP(Risikoregister[[#This Row],[Auswirkung Leistung (nach Maßnahme)]],Tab_Auswirkung[],5,FALSE)\n  ),\n)","v":0},{"$f":"IF(Risikoregister[[#This Row],[A. num Portfolio Hilfswert  (vor Maßnahme)]]=0,#N/A,Risikoregister[[#This Row],[A. num Portfolio Hilfswert  (vor Maßnahme)]]+Versatz_Portfolio)","v":{"$error":"#N/A"}},{"$f":"IFERROR(VLOOKUP(Risikoregister[[#This Row],[Wahrscheinlichkeit* (nach Maßnahme)]],Tab_Wahrscheinlichkeit[],5,FALSE)+Versatz_Portfolio,#N/A)","v":{"$error":"#N/A"}},{"$f":"IF(Risikoregister[[#This Row],[A. num Portfolio Hilfswert  (nach Maßnahme)]]=0,#N/A,Risikoregister[[#This Row],[A. num Portfolio Hilfswert  (nach Maßnahme)]]+Versatz_Portfolio)","v":{"$error":"#N/A"}},{"$f":"IF(Risikoregister[[#This Row],[Maßnahmen-Status]]=Planung!$W$9,Risikoregister[[#This Row],[W. num (nach Maßnahme)]],Risikoregister[[#This Row],[W. num Portfolio (vor Maßnahme)]])","v":{"$error":"#N/A"}},{"$f":"IF(Risikoregister[[#This Row],[Maßnahmen-Status]]=Planung!$W$9,Risikoregister[[#This Row],[A. num (nach Maßnahme)2]],Risikoregister[[#This Row],[A. num Portfolio (vor Maßnahme)]])","v":{"$error":"#N/A"}},null,{"$f":"VLOOKUP(Risikoregister[[#This Row],[Zeitraum von]],Zeiträume[],2,FALSE)","v":{"$error":"#N/A"}},{"$f":"IF(ISBLANK(Risikoregister[[#This Row],[Zeitraum bis]]),Risikoregister[[#This Row],[Zeitraum von num]],VLOOKUP(Risikoregister[[#This Row],[Zeitraum bis]],Zeiträume[],2,FALSE))","v":{"$error":"#N/A"}},{"$f":"IFERROR(IF(AND(Risikoregister[[#This Row],[Zeitraum von num]]<=1,1<=Risikoregister[[#This Row],[Zeitraum bis num]]),Risikoregister[[#This Row],[Risikowert (in Punkten)]],0),\"\")","v":""},{"$f":"IFERROR(IF(AND(Risikoregister[[#This Row],[Zeitraum von num]]<=2,2<=Risikoregister[[#This Row],[Zeitraum bis num]]),Risikoregister[[#This Row],[Risikowert (in Punkten)]],0),\"\")","v":""},{"$f":"IFERROR(IF(AND(Risikoregister[[#This Row],[Zeitraum von num]]<=3,3<=Risikoregister[[#This Row],[Zeitraum bis num]]),Risikoregister[[#This Row],[Risikowert (in Punkten)]],0),\"\")","v":""},{"$f":"IFERROR(IF(AND(Risikoregister[[#This Row],[Zeitraum von num]]<=4,4<=Risikoregister[[#This Row],[Zeitraum bis num]]),Risikoregister[[#This Row],[Risikowert (in Punkten)]],0),\"\")","v":""},{"$f":"IFERROR(IF(AND(Risikoregister[[#This Row],[Zeitraum von num]]<=5,5<=Risikoregister[[#This Row],[Zeitraum bis num]]),Risikoregister[[#This Row],[Risikowert (in Punkten)]],0),\"\")","v":""},{"$f":"IFERROR(IF(AND(Risikoregister[[#This Row],[Zeitraum von num]]<=6,6<=Risikoregister[[#This Row],[Zeitraum bis num]]),Risikoregister[[#This Row],[Risikowert (in Punkten)]],0),\"\")","v":""},{"$f":"IFERROR(IF(AND(Risikoregister[[#This Row],[Zeitraum von num]]<=7,7<=Risikoregister[[#This Row],[Zeitraum bis num]]),Risikoregister[[#This Row],[Risikowert (in Punkten)]],0),\"\")","v":""},{"$f":"IFERROR(IF(AND(Risikoregister[[#This Row],[Zeitraum von num]]<=8,8<=Risikoregister[[#This Row],[Zeitraum bis num]]),Risikoregister[[#This Row],[Risikowert (in Punkten)]],0),\"\")","v":""},{"$f":"IFERROR(IF(AND(Risikoregister[[#This Row],[Zeitraum von num]]<=9,9<=Risikoregister[[#This Row],[Zeitraum bis num]]),Risikoregister[[#This Row],[Risikowert (in Punkten)]],0),\"\")","v":""}]
[null,null,null,null,null,null,null,null,null,null,null,null,null,null,null,null,null,null,{"$f":"IFERROR(Risikoregister[[#This Row],[W. num (vor Maßnahme)]]*Risikoregister[[#This Row],[A. num (vor Maßnahme)]],#N/A)","v":{"$error":"#N/A"}},null,null,null,null,null,{"$f":"IFERROR(Risikoregister[[#This Row],[Wahrscheinlichkeit quant. (vor Maßnahme)]]*Risikoregister[[#This Row],[Auswirkung Kosten quant.]],#N/A)","v":0},null,null,null,null,null,null,null,null,null,{"$f":"IFERROR(VLOOKUP(Risikoregister[[#This Row],[Wahrscheinlichkeit* (nach Maßnahme)]],Tab_Wahrscheinlichkeit[],7,0)*Risikoregister[[#This Row],[A. num (nach Maßnahme)]],#N/A)","v":{"$error":"#N/A"}},{"$f":"IFERROR(VLOOKUP(Risikoregister[[#This Row],[Wahrscheinlichkeit* (nach Maßnahme)]],Tab_Wahrscheinlichkeit[],6,0)*Risikoregister[[#This Row],[Auswirkung Kosten quant.]],#N/A)","v":{"$error":"#N/A"}},null,null,null,null,null,null,{"$f":"IFERROR(VLOOKUP(Risikoregister[[#This Row],[Wahrscheinlichkeit qual. (vor Maßnahme)]],Tab_Wahrscheinlichkeit[],7,FALSE),#N/A)","v":{"$error":"#N/A"}},{"$f":"IFERROR(VLOOKUP(Risikoregister[[#This Row],[Wahrscheinlichkeit qual. (vor Maßnahme)]],Tab_Wahrscheinlichkeit[],5,FALSE)+Versatz_Portfolio,#N/A)","v":{"$error":"#N/A"}},{"$f":"MAX(\n  IF(ISBLANK(Risikoregister[[#This Row],[Auswirkung Kosten qual. (vor Maßnahme)]]),0,\n    VLOOKUP(Risikoregister[[#This Row],[Auswirkung Kosten qual. (vor Maßnahme)]],Tab_Auswirkung[],6,FALSE)\n  ),\n  IF(ISBLANK(Risikoregister[[#This Row],[Auswirkung Termine  qual.  (vor Maßnahme)]]),0,\n    VLOOKUP(Risikoregister[[#This Row],[Auswirkung Termine  qual.  (vor Maßnahme)]],Tab_Auswirkung[],6,FALSE)\n  ),\n  IF(ISBLANK(Risikoregister[[#This Row],[Auswirkung Leistung  qual.  (vor Maßnahme)]]),0,\n    VLOOKUP(Risikoregister[[#This Row],[Auswirkung Leistung  qual.  (vor Maßnahme)]],Tab_Auswirkung[],6,FALSE)\n  ),\n)","v":0},{"$f":"MAX(\n  IF(ISBLANK(Risikoregister[[#This Row],[Auswirkung Kosten (nach Maßnahme)]]),0,\n    VLOOKUP(Risikoregister[[#This Row],[Auswirkung Kosten (nach Maßnahme)]],Tab_Auswirkung[],6,FALSE)\n  ),\n  IF(ISBLANK(Risikoregister[[#This Row],[Auswirkung Termine (nach Maßnahme)]]),0,\n    VLOOKUP(Risikoregister[[#This Row],[Auswirkung Termine (nach Maßnahme)]],Tab_Auswirkung[],6,FALSE)\n  ),\n  IF(ISBLANK(Risikoregister[[#This Row],[Auswirkung Leistung (nach Maßnahme)]]),0,\n    VLOOKUP(Risikoregister[[#This Row],[Auswirkung Leistung (nach Maßnahme)]],Tab_Auswirkung[],6,FALSE)\n  ),\n)","v":0},{"$f":"MAX(\n  IF(ISBLANK(Risikoregister[[#This Row],[Auswirkung Kosten qual. (vor Maßnahme)]]),0,\n    VLOOKUP(Risikoregister[[#This Row],[Auswirkung Kosten qual. (vor Maßnahme)]],Tab_Auswirkung[],5,FALSE)\n  ),\n  IF(ISBLANK(Risikoregister[[#This Row],[Auswirkung Termine  qual.  (vor Maßnahme)]]),0,\n    VLOOKUP(Risikoregister[[#This Row],[Auswirkung Termine  qual.  (vor Maßnahme)]],Tab_Auswirkung[],5,FALSE)\n  ),\n  IF(ISBLANK(Risikoregister[[#This Row],[Auswirkung Leistung  qual.  (vor Maßnahme)]]),0,\n    VLOOKUP(Risikoregister[[#This Row],[Auswirkung Leistung  qual.  (vor Maßnahme)]],Tab_Auswirkung[],5,FALSE)\n  ),\n)","v":0},{"$f":"MAX(\n  IF(ISBLANK(Risikoregister[[#This Row],[Auswirkung Kosten (nach Maßnahme)]]),0,\n    VLOOKUP(Risikoregister[[#This Row],[Auswirkung Kosten (nach Maßnahme)]],Tab_Auswirkung[],5,FALSE)\n  ),\n  IF(ISBLANK(Risikoregister[[#This Row],[Auswirkung Termine (nach Maßnahme)]]),0,\n    VLOOKUP(Risikoregister[[#This Row],[Auswirkung Termine (nach Maßnahme)]],Tab_Auswirkung[],5,FALSE)\n  ),\n  IF(ISBLANK(Risikoregister[[#This Row],[Auswirkung Leistung (nach Maßnahme)]]),0,\n    VLOOKUP(Risikoregister[[#This Row],[Auswirkung Leistung (nach Maßnahme)]],Tab_Auswirkung[],5,FALSE)\n  ),\n)","v":0},{"$f":"IF(Risikoregister[[#This Row],[A. num Portfolio Hilfswert  (vor Maßnahme)]]=0,#N/A,Risikoregister[[#This Row],[A. num Portfolio Hilfswert  (vor Maßnahme)]]+Versatz_Portfolio)","v":{"$error":"#N/A"}},{"$f":"IFERROR(VLOOKUP(Risikoregister[[#This Row],[Wahrscheinlichkeit* (nach Maßnahme)]],Tab_Wahrscheinlichkeit[],5,FALSE)+Versatz_Portfolio,#N/A)","v":{"$error":"#N/A"}},{"$f":"IF(Risikoregister[[#This Row],[A. num Portfolio Hilfswert  (nach Maßnahme)]]=0,#N/A,Risikoregister[[#This Row],[A. num Portfolio Hilfswert  (nach Maßnahme)]]+Versatz_Portfolio)","v":{"$error":"#N/A"}},{"$f":"IF(Risikoregister[[#This Row],[Maßnahmen-Status]]=Planung!$W$9,Risikoregister[[#This Row],[W. num (nach Maßnahme)]],Risikoregister[[#This Row],[W. num Portfolio (vor Maßnahme)]])","v":{"$error":"#N/A"}},{"$f":"IF(Risikoregister[[#This Row],[Maßnahmen-Status]]=Planung!$W$9,Risikoregister[[#This Row],[A. num (nach Maßnahme)2]],Risikoregister[[#This Row],[A. num Portfolio (vor Maßnahme)]])","v":{"$error":"#N/A"}},null,{"$f":"VLOOKUP(Risikoregister[[#This Row],[Zeitraum von]],Zeiträume[],2,FALSE)","v":{"$error":"#N/A"}},{"$f":"IF(ISBLANK(Risikoregister[[#This Row],[Zeitraum bis]]),Risikoregister[[#This Row],[Zeitraum von num]],VLOOKUP(Risikoregister[[#This Row],[Zeitraum bis]],Zeiträume[],2,FALSE))","v":{"$error":"#N/A"}},{"$f":"IFERROR(IF(AND(Risikoregister[[#This Row],[Zeitraum von num]]<=1,1<=Risikoregister[[#This Row],[Zeitraum bis num]]),Risikoregister[[#This Row],[Risikowert (in Punkten)]],0),\"\")","v":""},{"$f":"IFERROR(IF(AND(Risikoregister[[#This Row],[Zeitraum von num]]<=2,2<=Risikoregister[[#This Row],[Zeitraum bis num]]),Risikoregister[[#This Row],[Risikowert (in Punkten)]],0),\"\")","v":""},{"$f":"IFERROR(IF(AND(Risikoregister[[#This Row],[Zeitraum von num]]<=3,3<=Risikoregister[[#This Row],[Zeitraum bis num]]),Risikoregister[[#This Row],[Risikowert (in Punkten)]],0),\"\")","v":""},{"$f":"IFERROR(IF(AND(Risikoregister[[#This Row],[Zeitraum von num]]<=4,4<=Risikoregister[[#This Row],[Zeitraum bis num]]),Risikoregister[[#This Row],[Risikowert (in Punkten)]],0),\"\")","v":""},{"$f":"IFERROR(IF(AND(Risikoregister[[#This Row],[Zeitraum von num]]<=5,5<=Risikoregister[[#This Row],[Zeitraum bis num]]),Risikoregister[[#This Row],[Risikowert (in Punkten)]],0),\"\")","v":""},{"$f":"IFERROR(IF(AND(Risikoregister[[#This Row],[Zeitraum von num]]<=6,6<=Risikoregister[[#This Row],[Zeitraum bis num]]),Risikoregister[[#This Row],[Risikowert (in Punkten)]],0),\"\")","v":""},{"$f":"IFERROR(IF(AND(Risikoregister[[#This Row],[Zeitraum von num]]<=7,7<=Risikoregister[[#This Row],[Zeitraum bis num]]),Risikoregister[[#This Row],[Risikowert (in Punkten)]],0),\"\")","v":""},{"$f":"IFERROR(IF(AND(Risikoregister[[#This Row],[Zeitraum von num]]<=8,8<=Risikoregister[[#This Row],[Zeitraum bis num]]),Risikoregister[[#This Row],[Risikowert (in Punkten)]],0),\"\")","v":""},{"$f":"IFERROR(IF(AND(Risikoregister[[#This Row],[Zeitraum von num]]<=9,9<=Risikoregister[[#This Row],[Zeitraum bis num]]),Risikoregister[[#This Row],[Risikowert (in Punkten)]],0),\"\")","v":""}]
[null,null,null,null,null,null,null,null,null,null,null,null,null,null,null,null,null,null,{"$f":"IFERROR(Risikoregister[[#This Row],[W. num (vor Maßnahme)]]*Risikoregister[[#This Row],[A. num (vor Maßnahme)]],#N/A)","v":{"$error":"#N/A"}},null,null,null,null,null,{"$f":"IFERROR(Risikoregister[[#This Row],[Wahrscheinlichkeit quant. (vor Maßnahme)]]*Risikoregister[[#This Row],[Auswirkung Kosten quant.]],#N/A)","v":0},null,null,null,null,null,null,null,null,null,{"$f":"IFERROR(VLOOKUP(Risikoregister[[#This Row],[Wahrscheinlichkeit* (nach Maßnahme)]],Tab_Wahrscheinlichkeit[],7,0)*Risikoregister[[#This Row],[A. num (nach Maßnahme)]],#N/A)","v":{"$error":"#N/A"}},{"$f":"IFERROR(VLOOKUP(Risikoregister[[#This Row],[Wahrscheinlichkeit* (nach Maßnahme)]],Tab_Wahrscheinlichkeit[],6,0)*Risikoregister[[#This Row],[Auswirkung Kosten quant.]],#N/A)","v":{"$error":"#N/A"}},null,null,null,null,null,null,{"$f":"IFERROR(VLOOKUP(Risikoregister[[#This Row],[Wahrscheinlichkeit qual. (vor Maßnahme)]],Tab_Wahrscheinlichkeit[],7,FALSE),#N/A)","v":{"$error":"#N/A"}},{"$f":"IFERROR(VLOOKUP(Risikoregister[[#This Row],[Wahrscheinlichkeit qual. (vor Maßnahme)]],Tab_Wahrscheinlichkeit[],5,FALSE)+Versatz_Portfolio,#N/A)","v":{"$error":"#N/A"}},{"$f":"MAX(\n  IF(ISBLANK(Risikoregister[[#This Row],[Auswirkung Kosten qual. (vor Maßnahme)]]),0,\n    VLOOKUP(Risikoregister[[#This Row],[Auswirkung Kosten qual. (vor Maßnahme)]],Tab_Auswirkung[],6,FALSE)\n  ),\n  IF(ISBLANK(Risikoregister[[#This Row],[Auswirkung Termine  qual.  (vor Maßnahme)]]),0,\n    VLOOKUP(Risikoregister[[#This Row],[Auswirkung Termine  qual.  (vor Maßnahme)]],Tab_Auswirkung[],6,FALSE)\n  ),\n  IF(ISBLANK(Risikoregister[[#This Row],[Auswirkung Leistung  qual.  (vor Maßnahme)]]),0,\n    VLOOKUP(Risikoregister[[#This Row],[Auswirkung Leistung  qual.  (vor Maßnahme)]],Tab_Auswirkung[],6,FALSE)\n  ),\n)","v":0},{"$f":"MAX(\n  IF(ISBLANK(Risikoregister[[#This Row],[Auswirkung Kosten (nach Maßnahme)]]),0,\n    VLOOKUP(Risikoregister[[#This Row],[Auswirkung Kosten (nach Maßnahme)]],Tab_Auswirkung[],6,FALSE)\n  ),\n  IF(ISBLANK(Risikoregister[[#This Row],[Auswirkung Termine (nach Maßnahme)]]),0,\n    VLOOKUP(Risikoregister[[#This Row],[Auswirkung Termine (nach Maßnahme)]],Tab_Auswirkung[],6,FALSE)\n  ),\n  IF(ISBLANK(Risikoregister[[#This Row],[Auswirkung Leistung (nach Maßnahme)]]),0,\n    VLOOKUP(Risikoregister[[#This Row],[Auswirkung Leistung (nach Maßnahme)]],Tab_Auswirkung[],6,FALSE)\n  ),\n)","v":0},{"$f":"MAX(\n  IF(ISBLANK(Risikoregister[[#This Row],[Auswirkung Kosten qual. (vor Maßnahme)]]),0,\n    VLOOKUP(Risikoregister[[#This Row],[Auswirkung Kosten qual. (vor Maßnahme)]],Tab_Auswirkung[],5,FALSE)\n  ),\n  IF(ISBLANK(Risikoregister[[#This Row],[Auswirkung Termine  qual.  (vor Maßnahme)]]),0,\n    VLOOKUP(Risikoregister[[#This Row],[Auswirkung Termine  qual.  (vor Maßnahme)]],Tab_Auswirkung[],5,FALSE)\n  ),\n  IF(ISBLANK(Risikoregister[[#This Row],[Auswirkung Leistung  qual.  (vor Maßnahme)]]),0,\n    VLOOKUP(Risikoregister[[#This Row],[Auswirkung Leistung  qual.  (vor Maßnahme)]],Tab_Auswirkung[],5,FALSE)\n  ),\n)","v":0},{"$f":"MAX(\n  IF(ISBLANK(Risikoregister[[#This Row],[Auswirkung Kosten (nach Maßnahme)]]),0,\n    VLOOKUP(Risikoregister[[#This Row],[Auswirkung Kosten (nach Maßnahme)]],Tab_Auswirkung[],5,FALSE)\n  ),\n  IF(ISBLANK(Risikoregister[[#This Row],[Auswirkung Termine (nach Maßnahme)]]),0,\n    VLOOKUP(Risikoregister[[#This Row],[Auswirkung Termine (nach Maßnahme)]],Tab_Auswirkung[],5,FALSE)\n  ),\n  IF(ISBLANK(Risikoregister[[#This Row],[Auswirkung Leistung (nach Maßnahme)]]),0,\n    VLOOKUP(Risikoregister[[#This Row],[Auswirkung Leistung (nach Maßnahme)]],Tab_Auswirkung[],5,FALSE)\n  ),\n)","v":0},{"$f":"IF(Risikoregister[[#This Row],[A. num Portfolio Hilfswert  (vor Maßnahme)]]=0,#N/A,Risikoregister[[#This Row],[A. num Portfolio Hilfswert  (vor Maßnahme)]]+Versatz_Portfolio)","v":{"$error":"#N/A"}},{"$f":"IFERROR(VLOOKUP(Risikoregister[[#This Row],[Wahrscheinlichkeit* (nach Maßnahme)]],Tab_Wahrscheinlichkeit[],5,FALSE)+Versatz_Portfolio,#N/A)","v":{"$error":"#N/A"}},{"$f":"IF(Risikoregister[[#This Row],[A. num Portfolio Hilfswert  (nach Maßnahme)]]=0,#N/A,Risikoregister[[#This Row],[A. num Portfolio Hilfswert  (nach Maßnahme)]]+Versatz_Portfolio)","v":{"$error":"#N/A"}},{"$f":"IF(Risikoregister[[#This Row],[Maßnahmen-Status]]=Planung!$W$9,Risikoregister[[#This Row],[W. num (nach Maßnahme)]],Risikoregister[[#This Row],[W. num Portfolio (vor Maßnahme)]])","v":{"$error":"#N/A"}},{"$f":"IF(Risikoregister[[#This Row],[Maßnahmen-Status]]=Planung!$W$9,Risikoregister[[#This Row],[A. num (nach Maßnahme)2]],Risikoregister[[#This Row],[A. num Portfolio (vor Maßnahme)]])","v":{"$error":"#N/A"}},null,{"$f":"VLOOKUP(Risikoregister[[#This Row],[Zeitraum von]],Zeiträume[],2,FALSE)","v":{"$error":"#N/A"}},{"$f":"IF(ISBLANK(Risikoregister[[#This Row],[Zeitraum bis]]),Risikoregister[[#This Row],[Zeitraum von num]],VLOOKUP(Risikoregister[[#This Row],[Zeitraum bis]],Zeiträume[],2,FALSE))","v":{"$error":"#N/A"}},{"$f":"IFERROR(IF(AND(Risikoregister[[#This Row],[Zeitraum von num]]<=1,1<=Risikoregister[[#This Row],[Zeitraum bis num]]),Risikoregister[[#This Row],[Risikowert (in Punkten)]],0),\"\")","v":""},{"$f":"IFERROR(IF(AND(Risikoregister[[#This Row],[Zeitraum von num]]<=2,2<=Risikoregister[[#This Row],[Zeitraum bis num]]),Risikoregister[[#This Row],[Risikowert (in Punkten)]],0),\"\")","v":""},{"$f":"IFERROR(IF(AND(Risikoregister[[#This Row],[Zeitraum von num]]<=3,3<=Risikoregister[[#This Row],[Zeitraum bis num]]),Risikoregister[[#This Row],[Risikowert (in Punkten)]],0),\"\")","v":""},{"$f":"IFERROR(IF(AND(Risikoregister[[#This Row],[Zeitraum von num]]<=4,4<=Risikoregister[[#This Row],[Zeitraum bis num]]),Risikoregister[[#This Row],[Risikowert (in Punkten)]],0),\"\")","v":""},{"$f":"IFERROR(IF(AND(Risikoregister[[#This Row],[Zeitraum von num]]<=5,5<=Risikoregister[[#This Row],[Zeitraum bis num]]),Risikoregister[[#This Row],[Risikowert (in Punkten)]],0),\"\")","v":""},{"$f":"IFERROR(IF(AND(Risikoregister[[#This Row],[Zeitraum von num]]<=6,6<=Risikoregister[[#This Row],[Zeitraum bis num]]),Risikoregister[[#This Row],[Risikowert (in Punkten)]],0),\"\")","v":""},{"$f":"IFERROR(IF(AND(Risikoregister[[#This Row],[Zeitraum von num]]<=7,7<=Risikoregister[[#This Row],[Zeitraum bis num]]),Risikoregister[[#This Row],[Risikowert (in Punkten)]],0),\"\")","v":""},{"$f":"IFERROR(IF(AND(Risikoregister[[#This Row],[Zeitraum von num]]<=8,8<=Risikoregister[[#This Row],[Zeitraum bis num]]),Risikoregister[[#This Row],[Risikowert (in Punkten)]],0),\"\")","v":""},{"$f":"IFERROR(IF(AND(Risikoregister[[#This Row],[Zeitraum von num]]<=9,9<=Risikoregister[[#This Row],[Zeitraum bis num]]),Risikoregister[[#This Row],[Risikowert (in Punkten)]],0),\"\")","v":""}]
[null,null,null,null,null,null,null,null,null,null,null,null,null,null,null,null,null,null,{"$f":"IFERROR(Risikoregister[[#This Row],[W. num (vor Maßnahme)]]*Risikoregister[[#This Row],[A. num (vor Maßnahme)]],#N/A)","v":{"$error":"#N/A"}},null,null,null,null,null,{"$f":"IFERROR(Risikoregister[[#This Row],[Wahrscheinlichkeit quant. (vor Maßnahme)]]*Risikoregister[[#This Row],[Auswirkung Kosten quant.]],#N/A)","v":0},null,null,null,null,null,null,null,null,null,{"$f":"IFERROR(VLOOKUP(Risikoregister[[#This Row],[Wahrscheinlichkeit* (nach Maßnahme)]],Tab_Wahrscheinlichkeit[],7,0)*Risikoregister[[#This Row],[A. num (nach Maßnahme)]],#N/A)","v":{"$error":"#N/A"}},{"$f":"IFERROR(VLOOKUP(Risikoregister[[#This Row],[Wahrscheinlichkeit* (nach Maßnahme)]],Tab_Wahrscheinlichkeit[],6,0)*Risikoregister[[#This Row],[Auswirkung Kosten quant.]],#N/A)","v":{"$error":"#N/A"}},null,null,null,null,null,null,{"$f":"IFERROR(VLOOKUP(Risikoregister[[#This Row],[Wahrscheinlichkeit qual. (vor Maßnahme)]],Tab_Wahrscheinlichkeit[],7,FALSE),#N/A)","v":{"$error":"#N/A"}},{"$f":"IFERROR(VLOOKUP(Risikoregister[[#This Row],[Wahrscheinlichkeit qual. (vor Maßnahme)]],Tab_Wahrscheinlichkeit[],5,FALSE)+Versatz_Portfolio,#N/A)","v":{"$error":"#N/A"}},{"$f":"MAX(\n  IF(ISBLANK(Risikoregister[[#This Row],[Auswirkung Kosten qual. (vor Maßnahme)]]),0,\n    VLOOKUP(Risikoregister[[#This Row],[Auswirkung Kosten qual. (vor Maßnahme)]],Tab_Auswirkung[],6,FALSE)\n  ),\n  IF(ISBLANK(Risikoregister[[#This Row],[Auswirkung Termine  qual.  (vor Maßnahme)]]),0,\n    VLOOKUP(Risikoregister[[#This Row],[Auswirkung Termine  qual.  (vor Maßnahme)]],Tab_Auswirkung[],6,FALSE)\n  ),\n  IF(ISBLANK(Risikoregister[[#This Row],[Auswirkung Leistung  qual.  (vor Maßnahme)]]),0,\n    VLOOKUP(Risikoregister[[#This Row],[Auswirkung Leistung  qual.  (vor Maßnahme)]],Tab_Auswirkung[],6,FALSE)\n  ),\n)","v":0},{"$f":"MAX(\n  IF(ISBLANK(Risikoregister[[#This Row],[Auswirkung Kosten (nach Maßnahme)]]),0,\n    VLOOKUP(Risikoregister[[#This Row],[Auswirkung Kosten (nach Maßnahme)]],Tab_Auswirkung[],6,FALSE)\n  ),\n  IF(ISBLANK(Risikoregister[[#This Row],[Auswirkung Termine (nach Maßnahme)]]),0,\n    VLOOKUP(Risikoregister[[#This Row],[Auswirkung Termine (nach Maßnahme)]],Tab_Auswirkung[],6,FALSE)\n  ),\n  IF(ISBLANK(Risikoregister[[#This Row],[Auswirkung Leistung (nach Maßnahme)]]),0,\n    VLOOKUP(Risikoregister[[#This Row],[Auswirkung Leistung (nach Maßnahme)]],Tab_Auswirkung[],6,FALSE)\n  ),\n)","v":0},{"$f":"MAX(\n  IF(ISBLANK(Risikoregister[[#This Row],[Auswirkung Kosten qual. (vor Maßnahme)]]),0,\n    VLOOKUP(Risikoregister[[#This Row],[Auswirkung Kosten qual. (vor Maßnahme)]],Tab_Auswirkung[],5,FALSE)\n  ),\n  IF(ISBLANK(Risikoregister[[#This Row],[Auswirkung Termine  qual.  (vor Maßnahme)]]),0,\n    VLOOKUP(Risikoregister[[#This Row],[Auswirkung Termine  qual.  (vor Maßnahme)]],Tab_Auswirkung[],5,FALSE)\n  ),\n  IF(ISBLANK(Risikoregister[[#This Row],[Auswirkung Leistung  qual.  (vor Maßnahme)]]),0,\n    VLOOKUP(Risikoregister[[#This Row],[Auswirkung Leistung  qual.  (vor Maßnahme)]],Tab_Auswirkung[],5,FALSE)\n  ),\n)","v":0},{"$f":"MAX(\n  IF(ISBLANK(Risikoregister[[#This Row],[Auswirkung Kosten (nach Maßnahme)]]),0,\n    VLOOKUP(Risikoregister[[#This Row],[Auswirkung Kosten (nach Maßnahme)]],Tab_Auswirkung[],5,FALSE)\n  ),\n  IF(ISBLANK(Risikoregister[[#This Row],[Auswirkung Termine (nach Maßnahme)]]),0,\n    VLOOKUP(Risikoregister[[#This Row],[Auswirkung Termine (nach Maßnahme)]],Tab_Auswirkung[],5,FALSE)\n  ),\n  IF(ISBLANK(Risikoregister[[#This Row],[Auswirkung Leistung (nach Maßnahme)]]),0,\n    VLOOKUP(Risikoregister[[#This Row],[Auswirkung Leistung (nach Maßnahme)]],Tab_Auswirkung[],5,FALSE)\n  ),\n)","v":0},{"$f":"IF(Risikoregister[[#This Row],[A. num Portfolio Hilfswert  (vor Maßnahme)]]=0,#N/A,Risikoregister[[#This Row],[A. num Portfolio Hilfswert  (vor Maßnahme)]]+Versatz_Portfolio)","v":{"$error":"#N/A"}},{"$f":"IFERROR(VLOOKUP(Risikoregister[[#This Row],[Wahrscheinlichkeit* (nach Maßnahme)]],Tab_Wahrscheinlichkeit[],5,FALSE)+Versatz_Portfolio,#N/A)","v":{"$error":"#N/A"}},{"$f":"IF(Risikoregister[[#This Row],[A. num Portfolio Hilfswert  (nach Maßnahme)]]=0,#N/A,Risikoregister[[#This Row],[A. num Portfolio Hilfswert  (nach Maßnahme)]]+Versatz_Portfolio)","v":{"$error":"#N/A"}},{"$f":"IF(Risikoregister[[#This Row],[Maßnahmen-Status]]=Planung!$W$9,Risikoregister[[#This Row],[W. num (nach Maßnahme)]],Risikoregister[[#This Row],[W. num Portfolio (vor Maßnahme)]])","v":{"$error":"#N/A"}},{"$f":"IF(Risikoregister[[#This Row],[Maßnahmen-Status]]=Planung!$W$9,Risikoregister[[#This Row],[A. num (nach Maßnahme)2]],Risikoregister[[#This Row],[A. num Portfolio (vor Maßnahme)]])","v":{"$error":"#N/A"}},null,{"$f":"VLOOKUP(Risikoregister[[#This Row],[Zeitraum von]],Zeiträume[],2,FALSE)","v":{"$error":"#N/A"}},{"$f":"IF(ISBLANK(Risikoregister[[#This Row],[Zeitraum bis]]),Risikoregister[[#This Row],[Zeitraum von num]],VLOOKUP(Risikoregister[[#This Row],[Zeitraum bis]],Zeiträume[],2,FALSE))","v":{"$error":"#N/A"}},{"$f":"IFERROR(IF(AND(Risikoregister[[#This Row],[Zeitraum von num]]<=1,1<=Risikoregister[[#This Row],[Zeitraum bis num]]),Risikoregister[[#This Row],[Risikowert (in Punkten)]],0),\"\")","v":""},{"$f":"IFERROR(IF(AND(Risikoregister[[#This Row],[Zeitraum von num]]<=2,2<=Risikoregister[[#This Row],[Zeitraum bis num]]),Risikoregister[[#This Row],[Risikowert (in Punkten)]],0),\"\")","v":""},{"$f":"IFERROR(IF(AND(Risikoregister[[#This Row],[Zeitraum von num]]<=3,3<=Risikoregister[[#This Row],[Zeitraum bis num]]),Risikoregister[[#This Row],[Risikowert (in Punkten)]],0),\"\")","v":""},{"$f":"IFERROR(IF(AND(Risikoregister[[#This Row],[Zeitraum von num]]<=4,4<=Risikoregister[[#This Row],[Zeitraum bis num]]),Risikoregister[[#This Row],[Risikowert (in Punkten)]],0),\"\")","v":""},{"$f":"IFERROR(IF(AND(Risikoregister[[#This Row],[Zeitraum von num]]<=5,5<=Risikoregister[[#This Row],[Zeitraum bis num]]),Risikoregister[[#This Row],[Risikowert (in Punkten)]],0),\"\")","v":""},{"$f":"IFERROR(IF(AND(Risikoregister[[#This Row],[Zeitraum von num]]<=6,6<=Risikoregister[[#This Row],[Zeitraum bis num]]),Risikoregister[[#This Row],[Risikowert (in Punkten)]],0),\"\")","v":""},{"$f":"IFERROR(IF(AND(Risikoregister[[#This Row],[Zeitraum von num]]<=7,7<=Risikoregister[[#This Row],[Zeitraum bis num]]),Risikoregister[[#This Row],[Risikowert (in Punkten)]],0),\"\")","v":""},{"$f":"IFERROR(IF(AND(Risikoregister[[#This Row],[Zeitraum von num]]<=8,8<=Risikoregister[[#This Row],[Zeitraum bis num]]),Risikoregister[[#This Row],[Risikowert (in Punkten)]],0),\"\")","v":""},{"$f":"IFERROR(IF(AND(Risikoregister[[#This Row],[Zeitraum von num]]<=9,9<=Risikoregister[[#This Row],[Zeitraum bis num]]),Risikoregister[[#This Row],[Risikowert (in Punkten)]],0),\"\")","v":""}]
[null,null,null,null,null,null,null,null,null,null,null,null,null,null,null,null,null,null,{"$f":"IFERROR(Risikoregister[[#This Row],[W. num (vor Maßnahme)]]*Risikoregister[[#This Row],[A. num (vor Maßnahme)]],#N/A)","v":{"$error":"#N/A"}},null,null,null,null,null,{"$f":"IFERROR(Risikoregister[[#This Row],[Wahrscheinlichkeit quant. (vor Maßnahme)]]*Risikoregister[[#This Row],[Auswirkung Kosten quant.]],#N/A)","v":0},null,null,null,null,null,null,null,null,null,{"$f":"IFERROR(VLOOKUP(Risikoregister[[#This Row],[Wahrscheinlichkeit* (nach Maßnahme)]],Tab_Wahrscheinlichkeit[],7,0)*Risikoregister[[#This Row],[A. num (nach Maßnahme)]],#N/A)","v":{"$error":"#N/A"}},{"$f":"IFERROR(VLOOKUP(Risikoregister[[#This Row],[Wahrscheinlichkeit* (nach Maßnahme)]],Tab_Wahrscheinlichkeit[],6,0)*Risikoregister[[#This Row],[Auswirkung Kosten quant.]],#N/A)","v":{"$error":"#N/A"}},null,null,null,null,null,null,{"$f":"IFERROR(VLOOKUP(Risikoregister[[#This Row],[Wahrscheinlichkeit qual. (vor Maßnahme)]],Tab_Wahrscheinlichkeit[],7,FALSE),#N/A)","v":{"$error":"#N/A"}},{"$f":"IFERROR(VLOOKUP(Risikoregister[[#This Row],[Wahrscheinlichkeit qual. (vor Maßnahme)]],Tab_Wahrscheinlichkeit[],5,FALSE)+Versatz_Portfolio,#N/A)","v":{"$error":"#N/A"}},{"$f":"MAX(\n  IF(ISBLANK(Risikoregister[[#This Row],[Auswirkung Kosten qual. (vor Maßnahme)]]),0,\n    VLOOKUP(Risikoregister[[#This Row],[Auswirkung Kosten qual. (vor Maßnahme)]],Tab_Auswirkung[],6,FALSE)\n  ),\n  IF(ISBLANK(Risikoregister[[#This Row],[Auswirkung Termine  qual.  (vor Maßnahme)]]),0,\n    VLOOKUP(Risikoregister[[#This Row],[Auswirkung Termine  qual.  (vor Maßnahme)]],Tab_Auswirkung[],6,FALSE)\n  ),\n  IF(ISBLANK(Risikoregister[[#This Row],[Auswirkung Leistung  qual.  (vor Maßnahme)]]),0,\n    VLOOKUP(Risikoregister[[#This Row],[Auswirkung Leistung  qual.  (vor Maßnahme)]],Tab_Auswirkung[],6,FALSE)\n  ),\n)","v":0},{"$f":"MAX(\n  IF(ISBLANK(Risikoregister[[#This Row],[Auswirkung Kosten (nach Maßnahme)]]),0,\n    VLOOKUP(Risikoregister[[#This Row],[Auswirkung Kosten (nach Maßnahme)]],Tab_Auswirkung[],6,FALSE)\n  ),\n  IF(ISBLANK(Risikoregister[[#This Row],[Auswirkung Termine (nach Maßnahme)]]),0,\n    VLOOKUP(Risikoregister[[#This Row],[Auswirkung Termine (nach Maßnahme)]],Tab_Auswirkung[],6,FALSE)\n  ),\n  IF(ISBLANK(Risikoregister[[#This Row],[Auswirkung Leistung (nach Maßnahme)]]),0,\n    VLOOKUP(Risikoregister[[#This Row],[Auswirkung Leistung (nach Maßnahme)]],Tab_Auswirkung[],6,FALSE)\n  ),\n)","v":0},{"$f":"MAX(\n  IF(ISBLANK(Risikoregister[[#This Row],[Auswirkung Kosten qual. (vor Maßnahme)]]),0,\n    VLOOKUP(Risikoregister[[#This Row],[Auswirkung Kosten qual. (vor Maßnahme)]],Tab_Auswirkung[],5,FALSE)\n  ),\n  IF(ISBLANK(Risikoregister[[#This Row],[Auswirkung Termine  qual.  (vor Maßnahme)]]),0,\n    VLOOKUP(Risikoregister[[#This Row],[Auswirkung Termine  qual.  (vor Maßnahme)]],Tab_Auswirkung[],5,FALSE)\n  ),\n  IF(ISBLANK(Risikoregister[[#This Row],[Auswirkung Leistung  qual.  (vor Maßnahme)]]),0,\n    VLOOKUP(Risikoregister[[#This Row],[Auswirkung Leistung  qual.  (vor Maßnahme)]],Tab_Auswirkung[],5,FALSE)\n  ),\n)","v":0},{"$f":"MAX(\n  IF(ISBLANK(Risikoregister[[#This Row],[Auswirkung Kosten (nach Maßnahme)]]),0,\n    VLOOKUP(Risikoregister[[#This Row],[Auswirkung Kosten (nach Maßnahme)]],Tab_Auswirkung[],5,FALSE)\n  ),\n  IF(ISBLANK(Risikoregister[[#This Row],[Auswirkung Termine (nach Maßnahme)]]),0,\n    VLOOKUP(Risikoregister[[#This Row],[Auswirkung Termine (nach Maßnahme)]],Tab_Auswirkung[],5,FALSE)\n  ),\n  IF(ISBLANK(Risikoregister[[#This Row],[Auswirkung Leistung (nach Maßnahme)]]),0,\n    VLOOKUP(Risikoregister[[#This Row],[Auswirkung Leistung (nach Maßnahme)]],Tab_Auswirkung[],5,FALSE)\n  ),\n)","v":0},{"$f":"IF(Risikoregister[[#This Row],[A. num Portfolio Hilfswert  (vor Maßnahme)]]=0,#N/A,Risikoregister[[#This Row],[A. num Portfolio Hilfswert  (vor Maßnahme)]]+Versatz_Portfolio)","v":{"$error":"#N/A"}},{"$f":"IFERROR(VLOOKUP(Risikoregister[[#This Row],[Wahrscheinlichkeit* (nach Maßnahme)]],Tab_Wahrscheinlichkeit[],5,FALSE)+Versatz_Portfolio,#N/A)","v":{"$error":"#N/A"}},{"$f":"IF(Risikoregister[[#This Row],[A. num Portfolio Hilfswert  (nach Maßnahme)]]=0,#N/A,Risikoregister[[#This Row],[A. num Portfolio Hilfswert  (nach Maßnahme)]]+Versatz_Portfolio)","v":{"$error":"#N/A"}},{"$f":"IF(Risikoregister[[#This Row],[Maßnahmen-Status]]=Planung!$W$9,Risikoregister[[#This Row],[W. num (nach Maßnahme)]],Risikoregister[[#This Row],[W. num Portfolio (vor Maßnahme)]])","v":{"$error":"#N/A"}},{"$f":"IF(Risikoregister[[#This Row],[Maßnahmen-Status]]=Planung!$W$9,Risikoregister[[#This Row],[A. num (nach Maßnahme)2]],Risikoregister[[#This Row],[A. num Portfolio (vor Maßnahme)]])","v":{"$error":"#N/A"}},null,{"$f":"VLOOKUP(Risikoregister[[#This Row],[Zeitraum von]],Zeiträume[],2,FALSE)","v":{"$error":"#N/A"}},{"$f":"IF(ISBLANK(Risikoregister[[#This Row],[Zeitraum bis]]),Risikoregister[[#This Row],[Zeitraum von num]],VLOOKUP(Risikoregister[[#This Row],[Zeitraum bis]],Zeiträume[],2,FALSE))","v":{"$error":"#N/A"}},{"$f":"IFERROR(IF(AND(Risikoregister[[#This Row],[Zeitraum von num]]<=1,1<=Risikoregister[[#This Row],[Zeitraum bis num]]),Risikoregister[[#This Row],[Risikowert (in Punkten)]],0),\"\")","v":""},{"$f":"IFERROR(IF(AND(Risikoregister[[#This Row],[Zeitraum von num]]<=2,2<=Risikoregister[[#This Row],[Zeitraum bis num]]),Risikoregister[[#This Row],[Risikowert (in Punkten)]],0),\"\")","v":""},{"$f":"IFERROR(IF(AND(Risikoregister[[#This Row],[Zeitraum von num]]<=3,3<=Risikoregister[[#This Row],[Zeitraum bis num]]),Risikoregister[[#This Row],[Risikowert (in Punkten)]],0),\"\")","v":""},{"$f":"IFERROR(IF(AND(Risikoregister[[#This Row],[Zeitraum von num]]<=4,4<=Risikoregister[[#This Row],[Zeitraum bis num]]),Risikoregister[[#This Row],[Risikowert (in Punkten)]],0),\"\")","v":""},{"$f":"IFERROR(IF(AND(Risikoregister[[#This Row],[Zeitraum von num]]<=5,5<=Risikoregister[[#This Row],[Zeitraum bis num]]),Risikoregister[[#This Row],[Risikowert (in Punkten)]],0),\"\")","v":""},{"$f":"IFERROR(IF(AND(Risikoregister[[#This Row],[Zeitraum von num]]<=6,6<=Risikoregister[[#This Row],[Zeitraum bis num]]),Risikoregister[[#This Row],[Risikowert (in Punkten)]],0),\"\")","v":""},{"$f":"IFERROR(IF(AND(Risikoregister[[#This Row],[Zeitraum von num]]<=7,7<=Risikoregister[[#This Row],[Zeitraum bis num]]),Risikoregister[[#This Row],[Risikowert (in Punkten)]],0),\"\")","v":""},{"$f":"IFERROR(IF(AND(Risikoregister[[#This Row],[Zeitraum von num]]<=8,8<=Risikoregister[[#This Row],[Zeitraum bis num]]),Risikoregister[[#This Row],[Risikowert (in Punkten)]],0),\"\")","v":""},{"$f":"IFERROR(IF(AND(Risikoregister[[#This Row],[Zeitraum von num]]<=9,9<=Risikoregister[[#This Row],[Zeitraum bis num]]),Risikoregister[[#This Row],[Risikowert (in Punkten)]],0),\"\")","v":""}]
[null,null,null,null,null,null,null,null,null,null,null,null,null,null,null,null,null,null,{"$f":"IFERROR(Risikoregister[[#This Row],[W. num (vor Maßnahme)]]*Risikoregister[[#This Row],[A. num (vor Maßnahme)]],#N/A)","v":{"$error":"#N/A"}},null,null,null,null,null,{"$f":"IFERROR(Risikoregister[[#This Row],[Wahrscheinlichkeit quant. (vor Maßnahme)]]*Risikoregister[[#This Row],[Auswirkung Kosten quant.]],#N/A)","v":0},null,null,null,null,null,null,null,null,null,{"$f":"IFERROR(VLOOKUP(Risikoregister[[#This Row],[Wahrscheinlichkeit* (nach Maßnahme)]],Tab_Wahrscheinlichkeit[],7,0)*Risikoregister[[#This Row],[A. num (nach Maßnahme)]],#N/A)","v":{"$error":"#N/A"}},{"$f":"IFERROR(VLOOKUP(Risikoregister[[#This Row],[Wahrscheinlichkeit* (nach Maßnahme)]],Tab_Wahrscheinlichkeit[],6,0)*Risikoregister[[#This Row],[Auswirkung Kosten quant.]],#N/A)","v":{"$error":"#N/A"}},null,null,null,null,null,null,{"$f":"IFERROR(VLOOKUP(Risikoregister[[#This Row],[Wahrscheinlichkeit qual. (vor Maßnahme)]],Tab_Wahrscheinlichkeit[],7,FALSE),#N/A)","v":{"$error":"#N/A"}},{"$f":"IFERROR(VLOOKUP(Risikoregister[[#This Row],[Wahrscheinlichkeit qual. (vor Maßnahme)]],Tab_Wahrscheinlichkeit[],5,FALSE)+Versatz_Portfolio,#N/A)","v":{"$error":"#N/A"}},{"$f":"MAX(\n  IF(ISBLANK(Risikoregister[[#This Row],[Auswirkung Kosten qual. (vor Maßnahme)]]),0,\n    VLOOKUP(Risikoregister[[#This Row],[Auswirkung Kosten qual. (vor Maßnahme)]],Tab_Auswirkung[],6,FALSE)\n  ),\n  IF(ISBLANK(Risikoregister[[#This Row],[Auswirkung Termine  qual.  (vor Maßnahme)]]),0,\n    VLOOKUP(Risikoregister[[#This Row],[Auswirkung Termine  qual.  (vor Maßnahme)]],Tab_Auswirkung[],6,FALSE)\n  ),\n  IF(ISBLANK(Risikoregister[[#This Row],[Auswirkung Leistung  qual.  (vor Maßnahme)]]),0,\n    VLOOKUP(Risikoregister[[#This Row],[Auswirkung Leistung  qual.  (vor Maßnahme)]],Tab_Auswirkung[],6,FALSE)\n  ),\n)","v":0},{"$f":"MAX(\n  IF(ISBLANK(Risikoregister[[#This Row],[Auswirkung Kosten (nach Maßnahme)]]),0,\n    VLOOKUP(Risikoregister[[#This Row],[Auswirkung Kosten (nach Maßnahme)]],Tab_Auswirkung[],6,FALSE)\n  ),\n  IF(ISBLANK(Risikoregister[[#This Row],[Auswirkung Termine (nach Maßnahme)]]),0,\n    VLOOKUP(Risikoregister[[#This Row],[Auswirkung Termine (nach Maßnahme)]],Tab_Auswirkung[],6,FALSE)\n  ),\n  IF(ISBLANK(Risikoregister[[#This Row],[Auswirkung Leistung (nach Maßnahme)]]),0,\n    VLOOKUP(Risikoregister[[#This Row],[Auswirkung Leistung (nach Maßnahme)]],Tab_Auswirkung[],6,FALSE)\n  ),\n)","v":0},{"$f":"MAX(\n  IF(ISBLANK(Risikoregister[[#This Row],[Auswirkung Kosten qual. (vor Maßnahme)]]),0,\n    VLOOKUP(Risikoregister[[#This Row],[Auswirkung Kosten qual. (vor Maßnahme)]],Tab_Auswirkung[],5,FALSE)\n  ),\n  IF(ISBLANK(Risikoregister[[#This Row],[Auswirkung Termine  qual.  (vor Maßnahme)]]),0,\n    VLOOKUP(Risikoregister[[#This Row],[Auswirkung Termine  qual.  (vor Maßnahme)]],Tab_Auswirkung[],5,FALSE)\n  ),\n  IF(ISBLANK(Risikoregister[[#This Row],[Auswirkung Leistung  qual.  (vor Maßnahme)]]),0,\n    VLOOKUP(Risikoregister[[#This Row],[Auswirkung Leistung  qual.  (vor Maßnahme)]],Tab_Auswirkung[],5,FALSE)\n  ),\n)","v":0},{"$f":"MAX(\n  IF(ISBLANK(Risikoregister[[#This Row],[Auswirkung Kosten (nach Maßnahme)]]),0,\n    VLOOKUP(Risikoregister[[#This Row],[Auswirkung Kosten (nach Maßnahme)]],Tab_Auswirkung[],5,FALSE)\n  ),\n  IF(ISBLANK(Risikoregister[[#This Row],[Auswirkung Termine (nach Maßnahme)]]),0,\n    VLOOKUP(Risikoregister[[#This Row],[Auswirkung Termine (nach Maßnahme)]],Tab_Auswirkung[],5,FALSE)\n  ),\n  IF(ISBLANK(Risikoregister[[#This Row],[Auswirkung Leistung (nach Maßnahme)]]),0,\n    VLOOKUP(Risikoregister[[#This Row],[Auswirkung Leistung (nach Maßnahme)]],Tab_Auswirkung[],5,FALSE)\n  ),\n)","v":0},{"$f":"IF(Risikoregister[[#This Row],[A. num Portfolio Hilfswert  (vor Maßnahme)]]=0,#N/A,Risikoregister[[#This Row],[A. num Portfolio Hilfswert  (vor Maßnahme)]]+Versatz_Portfolio)","v":{"$error":"#N/A"}},{"$f":"IFERROR(VLOOKUP(Risikoregister[[#This Row],[Wahrscheinlichkeit* (nach Maßnahme)]],Tab_Wahrscheinlichkeit[],5,FALSE)+Versatz_Portfolio,#N/A)","v":{"$error":"#N/A"}},{"$f":"IF(Risikoregister[[#This Row],[A. num Portfolio Hilfswert  (nach Maßnahme)]]=0,#N/A,Risikoregister[[#This Row],[A. num Portfolio Hilfswert  (nach Maßnahme)]]+Versatz_Portfolio)","v":{"$error":"#N/A"}},{"$f":"IF(Risikoregister[[#This Row],[Maßnahmen-Status]]=Planung!$W$9,Risikoregister[[#This Row],[W. num (nach Maßnahme)]],Risikoregister[[#This Row],[W. num Portfolio (vor Maßnahme)]])","v":{"$error":"#N/A"}},{"$f":"IF(Risikoregister[[#This Row],[Maßnahmen-Status]]=Planung!$W$9,Risikoregister[[#This Row],[A. num (nach Maßnahme)2]],Risikoregister[[#This Row],[A. num Portfolio (vor Maßnahme)]])","v":{"$error":"#N/A"}},null,{"$f":"VLOOKUP(Risikoregister[[#This Row],[Zeitraum von]],Zeiträume[],2,FALSE)","v":{"$error":"#N/A"}},{"$f":"IF(ISBLANK(Risikoregister[[#This Row],[Zeitraum bis]]),Risikoregister[[#This Row],[Zeitraum von num]],VLOOKUP(Risikoregister[[#This Row],[Zeitraum bis]],Zeiträume[],2,FALSE))","v":{"$error":"#N/A"}},{"$f":"IFERROR(IF(AND(Risikoregister[[#This Row],[Zeitraum von num]]<=1,1<=Risikoregister[[#This Row],[Zeitraum bis num]]),Risikoregister[[#This Row],[Risikowert (in Punkten)]],0),\"\")","v":""},{"$f":"IFERROR(IF(AND(Risikoregister[[#This Row],[Zeitraum von num]]<=2,2<=Risikoregister[[#This Row],[Zeitraum bis num]]),Risikoregister[[#This Row],[Risikowert (in Punkten)]],0),\"\")","v":""},{"$f":"IFERROR(IF(AND(Risikoregister[[#This Row],[Zeitraum von num]]<=3,3<=Risikoregister[[#This Row],[Zeitraum bis num]]),Risikoregister[[#This Row],[Risikowert (in Punkten)]],0),\"\")","v":""},{"$f":"IFERROR(IF(AND(Risikoregister[[#This Row],[Zeitraum von num]]<=4,4<=Risikoregister[[#This Row],[Zeitraum bis num]]),Risikoregister[[#This Row],[Risikowert (in Punkten)]],0),\"\")","v":""},{"$f":"IFERROR(IF(AND(Risikoregister[[#This Row],[Zeitraum von num]]<=5,5<=Risikoregister[[#This Row],[Zeitraum bis num]]),Risikoregister[[#This Row],[Risikowert (in Punkten)]],0),\"\")","v":""},{"$f":"IFERROR(IF(AND(Risikoregister[[#This Row],[Zeitraum von num]]<=6,6<=Risikoregister[[#This Row],[Zeitraum bis num]]),Risikoregister[[#This Row],[Risikowert (in Punkten)]],0),\"\")","v":""},{"$f":"IFERROR(IF(AND(Risikoregister[[#This Row],[Zeitraum von num]]<=7,7<=Risikoregister[[#This Row],[Zeitraum bis num]]),Risikoregister[[#This Row],[Risikowert (in Punkten)]],0),\"\")","v":""},{"$f":"IFERROR(IF(AND(Risikoregister[[#This Row],[Zeitraum von num]]<=8,8<=Risikoregister[[#This Row],[Zeitraum bis num]]),Risikoregister[[#This Row],[Risikowert (in Punkten)]],0),\"\")","v":""},{"$f":"IFERROR(IF(AND(Risikoregister[[#This Row],[Zeitraum von num]]<=9,9<=Risikoregister[[#This Row],[Zeitraum bis num]]),Risikoregister[[#This Row],[Risikowert (in Punkten)]],0),\"\")","v":""}]
[null,null,null,null,null,null,null,null,null,null,null,null,null,null,null,null,null,null,{"$f":"IFERROR(Risikoregister[[#This Row],[W. num (vor Maßnahme)]]*Risikoregister[[#This Row],[A. num (vor Maßnahme)]],#N/A)","v":{"$error":"#N/A"}},null,null,null,null,null,{"$f":"IFERROR(Risikoregister[[#This Row],[Wahrscheinlichkeit quant. (vor Maßnahme)]]*Risikoregister[[#This Row],[Auswirkung Kosten quant.]],#N/A)","v":0},null,null,null,null,null,null,null,null,null,{"$f":"IFERROR(VLOOKUP(Risikoregister[[#This Row],[Wahrscheinlichkeit* (nach Maßnahme)]],Tab_Wahrscheinlichkeit[],7,0)*Risikoregister[[#This Row],[A. num (nach Maßnahme)]],#N/A)","v":{"$error":"#N/A"}},{"$f":"IFERROR(VLOOKUP(Risikoregister[[#This Row],[Wahrscheinlichkeit* (nach Maßnahme)]],Tab_Wahrscheinlichkeit[],6,0)*Risikoregister[[#This Row],[Auswirkung Kosten quant.]],#N/A)","v":{"$error":"#N/A"}},null,null,null,null,null,null,{"$f":"IFERROR(VLOOKUP(Risikoregister[[#This Row],[Wahrscheinlichkeit qual. (vor Maßnahme)]],Tab_Wahrscheinlichkeit[],7,FALSE),#N/A)","v":{"$error":"#N/A"}},{"$f":"IFERROR(VLOOKUP(Risikoregister[[#This Row],[Wahrscheinlichkeit qual. (vor Maßnahme)]],Tab_Wahrscheinlichkeit[],5,FALSE)+Versatz_Portfolio,#N/A)","v":{"$error":"#N/A"}},{"$f":"MAX(\n  IF(ISBLANK(Risikoregister[[#This Row],[Auswirkung Kosten qual. (vor Maßnahme)]]),0,\n    VLOOKUP(Risikoregister[[#This Row],[Auswirkung Kosten qual. (vor Maßnahme)]],Tab_Auswirkung[],6,FALSE)\n  ),\n  IF(ISBLANK(Risikoregister[[#This Row],[Auswirkung Termine  qual.  (vor Maßnahme)]]),0,\n    VLOOKUP(Risikoregister[[#This Row],[Auswirkung Termine  qual.  (vor Maßnahme)]],Tab_Auswirkung[],6,FALSE)\n  ),\n  IF(ISBLANK(Risikoregister[[#This Row],[Auswirkung Leistung  qual.  (vor Maßnahme)]]),0,\n    VLOOKUP(Risikoregister[[#This Row],[Auswirkung Leistung  qual.  (vor Maßnahme)]],Tab_Auswirkung[],6,FALSE)\n  ),\n)","v":0},{"$f":"MAX(\n  IF(ISBLANK(Risikoregister[[#This Row],[Auswirkung Kosten (nach Maßnahme)]]),0,\n    VLOOKUP(Risikoregister[[#This Row],[Auswirkung Kosten (nach Maßnahme)]],Tab_Auswirkung[],6,FALSE)\n  ),\n  IF(ISBLANK(Risikoregister[[#This Row],[Auswirkung Termine (nach Maßnahme)]]),0,\n    VLOOKUP(Risikoregister[[#This Row],[Auswirkung Termine (nach Maßnahme)]],Tab_Auswirkung[],6,FALSE)\n  ),\n  IF(ISBLANK(Risikoregister[[#This Row],[Auswirkung Leistung (nach Maßnahme)]]),0,\n    VLOOKUP(Risikoregister[[#This Row],[Auswirkung Leistung (nach Maßnahme)]],Tab_Auswirkung[],6,FALSE)\n  ),\n)","v":0},{"$f":"MAX(\n  IF(ISBLANK(Risikoregister[[#This Row],[Auswirkung Kosten qual. (vor Maßnahme)]]),0,\n    VLOOKUP(Risikoregister[[#This Row],[Auswirkung Kosten qual. (vor Maßnahme)]],Tab_Auswirkung[],5,FALSE)\n  ),\n  IF(ISBLANK(Risikoregister[[#This Row],[Auswirkung Termine  qual.  (vor Maßnahme)]]),0,\n    VLOOKUP(Risikoregister[[#This Row],[Auswirkung Termine  qual.  (vor Maßnahme)]],Tab_Auswirkung[],5,FALSE)\n  ),\n  IF(ISBLANK(Risikoregister[[#This Row],[Auswirkung Leistung  qual.  (vor Maßnahme)]]),0,\n    VLOOKUP(Risikoregister[[#This Row],[Auswirkung Leistung  qual.  (vor Maßnahme)]],Tab_Auswirkung[],5,FALSE)\n  ),\n)","v":0},{"$f":"MAX(\n  IF(ISBLANK(Risikoregister[[#This Row],[Auswirkung Kosten (nach Maßnahme)]]),0,\n    VLOOKUP(Risikoregister[[#This Row],[Auswirkung Kosten (nach Maßnahme)]],Tab_Auswirkung[],5,FALSE)\n  ),\n  IF(ISBLANK(Risikoregister[[#This Row],[Auswirkung Termine (nach Maßnahme)]]),0,\n    VLOOKUP(Risikoregister[[#This Row],[Auswirkung Termine (nach Maßnahme)]],Tab_Auswirkung[],5,FALSE)\n  ),\n  IF(ISBLANK(Risikoregister[[#This Row],[Auswirkung Leistung (nach Maßnahme)]]),0,\n    VLOOKUP(Risikoregister[[#This Row],[Auswirkung Leistung (nach Maßnahme)]],Tab_Auswirkung[],5,FALSE)\n  ),\n)","v":0},{"$f":"IF(Risikoregister[[#This Row],[A. num Portfolio Hilfswert  (vor Maßnahme)]]=0,#N/A,Risikoregister[[#This Row],[A. num Portfolio Hilfswert  (vor Maßnahme)]]+Versatz_Portfolio)","v":{"$error":"#N/A"}},{"$f":"IFERROR(VLOOKUP(Risikoregister[[#This Row],[Wahrscheinlichkeit* (nach Maßnahme)]],Tab_Wahrscheinlichkeit[],5,FALSE)+Versatz_Portfolio,#N/A)","v":{"$error":"#N/A"}},{"$f":"IF(Risikoregister[[#This Row],[A. num Portfolio Hilfswert  (nach Maßnahme)]]=0,#N/A,Risikoregister[[#This Row],[A. num Portfolio Hilfswert  (nach Maßnahme)]]+Versatz_Portfolio)","v":{"$error":"#N/A"}},{"$f":"IF(Risikoregister[[#This Row],[Maßnahmen-Status]]=Planung!$W$9,Risikoregister[[#This Row],[W. num (nach Maßnahme)]],Risikoregister[[#This Row],[W. num Portfolio (vor Maßnahme)]])","v":{"$error":"#N/A"}},{"$f":"IF(Risikoregister[[#This Row],[Maßnahmen-Status]]=Planung!$W$9,Risikoregister[[#This Row],[A. num (nach Maßnahme)2]],Risikoregister[[#This Row],[A. num Portfolio (vor Maßnahme)]])","v":{"$error":"#N/A"}},null,{"$f":"VLOOKUP(Risikoregister[[#This Row],[Zeitraum von]],Zeiträume[],2,FALSE)","v":{"$error":"#N/A"}},{"$f":"IF(ISBLANK(Risikoregister[[#This Row],[Zeitraum bis]]),Risikoregister[[#This Row],[Zeitraum von num]],VLOOKUP(Risikoregister[[#This Row],[Zeitraum bis]],Zeiträume[],2,FALSE))","v":{"$error":"#N/A"}},{"$f":"IFERROR(IF(AND(Risikoregister[[#This Row],[Zeitraum von num]]<=1,1<=Risikoregister[[#This Row],[Zeitraum bis num]]),Risikoregister[[#This Row],[Risikowert (in Punkten)]],0),\"\")","v":""},{"$f":"IFERROR(IF(AND(Risikoregister[[#This Row],[Zeitraum von num]]<=2,2<=Risikoregister[[#This Row],[Zeitraum bis num]]),Risikoregister[[#This Row],[Risikowert (in Punkten)]],0),\"\")","v":""},{"$f":"IFERROR(IF(AND(Risikoregister[[#This Row],[Zeitraum von num]]<=3,3<=Risikoregister[[#This Row],[Zeitraum bis num]]),Risikoregister[[#This Row],[Risikowert (in Punkten)]],0),\"\")","v":""},{"$f":"IFERROR(IF(AND(Risikoregister[[#This Row],[Zeitraum von num]]<=4,4<=Risikoregister[[#This Row],[Zeitraum bis num]]),Risikoregister[[#This Row],[Risikowert (in Punkten)]],0),\"\")","v":""},{"$f":"IFERROR(IF(AND(Risikoregister[[#This Row],[Zeitraum von num]]<=5,5<=Risikoregister[[#This Row],[Zeitraum bis num]]),Risikoregister[[#This Row],[Risikowert (in Punkten)]],0),\"\")","v":""},{"$f":"IFERROR(IF(AND(Risikoregister[[#This Row],[Zeitraum von num]]<=6,6<=Risikoregister[[#This Row],[Zeitraum bis num]]),Risikoregister[[#This Row],[Risikowert (in Punkten)]],0),\"\")","v":""},{"$f":"IFERROR(IF(AND(Risikoregister[[#This Row],[Zeitraum von num]]<=7,7<=Risikoregister[[#This Row],[Zeitraum bis num]]),Risikoregister[[#This Row],[Risikowert (in Punkten)]],0),\"\")","v":""},{"$f":"IFERROR(IF(AND(Risikoregister[[#This Row],[Zeitraum von num]]<=8,8<=Risikoregister[[#This Row],[Zeitraum bis num]]),Risikoregister[[#This Row],[Risikowert (in Punkten)]],0),\"\")","v":""},{"$f":"IFERROR(IF(AND(Risikoregister[[#This Row],[Zeitraum von num]]<=9,9<=Risikoregister[[#This Row],[Zeitraum bis num]]),Risikoregister[[#This Row],[Risikowert (in Punkten)]],0),\"\")","v":""}]
[null,null,null,null,null,null,null,null,null,null,null,null,null,null,null,null,null,null,{"$f":"IFERROR(Risikoregister[[#This Row],[W. num (vor Maßnahme)]]*Risikoregister[[#This Row],[A. num (vor Maßnahme)]],#N/A)","v":{"$error":"#N/A"}},null,null,null,null,null,{"$f":"IFERROR(Risikoregister[[#This Row],[Wahrscheinlichkeit quant. (vor Maßnahme)]]*Risikoregister[[#This Row],[Auswirkung Kosten quant.]],#N/A)","v":0},null,null,null,null,null,null,null,null,null,{"$f":"IFERROR(VLOOKUP(Risikoregister[[#This Row],[Wahrscheinlichkeit* (nach Maßnahme)]],Tab_Wahrscheinlichkeit[],7,0)*Risikoregister[[#This Row],[A. num (nach Maßnahme)]],#N/A)","v":{"$error":"#N/A"}},{"$f":"IFERROR(VLOOKUP(Risikoregister[[#This Row],[Wahrscheinlichkeit* (nach Maßnahme)]],Tab_Wahrscheinlichkeit[],6,0)*Risikoregister[[#This Row],[Auswirkung Kosten quant.]],#N/A)","v":{"$error":"#N/A"}},null,null,null,null,null,null,{"$f":"IFERROR(VLOOKUP(Risikoregister[[#This Row],[Wahrscheinlichkeit qual. (vor Maßnahme)]],Tab_Wahrscheinlichkeit[],7,FALSE),#N/A)","v":{"$error":"#N/A"}},{"$f":"IFERROR(VLOOKUP(Risikoregister[[#This Row],[Wahrscheinlichkeit qual. (vor Maßnahme)]],Tab_Wahrscheinlichkeit[],5,FALSE)+Versatz_Portfolio,#N/A)","v":{"$error":"#N/A"}},{"$f":"MAX(\n  IF(ISBLANK(Risikoregister[[#This Row],[Auswirkung Kosten qual. (vor Maßnahme)]]),0,\n    VLOOKUP(Risikoregister[[#This Row],[Auswirkung Kosten qual. (vor Maßnahme)]],Tab_Auswirkung[],6,FALSE)\n  ),\n  IF(ISBLANK(Risikoregister[[#This Row],[Auswirkung Termine  qual.  (vor Maßnahme)]]),0,\n    VLOOKUP(Risikoregister[[#This Row],[Auswirkung Termine  qual.  (vor Maßnahme)]],Tab_Auswirkung[],6,FALSE)\n  ),\n  IF(ISBLANK(Risikoregister[[#This Row],[Auswirkung Leistung  qual.  (vor Maßnahme)]]),0,\n    VLOOKUP(Risikoregister[[#This Row],[Auswirkung Leistung  qual.  (vor Maßnahme)]],Tab_Auswirkung[],6,FALSE)\n  ),\n)","v":0},{"$f":"MAX(\n  IF(ISBLANK(Risikoregister[[#This Row],[Auswirkung Kosten (nach Maßnahme)]]),0,\n    VLOOKUP(Risikoregister[[#This Row],[Auswirkung Kosten (nach Maßnahme)]],Tab_Auswirkung[],6,FALSE)\n  ),\n  IF(ISBLANK(Risikoregister[[#This Row],[Auswirkung Termine (nach Maßnahme)]]),0,\n    VLOOKUP(Risikoregister[[#This Row],[Auswirkung Termine (nach Maßnahme)]],Tab_Auswirkung[],6,FALSE)\n  ),\n  IF(ISBLANK(Risikoregister[[#This Row],[Auswirkung Leistung (nach Maßnahme)]]),0,\n    VLOOKUP(Risikoregister[[#This Row],[Auswirkung Leistung (nach Maßnahme)]],Tab_Auswirkung[],6,FALSE)\n  ),\n)","v":0},{"$f":"MAX(\n  IF(ISBLANK(Risikoregister[[#This Row],[Auswirkung Kosten qual. (vor Maßnahme)]]),0,\n    VLOOKUP(Risikoregister[[#This Row],[Auswirkung Kosten qual. (vor Maßnahme)]],Tab_Auswirkung[],5,FALSE)\n  ),\n  IF(ISBLANK(Risikoregister[[#This Row],[Auswirkung Termine  qual.  (vor Maßnahme)]]),0,\n    VLOOKUP(Risikoregister[[#This Row],[Auswirkung Termine  qual.  (vor Maßnahme)]],Tab_Auswirkung[],5,FALSE)\n  ),\n  IF(ISBLANK(Risikoregister[[#This Row],[Auswirkung Leistung  qual.  (vor Maßnahme)]]),0,\n    VLOOKUP(Risikoregister[[#This Row],[Auswirkung Leistung  qual.  (vor Maßnahme)]],Tab_Auswirkung[],5,FALSE)\n  ),\n)","v":0},{"$f":"MAX(\n  IF(ISBLANK(Risikoregister[[#This Row],[Auswirkung Kosten (nach Maßnahme)]]),0,\n    VLOOKUP(Risikoregister[[#This Row],[Auswirkung Kosten (nach Maßnahme)]],Tab_Auswirkung[],5,FALSE)\n  ),\n  IF(ISBLANK(Risikoregister[[#This Row],[Auswirkung Termine (nach Maßnahme)]]),0,\n    VLOOKUP(Risikoregister[[#This Row],[Auswirkung Termine (nach Maßnahme)]],Tab_Auswirkung[],5,FALSE)\n  ),\n  IF(ISBLANK(Risikoregister[[#This Row],[Auswirkung Leistung (nach Maßnahme)]]),0,\n    VLOOKUP(Risikoregister[[#This Row],[Auswirkung Leistung (nach Maßnahme)]],Tab_Auswirkung[],5,FALSE)\n  ),\n)","v":0},{"$f":"IF(Risikoregister[[#This Row],[A. num Portfolio Hilfswert  (vor Maßnahme)]]=0,#N/A,Risikoregister[[#This Row],[A. num Portfolio Hilfswert  (vor Maßnahme)]]+Versatz_Portfolio)","v":{"$error":"#N/A"}},{"$f":"IFERROR(VLOOKUP(Risikoregister[[#This Row],[Wahrscheinlichkeit* (nach Maßnahme)]],Tab_Wahrscheinlichkeit[],5,FALSE)+Versatz_Portfolio,#N/A)","v":{"$error":"#N/A"}},{"$f":"IF(Risikoregister[[#This Row],[A. num Portfolio Hilfswert  (nach Maßnahme)]]=0,#N/A,Risikoregister[[#This Row],[A. num Portfolio Hilfswert  (nach Maßnahme)]]+Versatz_Portfolio)","v":{"$error":"#N/A"}},{"$f":"IF(Risikoregister[[#This Row],[Maßnahmen-Status]]=Planung!$W$9,Risikoregister[[#This Row],[W. num (nach Maßnahme)]],Risikoregister[[#This Row],[W. num Portfolio (vor Maßnahme)]])","v":{"$error":"#N/A"}},{"$f":"IF(Risikoregister[[#This Row],[Maßnahmen-Status]]=Planung!$W$9,Risikoregister[[#This Row],[A. num (nach Maßnahme)2]],Risikoregister[[#This Row],[A. num Portfolio (vor Maßnahme)]])","v":{"$error":"#N/A"}},null,{"$f":"VLOOKUP(Risikoregister[[#This Row],[Zeitraum von]],Zeiträume[],2,FALSE)","v":{"$error":"#N/A"}},{"$f":"IF(ISBLANK(Risikoregister[[#This Row],[Zeitraum bis]]),Risikoregister[[#This Row],[Zeitraum von num]],VLOOKUP(Risikoregister[[#This Row],[Zeitraum bis]],Zeiträume[],2,FALSE))","v":{"$error":"#N/A"}},{"$f":"IFERROR(IF(AND(Risikoregister[[#This Row],[Zeitraum von num]]<=1,1<=Risikoregister[[#This Row],[Zeitraum bis num]]),Risikoregister[[#This Row],[Risikowert (in Punkten)]],0),\"\")","v":""},{"$f":"IFERROR(IF(AND(Risikoregister[[#This Row],[Zeitraum von num]]<=2,2<=Risikoregister[[#This Row],[Zeitraum bis num]]),Risikoregister[[#This Row],[Risikowert (in Punkten)]],0),\"\")","v":""},{"$f":"IFERROR(IF(AND(Risikoregister[[#This Row],[Zeitraum von num]]<=3,3<=Risikoregister[[#This Row],[Zeitraum bis num]]),Risikoregister[[#This Row],[Risikowert (in Punkten)]],0),\"\")","v":""},{"$f":"IFERROR(IF(AND(Risikoregister[[#This Row],[Zeitraum von num]]<=4,4<=Risikoregister[[#This Row],[Zeitraum bis num]]),Risikoregister[[#This Row],[Risikowert (in Punkten)]],0),\"\")","v":""},{"$f":"IFERROR(IF(AND(Risikoregister[[#This Row],[Zeitraum von num]]<=5,5<=Risikoregister[[#This Row],[Zeitraum bis num]]),Risikoregister[[#This Row],[Risikowert (in Punkten)]],0),\"\")","v":""},{"$f":"IFERROR(IF(AND(Risikoregister[[#This Row],[Zeitraum von num]]<=6,6<=Risikoregister[[#This Row],[Zeitraum bis num]]),Risikoregister[[#This Row],[Risikowert (in Punkten)]],0),\"\")","v":""},{"$f":"IFERROR(IF(AND(Risikoregister[[#This Row],[Zeitraum von num]]<=7,7<=Risikoregister[[#This Row],[Zeitraum bis num]]),Risikoregister[[#This Row],[Risikowert (in Punkten)]],0),\"\")","v":""},{"$f":"IFERROR(IF(AND(Risikoregister[[#This Row],[Zeitraum von num]]<=8,8<=Risikoregister[[#This Row],[Zeitraum bis num]]),Risikoregister[[#This Row],[Risikowert (in Punkten)]],0),\"\")","v":""},{"$f":"IFERROR(IF(AND(Risikoregister[[#This Row],[Zeitraum von num]]<=9,9<=Risikoregister[[#This Row],[Zeitraum bis num]]),Risikoregister[[#This Row],[Risikowert (in Punkten)]],0),\"\")","v":""}]
[null,null,null,null,null,null,null,null,null,null,null,null,null,null,null,null,null,null,{"$f":"IFERROR(Risikoregister[[#This Row],[W. num (vor Maßnahme)]]*Risikoregister[[#This Row],[A. num (vor Maßnahme)]],#N/A)","v":{"$error":"#N/A"}},null,null,null,null,null,{"$f":"IFERROR(Risikoregister[[#This Row],[Wahrscheinlichkeit quant. (vor Maßnahme)]]*Risikoregister[[#This Row],[Auswirkung Kosten quant.]],#N/A)","v":0},null,null,null,null,null,null,null,null,null,{"$f":"IFERROR(VLOOKUP(Risikoregister[[#This Row],[Wahrscheinlichkeit* (nach Maßnahme)]],Tab_Wahrscheinlichkeit[],7,0)*Risikoregister[[#This Row],[A. num (nach Maßnahme)]],#N/A)","v":{"$error":"#N/A"}},{"$f":"IFERROR(VLOOKUP(Risikoregister[[#This Row],[Wahrscheinlichkeit* (nach Maßnahme)]],Tab_Wahrscheinlichkeit[],6,0)*Risikoregister[[#This Row],[Auswirkung Kosten quant.]],#N/A)","v":{"$error":"#N/A"}},null,null,null,null,null,null,{"$f":"IFERROR(VLOOKUP(Risikoregister[[#This Row],[Wahrscheinlichkeit qual. (vor Maßnahme)]],Tab_Wahrscheinlichkeit[],7,FALSE),#N/A)","v":{"$error":"#N/A"}},{"$f":"IFERROR(VLOOKUP(Risikoregister[[#This Row],[Wahrscheinlichkeit qual. (vor Maßnahme)]],Tab_Wahrscheinlichkeit[],5,FALSE)+Versatz_Portfolio,#N/A)","v":{"$error":"#N/A"}},{"$f":"MAX(\n  IF(ISBLANK(Risikoregister[[#This Row],[Auswirkung Kosten qual. (vor Maßnahme)]]),0,\n    VLOOKUP(Risikoregister[[#This Row],[Auswirkung Kosten qual. (vor Maßnahme)]],Tab_Auswirkung[],6,FALSE)\n  ),\n  IF(ISBLANK(Risikoregister[[#This Row],[Auswirkung Termine  qual.  (vor Maßnahme)]]),0,\n    VLOOKUP(Risikoregister[[#This Row],[Auswirkung Termine  qual.  (vor Maßnahme)]],Tab_Auswirkung[],6,FALSE)\n  ),\n  IF(ISBLANK(Risikoregister[[#This Row],[Auswirkung Leistung  qual.  (vor Maßnahme)]]),0,\n    VLOOKUP(Risikoregister[[#This Row],[Auswirkung Leistung  qual.  (vor Maßnahme)]],Tab_Auswirkung[],6,FALSE)\n  ),\n)","v":0},{"$f":"MAX(\n  IF(ISBLANK(Risikoregister[[#This Row],[Auswirkung Kosten (nach Maßnahme)]]),0,\n    VLOOKUP(Risikoregister[[#This Row],[Auswirkung Kosten (nach Maßnahme)]],Tab_Auswirkung[],6,FALSE)\n  ),\n  IF(ISBLANK(Risikoregister[[#This Row],[Auswirkung Termine (nach Maßnahme)]]),0,\n    VLOOKUP(Risikoregister[[#This Row],[Auswirkung Termine (nach Maßnahme)]],Tab_Auswirkung[],6,FALSE)\n  ),\n  IF(ISBLANK(Risikoregister[[#This Row],[Auswirkung Leistung (nach Maßnahme)]]),0,\n    VLOOKUP(Risikoregister[[#This Row],[Auswirkung Leistung (nach Maßnahme)]],Tab_Auswirkung[],6,FALSE)\n  ),\n)","v":0},{"$f":"MAX(\n  IF(ISBLANK(Risikoregister[[#This Row],[Auswirkung Kosten qual. (vor Maßnahme)]]),0,\n    VLOOKUP(Risikoregister[[#This Row],[Auswirkung Kosten qual. (vor Maßnahme)]],Tab_Auswirkung[],5,FALSE)\n  ),\n  IF(ISBLANK(Risikoregister[[#This Row],[Auswirkung Termine  qual.  (vor Maßnahme)]]),0,\n    VLOOKUP(Risikoregister[[#This Row],[Auswirkung Termine  qual.  (vor Maßnahme)]],Tab_Auswirkung[],5,FALSE)\n  ),\n  IF(ISBLANK(Risikoregister[[#This Row],[Auswirkung Leistung  qual.  (vor Maßnahme)]]),0,\n    VLOOKUP(Risikoregister[[#This Row],[Auswirkung Leistung  qual.  (vor Maßnahme)]],Tab_Auswirkung[],5,FALSE)\n  ),\n)","v":0},{"$f":"MAX(\n  IF(ISBLANK(Risikoregister[[#This Row],[Auswirkung Kosten (nach Maßnahme)]]),0,\n    VLOOKUP(Risikoregister[[#This Row],[Auswirkung Kosten (nach Maßnahme)]],Tab_Auswirkung[],5,FALSE)\n  ),\n  IF(ISBLANK(Risikoregister[[#This Row],[Auswirkung Termine (nach Maßnahme)]]),0,\n    VLOOKUP(Risikoregister[[#This Row],[Auswirkung Termine (nach Maßnahme)]],Tab_Auswirkung[],5,FALSE)\n  ),\n  IF(ISBLANK(Risikoregister[[#This Row],[Auswirkung Leistung (nach Maßnahme)]]),0,\n    VLOOKUP(Risikoregister[[#This Row],[Auswirkung Leistung (nach Maßnahme)]],Tab_Auswirkung[],5,FALSE)\n  ),\n)","v":0},{"$f":"IF(Risikoregister[[#This Row],[A. num Portfolio Hilfswert  (vor Maßnahme)]]=0,#N/A,Risikoregister[[#This Row],[A. num Portfolio Hilfswert  (vor Maßnahme)]]+Versatz_Portfolio)","v":{"$error":"#N/A"}},{"$f":"IFERROR(VLOOKUP(Risikoregister[[#This Row],[Wahrscheinlichkeit* (nach Maßnahme)]],Tab_Wahrscheinlichkeit[],5,FALSE)+Versatz_Portfolio,#N/A)","v":{"$error":"#N/A"}},{"$f":"IF(Risikoregister[[#This Row],[A. num Portfolio Hilfswert  (nach Maßnahme)]]=0,#N/A,Risikoregister[[#This Row],[A. num Portfolio Hilfswert  (nach Maßnahme)]]+Versatz_Portfolio)","v":{"$error":"#N/A"}},{"$f":"IF(Risikoregister[[#This Row],[Maßnahmen-Status]]=Planung!$W$9,Risikoregister[[#This Row],[W. num (nach Maßnahme)]],Risikoregister[[#This Row],[W. num Portfolio (vor Maßnahme)]])","v":{"$error":"#N/A"}},{"$f":"IF(Risikoregister[[#This Row],[Maßnahmen-Status]]=Planung!$W$9,Risikoregister[[#This Row],[A. num (nach Maßnahme)2]],Risikoregister[[#This Row],[A. num Portfolio (vor Maßnahme)]])","v":{"$error":"#N/A"}},null,{"$f":"VLOOKUP(Risikoregister[[#This Row],[Zeitraum von]],Zeiträume[],2,FALSE)","v":{"$error":"#N/A"}},{"$f":"IF(ISBLANK(Risikoregister[[#This Row],[Zeitraum bis]]),Risikoregister[[#This Row],[Zeitraum von num]],VLOOKUP(Risikoregister[[#This Row],[Zeitraum bis]],Zeiträume[],2,FALSE))","v":{"$error":"#N/A"}},{"$f":"IFERROR(IF(AND(Risikoregister[[#This Row],[Zeitraum von num]]<=1,1<=Risikoregister[[#This Row],[Zeitraum bis num]]),Risikoregister[[#This Row],[Risikowert (in Punkten)]],0),\"\")","v":""},{"$f":"IFERROR(IF(AND(Risikoregister[[#This Row],[Zeitraum von num]]<=2,2<=Risikoregister[[#This Row],[Zeitraum bis num]]),Risikoregister[[#This Row],[Risikowert (in Punkten)]],0),\"\")","v":""},{"$f":"IFERROR(IF(AND(Risikoregister[[#This Row],[Zeitraum von num]]<=3,3<=Risikoregister[[#This Row],[Zeitraum bis num]]),Risikoregister[[#This Row],[Risikowert (in Punkten)]],0),\"\")","v":""},{"$f":"IFERROR(IF(AND(Risikoregister[[#This Row],[Zeitraum von num]]<=4,4<=Risikoregister[[#This Row],[Zeitraum bis num]]),Risikoregister[[#This Row],[Risikowert (in Punkten)]],0),\"\")","v":""},{"$f":"IFERROR(IF(AND(Risikoregister[[#This Row],[Zeitraum von num]]<=5,5<=Risikoregister[[#This Row],[Zeitraum bis num]]),Risikoregister[[#This Row],[Risikowert (in Punkten)]],0),\"\")","v":""},{"$f":"IFERROR(IF(AND(Risikoregister[[#This Row],[Zeitraum von num]]<=6,6<=Risikoregister[[#This Row],[Zeitraum bis num]]),Risikoregister[[#This Row],[Risikowert (in Punkten)]],0),\"\")","v":""},{"$f":"IFERROR(IF(AND(Risikoregister[[#This Row],[Zeitraum von num]]<=7,7<=Risikoregister[[#This Row],[Zeitraum bis num]]),Risikoregister[[#This Row],[Risikowert (in Punkten)]],0),\"\")","v":""},{"$f":"IFERROR(IF(AND(Risikoregister[[#This Row],[Zeitraum von num]]<=8,8<=Risikoregister[[#This Row],[Zeitraum bis num]]),Risikoregister[[#This Row],[Risikowert (in Punkten)]],0),\"\")","v":""},{"$f":"IFERROR(IF(AND(Risikoregister[[#This Row],[Zeitraum von num]]<=9,9<=Risikoregister[[#This Row],[Zeitraum bis num]]),Risikoregister[[#This Row],[Risikowert (in Punkten)]],0),\"\")","v":""}]
[null,null,null,null,null,null,null,null,null,null,null,null,null,null,null,null,null,null,{"$f":"IFERROR(Risikoregister[[#This Row],[W. num (vor Maßnahme)]]*Risikoregister[[#This Row],[A. num (vor Maßnahme)]],#N/A)","v":{"$error":"#N/A"}},null,null,null,null,null,{"$f":"IFERROR(Risikoregister[[#This Row],[Wahrscheinlichkeit quant. (vor Maßnahme)]]*Risikoregister[[#This Row],[Auswirkung Kosten quant.]],#N/A)","v":0},null,null,null,null,null,null,null,null,null,{"$f":"IFERROR(VLOOKUP(Risikoregister[[#This Row],[Wahrscheinlichkeit* (nach Maßnahme)]],Tab_Wahrscheinlichkeit[],7,0)*Risikoregister[[#This Row],[A. num (nach Maßnahme)]],#N/A)","v":{"$error":"#N/A"}},{"$f":"IFERROR(VLOOKUP(Risikoregister[[#This Row],[Wahrscheinlichkeit* (nach Maßnahme)]],Tab_Wahrscheinlichkeit[],6,0)*Risikoregister[[#This Row],[Auswirkung Kosten quant.]],#N/A)","v":{"$error":"#N/A"}},null,null,null,null,null,null,{"$f":"IFERROR(VLOOKUP(Risikoregister[[#This Row],[Wahrscheinlichkeit qual. (vor Maßnahme)]],Tab_Wahrscheinlichkeit[],7,FALSE),#N/A)","v":{"$error":"#N/A"}},{"$f":"IFERROR(VLOOKUP(Risikoregister[[#This Row],[Wahrscheinlichkeit qual. (vor Maßnahme)]],Tab_Wahrscheinlichkeit[],5,FALSE)+Versatz_Portfolio,#N/A)","v":{"$error":"#N/A"}},{"$f":"MAX(\n  IF(ISBLANK(Risikoregister[[#This Row],[Auswirkung Kosten qual. (vor Maßnahme)]]),0,\n    VLOOKUP(Risikoregister[[#This Row],[Auswirkung Kosten qual. (vor Maßnahme)]],Tab_Auswirkung[],6,FALSE)\n  ),\n  IF(ISBLANK(Risikoregister[[#This Row],[Auswirkung Termine  qual.  (vor Maßnahme)]]),0,\n    VLOOKUP(Risikoregister[[#This Row],[Auswirkung Termine  qual.  (vor Maßnahme)]],Tab_Auswirkung[],6,FALSE)\n  ),\n  IF(ISBLANK(Risikoregister[[#This Row],[Auswirkung Leistung  qual.  (vor Maßnahme)]]),0,\n    VLOOKUP(Risikoregister[[#This Row],[Auswirkung Leistung  qual.  (vor Maßnahme)]],Tab_Auswirkung[],6,FALSE)\n  ),\n)","v":0},{"$f":"MAX(\n  IF(ISBLANK(Risikoregister[[#This Row],[Auswirkung Kosten (nach Maßnahme)]]),0,\n    VLOOKUP(Risikoregister[[#This Row],[Auswirkung Kosten (nach Maßnahme)]],Tab_Auswirkung[],6,FALSE)\n  ),\n  IF(ISBLANK(Risikoregister[[#This Row],[Auswirkung Termine (nach Maßnahme)]]),0,\n    VLOOKUP(Risikoregister[[#This Row],[Auswirkung Termine (nach Maßnahme)]],Tab_Auswirkung[],6,FALSE)\n  ),\n  IF(ISBLANK(Risikoregister[[#This Row],[Auswirkung Leistung (nach Maßnahme)]]),0,\n    VLOOKUP(Risikoregister[[#This Row],[Auswirkung Leistung (nach Maßnahme)]],Tab_Auswirkung[],6,FALSE)\n  ),\n)","v":0},{"$f":"MAX(\n  IF(ISBLANK(Risikoregister[[#This Row],[Auswirkung Kosten qual. (vor Maßnahme)]]),0,\n    VLOOKUP(Risikoregister[[#This Row],[Auswirkung Kosten qual. (vor Maßnahme)]],Tab_Auswirkung[],5,FALSE)\n  ),\n  IF(ISBLANK(Risikoregister[[#This Row],[Auswirkung Termine  qual.  (vor Maßnahme)]]),0,\n    VLOOKUP(Risikoregister[[#This Row],[Auswirkung Termine  qual.  (vor Maßnahme)]],Tab_Auswirkung[],5,FALSE)\n  ),\n  IF(ISBLANK(Risikoregister[[#This Row],[Auswirkung Leistung  qual.  (vor Maßnahme)]]),0,\n    VLOOKUP(Risikoregister[[#This Row],[Auswirkung Leistung  qual.  (vor Maßnahme)]],Tab_Auswirkung[],5,FALSE)\n  ),\n)","v":0},{"$f":"MAX(\n  IF(ISBLANK(Risikoregister[[#This Row],[Auswirkung Kosten (nach Maßnahme)]]),0,\n    VLOOKUP(Risikoregister[[#This Row],[Auswirkung Kosten (nach Maßnahme)]],Tab_Auswirkung[],5,FALSE)\n  ),\n  IF(ISBLANK(Risikoregister[[#This Row],[Auswirkung Termine (nach Maßnahme)]]),0,\n    VLOOKUP(Risikoregister[[#This Row],[Auswirkung Termine (nach Maßnahme)]],Tab_Auswirkung[],5,FALSE)\n  ),\n  IF(ISBLANK(Risikoregister[[#This Row],[Auswirkung Leistung (nach Maßnahme)]]),0,\n    VLOOKUP(Risikoregister[[#This Row],[Auswirkung Leistung (nach Maßnahme)]],Tab_Auswirkung[],5,FALSE)\n  ),\n)","v":0},{"$f":"IF(Risikoregister[[#This Row],[A. num Portfolio Hilfswert  (vor Maßnahme)]]=0,#N/A,Risikoregister[[#This Row],[A. num Portfolio Hilfswert  (vor Maßnahme)]]+Versatz_Portfolio)","v":{"$error":"#N/A"}},{"$f":"IFERROR(VLOOKUP(Risikoregister[[#This Row],[Wahrscheinlichkeit* (nach Maßnahme)]],Tab_Wahrscheinlichkeit[],5,FALSE)+Versatz_Portfolio,#N/A)","v":{"$error":"#N/A"}},{"$f":"IF(Risikoregister[[#This Row],[A. num Portfolio Hilfswert  (nach Maßnahme)]]=0,#N/A,Risikoregister[[#This Row],[A. num Portfolio Hilfswert  (nach Maßnahme)]]+Versatz_Portfolio)","v":{"$error":"#N/A"}},{"$f":"IF(Risikoregister[[#This Row],[Maßnahmen-Status]]=Planung!$W$9,Risikoregister[[#This Row],[W. num (nach Maßnahme)]],Risikoregister[[#This Row],[W. num Portfolio (vor Maßnahme)]])","v":{"$error":"#N/A"}},{"$f":"IF(Risikoregister[[#This Row],[Maßnahmen-Status]]=Planung!$W$9,Risikoregister[[#This Row],[A. num (nach Maßnahme)2]],Risikoregister[[#This Row],[A. num Portfolio (vor Maßnahme)]])","v":{"$error":"#N/A"}},null,{"$f":"VLOOKUP(Risikoregister[[#This Row],[Zeitraum von]],Zeiträume[],2,FALSE)","v":{"$error":"#N/A"}},{"$f":"IF(ISBLANK(Risikoregister[[#This Row],[Zeitraum bis]]),Risikoregister[[#This Row],[Zeitraum von num]],VLOOKUP(Risikoregister[[#This Row],[Zeitraum bis]],Zeiträume[],2,FALSE))","v":{"$error":"#N/A"}},{"$f":"IFERROR(IF(AND(Risikoregister[[#This Row],[Zeitraum von num]]<=1,1<=Risikoregister[[#This Row],[Zeitraum bis num]]),Risikoregister[[#This Row],[Risikowert (in Punkten)]],0),\"\")","v":""},{"$f":"IFERROR(IF(AND(Risikoregister[[#This Row],[Zeitraum von num]]<=2,2<=Risikoregister[[#This Row],[Zeitraum bis num]]),Risikoregister[[#This Row],[Risikowert (in Punkten)]],0),\"\")","v":""},{"$f":"IFERROR(IF(AND(Risikoregister[[#This Row],[Zeitraum von num]]<=3,3<=Risikoregister[[#This Row],[Zeitraum bis num]]),Risikoregister[[#This Row],[Risikowert (in Punkten)]],0),\"\")","v":""},{"$f":"IFERROR(IF(AND(Risikoregister[[#This Row],[Zeitraum von num]]<=4,4<=Risikoregister[[#This Row],[Zeitraum bis num]]),Risikoregister[[#This Row],[Risikowert (in Punkten)]],0),\"\")","v":""},{"$f":"IFERROR(IF(AND(Risikoregister[[#This Row],[Zeitraum von num]]<=5,5<=Risikoregister[[#This Row],[Zeitraum bis num]]),Risikoregister[[#This Row],[Risikowert (in Punkten)]],0),\"\")","v":""},{"$f":"IFERROR(IF(AND(Risikoregister[[#This Row],[Zeitraum von num]]<=6,6<=Risikoregister[[#This Row],[Zeitraum bis num]]),Risikoregister[[#This Row],[Risikowert (in Punkten)]],0),\"\")","v":""},{"$f":"IFERROR(IF(AND(Risikoregister[[#This Row],[Zeitraum von num]]<=7,7<=Risikoregister[[#This Row],[Zeitraum bis num]]),Risikoregister[[#This Row],[Risikowert (in Punkten)]],0),\"\")","v":""},{"$f":"IFERROR(IF(AND(Risikoregister[[#This Row],[Zeitraum von num]]<=8,8<=Risikoregister[[#This Row],[Zeitraum bis num]]),Risikoregister[[#This Row],[Risikowert (in Punkten)]],0),\"\")","v":""},{"$f":"IFERROR(IF(AND(Risikoregister[[#This Row],[Zeitraum von num]]<=9,9<=Risikoregister[[#This Row],[Zeitraum bis num]]),Risikoregister[[#This Row],[Risikowert (in Punkten)]],0),\"\")","v":""}]
[null,null,null,null,null,null,null,null,null,null,null,null,null,null,null,null,null,null,{"$f":"IFERROR(Risikoregister[[#This Row],[W. num (vor Maßnahme)]]*Risikoregister[[#This Row],[A. num (vor Maßnahme)]],#N/A)","v":{"$error":"#N/A"}},null,null,null,null,null,{"$f":"IFERROR(Risikoregister[[#This Row],[Wahrscheinlichkeit quant. (vor Maßnahme)]]*Risikoregister[[#This Row],[Auswirkung Kosten quant.]],#N/A)","v":0},null,null,null,null,null,null,null,null,null,{"$f":"IFERROR(VLOOKUP(Risikoregister[[#This Row],[Wahrscheinlichkeit* (nach Maßnahme)]],Tab_Wahrscheinlichkeit[],7,0)*Risikoregister[[#This Row],[A. num (nach Maßnahme)]],#N/A)","v":{"$error":"#N/A"}},{"$f":"IFERROR(VLOOKUP(Risikoregister[[#This Row],[Wahrscheinlichkeit* (nach Maßnahme)]],Tab_Wahrscheinlichkeit[],6,0)*Risikoregister[[#This Row],[Auswirkung Kosten quant.]],#N/A)","v":{"$error":"#N/A"}},null,null,null,null,null,null,{"$f":"IFERROR(VLOOKUP(Risikoregister[[#This Row],[Wahrscheinlichkeit qual. (vor Maßnahme)]],Tab_Wahrscheinlichkeit[],7,FALSE),#N/A)","v":{"$error":"#N/A"}},{"$f":"IFERROR(VLOOKUP(Risikoregister[[#This Row],[Wahrscheinlichkeit qual. (vor Maßnahme)]],Tab_Wahrscheinlichkeit[],5,FALSE)+Versatz_Portfolio,#N/A)","v":{"$error":"#N/A"}},{"$f":"MAX(\n  IF(ISBLANK(Risikoregister[[#This Row],[Auswirkung Kosten qual. (vor Maßnahme)]]),0,\n    VLOOKUP(Risikoregister[[#This Row],[Auswirkung Kosten qual. (vor Maßnahme)]],Tab_Auswirkung[],6,FALSE)\n  ),\n  IF(ISBLANK(Risikoregister[[#This Row],[Auswirkung Termine  qual.  (vor Maßnahme)]]),0,\n    VLOOKUP(Risikoregister[[#This Row],[Auswirkung Termine  qual.  (vor Maßnahme)]],Tab_Auswirkung[],6,FALSE)\n  ),\n  IF(ISBLANK(Risikoregister[[#This Row],[Auswirkung Leistung  qual.  (vor Maßnahme)]]),0,\n    VLOOKUP(Risikoregister[[#This Row],[Auswirkung Leistung  qual.  (vor Maßnahme)]],Tab_Auswirkung[],6,FALSE)\n  ),\n)","v":0},{"$f":"MAX(\n  IF(ISBLANK(Risikoregister[[#This Row],[Auswirkung Kosten (nach Maßnahme)]]),0,\n    VLOOKUP(Risikoregister[[#This Row],[Auswirkung Kosten (nach Maßnahme)]],Tab_Auswirkung[],6,FALSE)\n  ),\n  IF(ISBLANK(Risikoregister[[#This Row],[Auswirkung Termine (nach Maßnahme)]]),0,\n    VLOOKUP(Risikoregister[[#This Row],[Auswirkung Termine (nach Maßnahme)]],Tab_Auswirkung[],6,FALSE)\n  ),\n  IF(ISBLANK(Risikoregister[[#This Row],[Auswirkung Leistung (nach Maßnahme)]]),0,\n    VLOOKUP(Risikoregister[[#This Row],[Auswirkung Leistung (nach Maßnahme)]],Tab_Auswirkung[],6,FALSE)\n  ),\n)","v":0},{"$f":"MAX(\n  IF(ISBLANK(Risikoregister[[#This Row],[Auswirkung Kosten qual. (vor Maßnahme)]]),0,\n    VLOOKUP(Risikoregister[[#This Row],[Auswirkung Kosten qual. (vor Maßnahme)]],Tab_Auswirkung[],5,FALSE)\n  ),\n  IF(ISBLANK(Risikoregister[[#This Row],[Auswirkung Termine  qual.  (vor Maßnahme)]]),0,\n    VLOOKUP(Risikoregister[[#This Row],[Auswirkung Termine  qual.  (vor Maßnahme)]],Tab_Auswirkung[],5,FALSE)\n  ),\n  IF(ISBLANK(Risikoregister[[#This Row],[Auswirkung Leistung  qual.  (vor Maßnahme)]]),0,\n    VLOOKUP(Risikoregister[[#This Row],[Auswirkung Leistung  qual.  (vor Maßnahme)]],Tab_Auswirkung[],5,FALSE)\n  ),\n)","v":0},{"$f":"MAX(\n  IF(ISBLANK(Risikoregister[[#This Row],[Auswirkung Kosten (nach Maßnahme)]]),0,\n    VLOOKUP(Risikoregister[[#This Row],[Auswirkung Kosten (nach Maßnahme)]],Tab_Auswirkung[],5,FALSE)\n  ),\n  IF(ISBLANK(Risikoregister[[#This Row],[Auswirkung Termine (nach Maßnahme)]]),0,\n    VLOOKUP(Risikoregister[[#This Row],[Auswirkung Termine (nach Maßnahme)]],Tab_Auswirkung[],5,FALSE)\n  ),\n  IF(ISBLANK(Risikoregister[[#This Row],[Auswirkung Leistung (nach Maßnahme)]]),0,\n    VLOOKUP(Risikoregister[[#This Row],[Auswirkung Leistung (nach Maßnahme)]],Tab_Auswirkung[],5,FALSE)\n  ),\n)","v":0},{"$f":"IF(Risikoregister[[#This Row],[A. num Portfolio Hilfswert  (vor Maßnahme)]]=0,#N/A,Risikoregister[[#This Row],[A. num Portfolio Hilfswert  (vor Maßnahme)]]+Versatz_Portfolio)","v":{"$error":"#N/A"}},{"$f":"IFERROR(VLOOKUP(Risikoregister[[#This Row],[Wahrscheinlichkeit* (nach Maßnahme)]],Tab_Wahrscheinlichkeit[],5,FALSE)+Versatz_Portfolio,#N/A)","v":{"$error":"#N/A"}},{"$f":"IF(Risikoregister[[#This Row],[A. num Portfolio Hilfswert  (nach Maßnahme)]]=0,#N/A,Risikoregister[[#This Row],[A. num Portfolio Hilfswert  (nach Maßnahme)]]+Versatz_Portfolio)","v":{"$error":"#N/A"}},{"$f":"IF(Risikoregister[[#This Row],[Maßnahmen-Status]]=Planung!$W$9,Risikoregister[[#This Row],[W. num (nach Maßnahme)]],Risikoregister[[#This Row],[W. num Portfolio (vor Maßnahme)]])","v":{"$error":"#N/A"}},{"$f":"IF(Risikoregister[[#This Row],[Maßnahmen-Status]]=Planung!$W$9,Risikoregister[[#This Row],[A. num (nach Maßnahme)2]],Risikoregister[[#This Row],[A. num Portfolio (vor Maßnahme)]])","v":{"$error":"#N/A"}},null,{"$f":"VLOOKUP(Risikoregister[[#This Row],[Zeitraum von]],Zeiträume[],2,FALSE)","v":{"$error":"#N/A"}},{"$f":"IF(ISBLANK(Risikoregister[[#This Row],[Zeitraum bis]]),Risikoregister[[#This Row],[Zeitraum von num]],VLOOKUP(Risikoregister[[#This Row],[Zeitraum bis]],Zeiträume[],2,FALSE))","v":{"$error":"#N/A"}},{"$f":"IFERROR(IF(AND(Risikoregister[[#This Row],[Zeitraum von num]]<=1,1<=Risikoregister[[#This Row],[Zeitraum bis num]]),Risikoregister[[#This Row],[Risikowert (in Punkten)]],0),\"\")","v":""},{"$f":"IFERROR(IF(AND(Risikoregister[[#This Row],[Zeitraum von num]]<=2,2<=Risikoregister[[#This Row],[Zeitraum bis num]]),Risikoregister[[#This Row],[Risikowert (in Punkten)]],0),\"\")","v":""},{"$f":"IFERROR(IF(AND(Risikoregister[[#This Row],[Zeitraum von num]]<=3,3<=Risikoregister[[#This Row],[Zeitraum bis num]]),Risikoregister[[#This Row],[Risikowert (in Punkten)]],0),\"\")","v":""},{"$f":"IFERROR(IF(AND(Risikoregister[[#This Row],[Zeitraum von num]]<=4,4<=Risikoregister[[#This Row],[Zeitraum bis num]]),Risikoregister[[#This Row],[Risikowert (in Punkten)]],0),\"\")","v":""},{"$f":"IFERROR(IF(AND(Risikoregister[[#This Row],[Zeitraum von num]]<=5,5<=Risikoregister[[#This Row],[Zeitraum bis num]]),Risikoregister[[#This Row],[Risikowert (in Punkten)]],0),\"\")","v":""},{"$f":"IFERROR(IF(AND(Risikoregister[[#This Row],[Zeitraum von num]]<=6,6<=Risikoregister[[#This Row],[Zeitraum bis num]]),Risikoregister[[#This Row],[Risikowert (in Punkten)]],0),\"\")","v":""},{"$f":"IFERROR(IF(AND(Risikoregister[[#This Row],[Zeitraum von num]]<=7,7<=Risikoregister[[#This Row],[Zeitraum bis num]]),Risikoregister[[#This Row],[Risikowert (in Punkten)]],0),\"\")","v":""},{"$f":"IFERROR(IF(AND(Risikoregister[[#This Row],[Zeitraum von num]]<=8,8<=Risikoregister[[#This Row],[Zeitraum bis num]]),Risikoregister[[#This Row],[Risikowert (in Punkten)]],0),\"\")","v":""},{"$f":"IFERROR(IF(AND(Risikoregister[[#This Row],[Zeitraum von num]]<=9,9<=Risikoregister[[#This Row],[Zeitraum bis num]]),Risikoregister[[#This Row],[Risikowert (in Punkten)]],0),\"\")","v":""}]
[null,null,null,null,null,null,null,null,null,null,null,null,null,null,null,null,null,null,{"$f":"IFERROR(Risikoregister[[#This Row],[W. num (vor Maßnahme)]]*Risikoregister[[#This Row],[A. num (vor Maßnahme)]],#N/A)","v":{"$error":"#N/A"}},null,null,null,null,null,{"$f":"IFERROR(Risikoregister[[#This Row],[Wahrscheinlichkeit quant. (vor Maßnahme)]]*Risikoregister[[#This Row],[Auswirkung Kosten quant.]],#N/A)","v":0},null,null,null,null,null,null,null,null,null,{"$f":"IFERROR(VLOOKUP(Risikoregister[[#This Row],[Wahrscheinlichkeit* (nach Maßnahme)]],Tab_Wahrscheinlichkeit[],7,0)*Risikoregister[[#This Row],[A. num (nach Maßnahme)]],#N/A)","v":{"$error":"#N/A"}},{"$f":"IFERROR(VLOOKUP(Risikoregister[[#This Row],[Wahrscheinlichkeit* (nach Maßnahme)]],Tab_Wahrscheinlichkeit[],6,0)*Risikoregister[[#This Row],[Auswirkung Kosten quant.]],#N/A)","v":{"$error":"#N/A"}},null,null,null,null,null,null,{"$f":"IFERROR(VLOOKUP(Risikoregister[[#This Row],[Wahrscheinlichkeit qual. (vor Maßnahme)]],Tab_Wahrscheinlichkeit[],7,FALSE),#N/A)","v":{"$error":"#N/A"}},{"$f":"IFERROR(VLOOKUP(Risikoregister[[#This Row],[Wahrscheinlichkeit qual. (vor Maßnahme)]],Tab_Wahrscheinlichkeit[],5,FALSE)+Versatz_Portfolio,#N/A)","v":{"$error":"#N/A"}},{"$f":"MAX(\n  IF(ISBLANK(Risikoregister[[#This Row],[Auswirkung Kosten qual. (vor Maßnahme)]]),0,\n    VLOOKUP(Risikoregister[[#This Row],[Auswirkung Kosten qual. (vor Maßnahme)]],Tab_Auswirkung[],6,FALSE)\n  ),\n  IF(ISBLANK(Risikoregister[[#This Row],[Auswirkung Termine  qual.  (vor Maßnahme)]]),0,\n    VLOOKUP(Risikoregister[[#This Row],[Auswirkung Termine  qual.  (vor Maßnahme)]],Tab_Auswirkung[],6,FALSE)\n  ),\n  IF(ISBLANK(Risikoregister[[#This Row],[Auswirkung Leistung  qual.  (vor Maßnahme)]]),0,\n    VLOOKUP(Risikoregister[[#This Row],[Auswirkung Leistung  qual.  (vor Maßnahme)]],Tab_Auswirkung[],6,FALSE)\n  ),\n)","v":0},{"$f":"MAX(\n  IF(ISBLANK(Risikoregister[[#This Row],[Auswirkung Kosten (nach Maßnahme)]]),0,\n    VLOOKUP(Risikoregister[[#This Row],[Auswirkung Kosten (nach Maßnahme)]],Tab_Auswirkung[],6,FALSE)\n  ),\n  IF(ISBLANK(Risikoregister[[#This Row],[Auswirkung Termine (nach Maßnahme)]]),0,\n    VLOOKUP(Risikoregister[[#This Row],[Auswirkung Termine (nach Maßnahme)]],Tab_Auswirkung[],6,FALSE)\n  ),\n  IF(ISBLANK(Risikoregister[[#This Row],[Auswirkung Leistung (nach Maßnahme)]]),0,\n    VLOOKUP(Risikoregister[[#This Row],[Auswirkung Leistung (nach Maßnahme)]],Tab_Auswirkung[],6,FALSE)\n  ),\n)","v":0},{"$f":"MAX(\n  IF(ISBLANK(Risikoregister[[#This Row],[Auswirkung Kosten qual. (vor Maßnahme)]]),0,\n    VLOOKUP(Risikoregister[[#This Row],[Auswirkung Kosten qual. (vor Maßnahme)]],Tab_Auswirkung[],5,FALSE)\n  ),\n  IF(ISBLANK(Risikoregister[[#This Row],[Auswirkung Termine  qual.  (vor Maßnahme)]]),0,\n    VLOOKUP(Risikoregister[[#This Row],[Auswirkung Termine  qual.  (vor Maßnahme)]],Tab_Auswirkung[],5,FALSE)\n  ),\n  IF(ISBLANK(Risikoregister[[#This Row],[Auswirkung Leistung  qual.  (vor Maßnahme)]]),0,\n    VLOOKUP(Risikoregister[[#This Row],[Auswirkung Leistung  qual.  (vor Maßnahme)]],Tab_Auswirkung[],5,FALSE)\n  ),\n)","v":0},{"$f":"MAX(\n  IF(ISBLANK(Risikoregister[[#This Row],[Auswirkung Kosten (nach Maßnahme)]]),0,\n    VLOOKUP(Risikoregister[[#This Row],[Auswirkung Kosten (nach Maßnahme)]],Tab_Auswirkung[],5,FALSE)\n  ),\n  IF(ISBLANK(Risikoregister[[#This Row],[Auswirkung Termine (nach Maßnahme)]]),0,\n    VLOOKUP(Risikoregister[[#This Row],[Auswirkung Termine (nach Maßnahme)]],Tab_Auswirkung[],5,FALSE)\n  ),\n  IF(ISBLANK(Risikoregister[[#This Row],[Auswirkung Leistung (nach Maßnahme)]]),0,\n    VLOOKUP(Risikoregister[[#This Row],[Auswirkung Leistung (nach Maßnahme)]],Tab_Auswirkung[],5,FALSE)\n  ),\n)","v":0},{"$f":"IF(Risikoregister[[#This Row],[A. num Portfolio Hilfswert  (vor Maßnahme)]]=0,#N/A,Risikoregister[[#This Row],[A. num Portfolio Hilfswert  (vor Maßnahme)]]+Versatz_Portfolio)","v":{"$error":"#N/A"}},{"$f":"IFERROR(VLOOKUP(Risikoregister[[#This Row],[Wahrscheinlichkeit* (nach Maßnahme)]],Tab_Wahrscheinlichkeit[],5,FALSE)+Versatz_Portfolio,#N/A)","v":{"$error":"#N/A"}},{"$f":"IF(Risikoregister[[#This Row],[A. num Portfolio Hilfswert  (nach Maßnahme)]]=0,#N/A,Risikoregister[[#This Row],[A. num Portfolio Hilfswert  (nach Maßnahme)]]+Versatz_Portfolio)","v":{"$error":"#N/A"}},{"$f":"IF(Risikoregister[[#This Row],[Maßnahmen-Status]]=Planung!$W$9,Risikoregister[[#This Row],[W. num (nach Maßnahme)]],Risikoregister[[#This Row],[W. num Portfolio (vor Maßnahme)]])","v":{"$error":"#N/A"}},{"$f":"IF(Risikoregister[[#This Row],[Maßnahmen-Status]]=Planung!$W$9,Risikoregister[[#This Row],[A. num (nach Maßnahme)2]],Risikoregister[[#This Row],[A. num Portfolio (vor Maßnahme)]])","v":{"$error":"#N/A"}},null,{"$f":"VLOOKUP(Risikoregister[[#This Row],[Zeitraum von]],Zeiträume[],2,FALSE)","v":{"$error":"#N/A"}},{"$f":"IF(ISBLANK(Risikoregister[[#This Row],[Zeitraum bis]]),Risikoregister[[#This Row],[Zeitraum von num]],VLOOKUP(Risikoregister[[#This Row],[Zeitraum bis]],Zeiträume[],2,FALSE))","v":{"$error":"#N/A"}},{"$f":"IFERROR(IF(AND(Risikoregister[[#This Row],[Zeitraum von num]]<=1,1<=Risikoregister[[#This Row],[Zeitraum bis num]]),Risikoregister[[#This Row],[Risikowert (in Punkten)]],0),\"\")","v":""},{"$f":"IFERROR(IF(AND(Risikoregister[[#This Row],[Zeitraum von num]]<=2,2<=Risikoregister[[#This Row],[Zeitraum bis num]]),Risikoregister[[#This Row],[Risikowert (in Punkten)]],0),\"\")","v":""},{"$f":"IFERROR(IF(AND(Risikoregister[[#This Row],[Zeitraum von num]]<=3,3<=Risikoregister[[#This Row],[Zeitraum bis num]]),Risikoregister[[#This Row],[Risikowert (in Punkten)]],0),\"\")","v":""},{"$f":"IFERROR(IF(AND(Risikoregister[[#This Row],[Zeitraum von num]]<=4,4<=Risikoregister[[#This Row],[Zeitraum bis num]]),Risikoregister[[#This Row],[Risikowert (in Punkten)]],0),\"\")","v":""},{"$f":"IFERROR(IF(AND(Risikoregister[[#This Row],[Zeitraum von num]]<=5,5<=Risikoregister[[#This Row],[Zeitraum bis num]]),Risikoregister[[#This Row],[Risikowert (in Punkten)]],0),\"\")","v":""},{"$f":"IFERROR(IF(AND(Risikoregister[[#This Row],[Zeitraum von num]]<=6,6<=Risikoregister[[#This Row],[Zeitraum bis num]]),Risikoregister[[#This Row],[Risikowert (in Punkten)]],0),\"\")","v":""},{"$f":"IFERROR(IF(AND(Risikoregister[[#This Row],[Zeitraum von num]]<=7,7<=Risikoregister[[#This Row],[Zeitraum bis num]]),Risikoregister[[#This Row],[Risikowert (in Punkten)]],0),\"\")","v":""},{"$f":"IFERROR(IF(AND(Risikoregister[[#This Row],[Zeitraum von num]]<=8,8<=Risikoregister[[#This Row],[Zeitraum bis num]]),Risikoregister[[#This Row],[Risikowert (in Punkten)]],0),\"\")","v":""},{"$f":"IFERROR(IF(AND(Risikoregister[[#This Row],[Zeitraum von num]]<=9,9<=Risikoregister[[#This Row],[Zeitraum bis num]]),Risikoregister[[#This Row],[Risikowert (in Punkten)]],0),\"\")","v":""}]
[null,null,null,null,null,null,null,null,null,null,null,null,null,null,null,null,null,null,{"$f":"IFERROR(Risikoregister[[#This Row],[W. num (vor Maßnahme)]]*Risikoregister[[#This Row],[A. num (vor Maßnahme)]],#N/A)","v":{"$error":"#N/A"}},null,null,null,null,null,{"$f":"IFERROR(Risikoregister[[#This Row],[Wahrscheinlichkeit quant. (vor Maßnahme)]]*Risikoregister[[#This Row],[Auswirkung Kosten quant.]],#N/A)","v":0},null,null,null,null,null,null,null,null,null,{"$f":"IFERROR(VLOOKUP(Risikoregister[[#This Row],[Wahrscheinlichkeit* (nach Maßnahme)]],Tab_Wahrscheinlichkeit[],7,0)*Risikoregister[[#This Row],[A. num (nach Maßnahme)]],#N/A)","v":{"$error":"#N/A"}},{"$f":"IFERROR(VLOOKUP(Risikoregister[[#This Row],[Wahrscheinlichkeit* (nach Maßnahme)]],Tab_Wahrscheinlichkeit[],6,0)*Risikoregister[[#This Row],[Auswirkung Kosten quant.]],#N/A)","v":{"$error":"#N/A"}},null,null,null,null,null,null,{"$f":"IFERROR(VLOOKUP(Risikoregister[[#This Row],[Wahrscheinlichkeit qual. (vor Maßnahme)]],Tab_Wahrscheinlichkeit[],7,FALSE),#N/A)","v":{"$error":"#N/A"}},{"$f":"IFERROR(VLOOKUP(Risikoregister[[#This Row],[Wahrscheinlichkeit qual. (vor Maßnahme)]],Tab_Wahrscheinlichkeit[],5,FALSE)+Versatz_Portfolio,#N/A)","v":{"$error":"#N/A"}},{"$f":"MAX(\n  IF(ISBLANK(Risikoregister[[#This Row],[Auswirkung Kosten qual. (vor Maßnahme)]]),0,\n    VLOOKUP(Risikoregister[[#This Row],[Auswirkung Kosten qual. (vor Maßnahme)]],Tab_Auswirkung[],6,FALSE)\n  ),\n  IF(ISBLANK(Risikoregister[[#This Row],[Auswirkung Termine  qual.  (vor Maßnahme)]]),0,\n    VLOOKUP(Risikoregister[[#This Row],[Auswirkung Termine  qual.  (vor Maßnahme)]],Tab_Auswirkung[],6,FALSE)\n  ),\n  IF(ISBLANK(Risikoregister[[#This Row],[Auswirkung Leistung  qual.  (vor Maßnahme)]]),0,\n    VLOOKUP(Risikoregister[[#This Row],[Auswirkung Leistung  qual.  (vor Maßnahme)]],Tab_Auswirkung[],6,FALSE)\n  ),\n)","v":0},{"$f":"MAX(\n  IF(ISBLANK(Risikoregister[[#This Row],[Auswirkung Kosten (nach Maßnahme)]]),0,\n    VLOOKUP(Risikoregister[[#This Row],[Auswirkung Kosten (nach Maßnahme)]],Tab_Auswirkung[],6,FALSE)\n  ),\n  IF(ISBLANK(Risikoregister[[#This Row],[Auswirkung Termine (nach Maßnahme)]]),0,\n    VLOOKUP(Risikoregister[[#This Row],[Auswirkung Termine (nach Maßnahme)]],Tab_Auswirkung[],6,FALSE)\n  ),\n  IF(ISBLANK(Risikoregister[[#This Row],[Auswirkung Leistung (nach Maßnahme)]]),0,\n    VLOOKUP(Risikoregister[[#This Row],[Auswirkung Leistung (nach Maßnahme)]],Tab_Auswirkung[],6,FALSE)\n  ),\n)","v":0},{"$f":"MAX(\n  IF(ISBLANK(Risikoregister[[#This Row],[Auswirkung Kosten qual. (vor Maßnahme)]]),0,\n    VLOOKUP(Risikoregister[[#This Row],[Auswirkung Kosten qual. (vor Maßnahme)]],Tab_Auswirkung[],5,FALSE)\n  ),\n  IF(ISBLANK(Risikoregister[[#This Row],[Auswirkung Termine  qual.  (vor Maßnahme)]]),0,\n    VLOOKUP(Risikoregister[[#This Row],[Auswirkung Termine  qual.  (vor Maßnahme)]],Tab_Auswirkung[],5,FALSE)\n  ),\n  IF(ISBLANK(Risikoregister[[#This Row],[Auswirkung Leistung  qual.  (vor Maßnahme)]]),0,\n    VLOOKUP(Risikoregister[[#This Row],[Auswirkung Leistung  qual.  (vor Maßnahme)]],Tab_Auswirkung[],5,FALSE)\n  ),\n)","v":0},{"$f":"MAX(\n  IF(ISBLANK(Risikoregister[[#This Row],[Auswirkung Kosten (nach Maßnahme)]]),0,\n    VLOOKUP(Risikoregister[[#This Row],[Auswirkung Kosten (nach Maßnahme)]],Tab_Auswirkung[],5,FALSE)\n  ),\n  IF(ISBLANK(Risikoregister[[#This Row],[Auswirkung Termine (nach Maßnahme)]]),0,\n    VLOOKUP(Risikoregister[[#This Row],[Auswirkung Termine (nach Maßnahme)]],Tab_Auswirkung[],5,FALSE)\n  ),\n  IF(ISBLANK(Risikoregister[[#This Row],[Auswirkung Leistung (nach Maßnahme)]]),0,\n    VLOOKUP(Risikoregister[[#This Row],[Auswirkung Leistung (nach Maßnahme)]],Tab_Auswirkung[],5,FALSE)\n  ),\n)","v":0},{"$f":"IF(Risikoregister[[#This Row],[A. num Portfolio Hilfswert  (vor Maßnahme)]]=0,#N/A,Risikoregister[[#This Row],[A. num Portfolio Hilfswert  (vor Maßnahme)]]+Versatz_Portfolio)","v":{"$error":"#N/A"}},{"$f":"IFERROR(VLOOKUP(Risikoregister[[#This Row],[Wahrscheinlichkeit* (nach Maßnahme)]],Tab_Wahrscheinlichkeit[],5,FALSE)+Versatz_Portfolio,#N/A)","v":{"$error":"#N/A"}},{"$f":"IF(Risikoregister[[#This Row],[A. num Portfolio Hilfswert  (nach Maßnahme)]]=0,#N/A,Risikoregister[[#This Row],[A. num Portfolio Hilfswert  (nach Maßnahme)]]+Versatz_Portfolio)","v":{"$error":"#N/A"}},{"$f":"IF(Risikoregister[[#This Row],[Maßnahmen-Status]]=Planung!$W$9,Risikoregister[[#This Row],[W. num (nach Maßnahme)]],Risikoregister[[#This Row],[W. num Portfolio (vor Maßnahme)]])","v":{"$error":"#N/A"}},{"$f":"IF(Risikoregister[[#This Row],[Maßnahmen-Status]]=Planung!$W$9,Risikoregister[[#This Row],[A. num (nach Maßnahme)2]],Risikoregister[[#This Row],[A. num Portfolio (vor Maßnahme)]])","v":{"$error":"#N/A"}},null,{"$f":"VLOOKUP(Risikoregister[[#This Row],[Zeitraum von]],Zeiträume[],2,FALSE)","v":{"$error":"#N/A"}},{"$f":"IF(ISBLANK(Risikoregister[[#This Row],[Zeitraum bis]]),Risikoregister[[#This Row],[Zeitraum von num]],VLOOKUP(Risikoregister[[#This Row],[Zeitraum bis]],Zeiträume[],2,FALSE))","v":{"$error":"#N/A"}},{"$f":"IFERROR(IF(AND(Risikoregister[[#This Row],[Zeitraum von num]]<=1,1<=Risikoregister[[#This Row],[Zeitraum bis num]]),Risikoregister[[#This Row],[Risikowert (in Punkten)]],0),\"\")","v":""},{"$f":"IFERROR(IF(AND(Risikoregister[[#This Row],[Zeitraum von num]]<=2,2<=Risikoregister[[#This Row],[Zeitraum bis num]]),Risikoregister[[#This Row],[Risikowert (in Punkten)]],0),\"\")","v":""},{"$f":"IFERROR(IF(AND(Risikoregister[[#This Row],[Zeitraum von num]]<=3,3<=Risikoregister[[#This Row],[Zeitraum bis num]]),Risikoregister[[#This Row],[Risikowert (in Punkten)]],0),\"\")","v":""},{"$f":"IFERROR(IF(AND(Risikoregister[[#This Row],[Zeitraum von num]]<=4,4<=Risikoregister[[#This Row],[Zeitraum bis num]]),Risikoregister[[#This Row],[Risikowert (in Punkten)]],0),\"\")","v":""},{"$f":"IFERROR(IF(AND(Risikoregister[[#This Row],[Zeitraum von num]]<=5,5<=Risikoregister[[#This Row],[Zeitraum bis num]]),Risikoregister[[#This Row],[Risikowert (in Punkten)]],0),\"\")","v":""},{"$f":"IFERROR(IF(AND(Risikoregister[[#This Row],[Zeitraum von num]]<=6,6<=Risikoregister[[#This Row],[Zeitraum bis num]]),Risikoregister[[#This Row],[Risikowert (in Punkten)]],0),\"\")","v":""},{"$f":"IFERROR(IF(AND(Risikoregister[[#This Row],[Zeitraum von num]]<=7,7<=Risikoregister[[#This Row],[Zeitraum bis num]]),Risikoregister[[#This Row],[Risikowert (in Punkten)]],0),\"\")","v":""},{"$f":"IFERROR(IF(AND(Risikoregister[[#This Row],[Zeitraum von num]]<=8,8<=Risikoregister[[#This Row],[Zeitraum bis num]]),Risikoregister[[#This Row],[Risikowert (in Punkten)]],0),\"\")","v":""},{"$f":"IFERROR(IF(AND(Risikoregister[[#This Row],[Zeitraum von num]]<=9,9<=Risikoregister[[#This Row],[Zeitraum bis num]]),Risikoregister[[#This Row],[Risikowert (in Punkten)]],0),\"\")","v":""}]
[null,null,null,null,null,null,null,null,null,null,null,null,null,null,null,null,null,null,{"$f":"IFERROR(Risikoregister[[#This Row],[W. num (vor Maßnahme)]]*Risikoregister[[#This Row],[A. num (vor Maßnahme)]],#N/A)","v":{"$error":"#N/A"}},null,null,null,null,null,{"$f":"IFERROR(Risikoregister[[#This Row],[Wahrscheinlichkeit quant. (vor Maßnahme)]]*Risikoregister[[#This Row],[Auswirkung Kosten quant.]],#N/A)","v":0},null,null,null,null,null,null,null,null,null,{"$f":"IFERROR(VLOOKUP(Risikoregister[[#This Row],[Wahrscheinlichkeit* (nach Maßnahme)]],Tab_Wahrscheinlichkeit[],7,0)*Risikoregister[[#This Row],[A. num (nach Maßnahme)]],#N/A)","v":{"$error":"#N/A"}},{"$f":"IFERROR(VLOOKUP(Risikoregister[[#This Row],[Wahrscheinlichkeit* (nach Maßnahme)]],Tab_Wahrscheinlichkeit[],6,0)*Risikoregister[[#This Row],[Auswirkung Kosten quant.]],#N/A)","v":{"$error":"#N/A"}},null,null,null,null,null,null,{"$f":"IFERROR(VLOOKUP(Risikoregister[[#This Row],[Wahrscheinlichkeit qual. (vor Maßnahme)]],Tab_Wahrscheinlichkeit[],7,FALSE),#N/A)","v":{"$error":"#N/A"}},{"$f":"IFERROR(VLOOKUP(Risikoregister[[#This Row],[Wahrscheinlichkeit qual. (vor Maßnahme)]],Tab_Wahrscheinlichkeit[],5,FALSE)+Versatz_Portfolio,#N/A)","v":{"$error":"#N/A"}},{"$f":"MAX(\n  IF(ISBLANK(Risikoregister[[#This Row],[Auswirkung Kosten qual. (vor Maßnahme)]]),0,\n    VLOOKUP(Risikoregister[[#This Row],[Auswirkung Kosten qual. (vor Maßnahme)]],Tab_Auswirkung[],6,FALSE)\n  ),\n  IF(ISBLANK(Risikoregister[[#This Row],[Auswirkung Termine  qual.  (vor Maßnahme)]]),0,\n    VLOOKUP(Risikoregister[[#This Row],[Auswirkung Termine  qual.  (vor Maßnahme)]],Tab_Auswirkung[],6,FALSE)\n  ),\n  IF(ISBLANK(Risikoregister[[#This Row],[Auswirkung Leistung  qual.  (vor Maßnahme)]]),0,\n    VLOOKUP(Risikoregister[[#This Row],[Auswirkung Leistung  qual.  (vor Maßnahme)]],Tab_Auswirkung[],6,FALSE)\n  ),\n)","v":0},{"$f":"MAX(\n  IF(ISBLANK(Risikoregister[[#This Row],[Auswirkung Kosten (nach Maßnahme)]]),0,\n    VLOOKUP(Risikoregister[[#This Row],[Auswirkung Kosten (nach Maßnahme)]],Tab_Auswirkung[],6,FALSE)\n  ),\n  IF(ISBLANK(Risikoregister[[#This Row],[Auswirkung Termine (nach Maßnahme)]]),0,\n    VLOOKUP(Risikoregister[[#This Row],[Auswirkung Termine (nach Maßnahme)]],Tab_Auswirkung[],6,FALSE)\n  ),\n  IF(ISBLANK(Risikoregister[[#This Row],[Auswirkung Leistung (nach Maßnahme)]]),0,\n    VLOOKUP(Risikoregister[[#This Row],[Auswirkung Leistung (nach Maßnahme)]],Tab_Auswirkung[],6,FALSE)\n  ),\n)","v":0},{"$f":"MAX(\n  IF(ISBLANK(Risikoregister[[#This Row],[Auswirkung Kosten qual. (vor Maßnahme)]]),0,\n    VLOOKUP(Risikoregister[[#This Row],[Auswirkung Kosten qual. (vor Maßnahme)]],Tab_Auswirkung[],5,FALSE)\n  ),\n  IF(ISBLANK(Risikoregister[[#This Row],[Auswirkung Termine  qual.  (vor Maßnahme)]]),0,\n    VLOOKUP(Risikoregister[[#This Row],[Auswirkung Termine  qual.  (vor Maßnahme)]],Tab_Auswirkung[],5,FALSE)\n  ),\n  IF(ISBLANK(Risikoregister[[#This Row],[Auswirkung Leistung  qual.  (vor Maßnahme)]]),0,\n    VLOOKUP(Risikoregister[[#This Row],[Auswirkung Leistung  qual.  (vor Maßnahme)]],Tab_Auswirkung[],5,FALSE)\n  ),\n)","v":0},{"$f":"MAX(\n  IF(ISBLANK(Risikoregister[[#This Row],[Auswirkung Kosten (nach Maßnahme)]]),0,\n    VLOOKUP(Risikoregister[[#This Row],[Auswirkung Kosten (nach Maßnahme)]],Tab_Auswirkung[],5,FALSE)\n  ),\n  IF(ISBLANK(Risikoregister[[#This Row],[Auswirkung Termine (nach Maßnahme)]]),0,\n    VLOOKUP(Risikoregister[[#This Row],[Auswirkung Termine (nach Maßnahme)]],Tab_Auswirkung[],5,FALSE)\n  ),\n  IF(ISBLANK(Risikoregister[[#This Row],[Auswirkung Leistung (nach Maßnahme)]]),0,\n    VLOOKUP(Risikoregister[[#This Row],[Auswirkung Leistung (nach Maßnahme)]],Tab_Auswirkung[],5,FALSE)\n  ),\n)","v":0},{"$f":"IF(Risikoregister[[#This Row],[A. num Portfolio Hilfswert  (vor Maßnahme)]]=0,#N/A,Risikoregister[[#This Row],[A. num Portfolio Hilfswert  (vor Maßnahme)]]+Versatz_Portfolio)","v":{"$error":"#N/A"}},{"$f":"IFERROR(VLOOKUP(Risikoregister[[#This Row],[Wahrscheinlichkeit* (nach Maßnahme)]],Tab_Wahrscheinlichkeit[],5,FALSE)+Versatz_Portfolio,#N/A)","v":{"$error":"#N/A"}},{"$f":"IF(Risikoregister[[#This Row],[A. num Portfolio Hilfswert  (nach Maßnahme)]]=0,#N/A,Risikoregister[[#This Row],[A. num Portfolio Hilfswert  (nach Maßnahme)]]+Versatz_Portfolio)","v":{"$error":"#N/A"}},{"$f":"IF(Risikoregister[[#This Row],[Maßnahmen-Status]]=Planung!$W$9,Risikoregister[[#This Row],[W. num (nach Maßnahme)]],Risikoregister[[#This Row],[W. num Portfolio (vor Maßnahme)]])","v":{"$error":"#N/A"}},{"$f":"IF(Risikoregister[[#This Row],[Maßnahmen-Status]]=Planung!$W$9,Risikoregister[[#This Row],[A. num (nach Maßnahme)2]],Risikoregister[[#This Row],[A. num Portfolio (vor Maßnahme)]])","v":{"$error":"#N/A"}},null,{"$f":"VLOOKUP(Risikoregister[[#This Row],[Zeitraum von]],Zeiträume[],2,FALSE)","v":{"$error":"#N/A"}},{"$f":"IF(ISBLANK(Risikoregister[[#This Row],[Zeitraum bis]]),Risikoregister[[#This Row],[Zeitraum von num]],VLOOKUP(Risikoregister[[#This Row],[Zeitraum bis]],Zeiträume[],2,FALSE))","v":{"$error":"#N/A"}},{"$f":"IFERROR(IF(AND(Risikoregister[[#This Row],[Zeitraum von num]]<=1,1<=Risikoregister[[#This Row],[Zeitraum bis num]]),Risikoregister[[#This Row],[Risikowert (in Punkten)]],0),\"\")","v":""},{"$f":"IFERROR(IF(AND(Risikoregister[[#This Row],[Zeitraum von num]]<=2,2<=Risikoregister[[#This Row],[Zeitraum bis num]]),Risikoregister[[#This Row],[Risikowert (in Punkten)]],0),\"\")","v":""},{"$f":"IFERROR(IF(AND(Risikoregister[[#This Row],[Zeitraum von num]]<=3,3<=Risikoregister[[#This Row],[Zeitraum bis num]]),Risikoregister[[#This Row],[Risikowert (in Punkten)]],0),\"\")","v":""},{"$f":"IFERROR(IF(AND(Risikoregister[[#This Row],[Zeitraum von num]]<=4,4<=Risikoregister[[#This Row],[Zeitraum bis num]]),Risikoregister[[#This Row],[Risikowert (in Punkten)]],0),\"\")","v":""},{"$f":"IFERROR(IF(AND(Risikoregister[[#This Row],[Zeitraum von num]]<=5,5<=Risikoregister[[#This Row],[Zeitraum bis num]]),Risikoregister[[#This Row],[Risikowert (in Punkten)]],0),\"\")","v":""},{"$f":"IFERROR(IF(AND(Risikoregister[[#This Row],[Zeitraum von num]]<=6,6<=Risikoregister[[#This Row],[Zeitraum bis num]]),Risikoregister[[#This Row],[Risikowert (in Punkten)]],0),\"\")","v":""},{"$f":"IFERROR(IF(AND(Risikoregister[[#This Row],[Zeitraum von num]]<=7,7<=Risikoregister[[#This Row],[Zeitraum bis num]]),Risikoregister[[#This Row],[Risikowert (in Punkten)]],0),\"\")","v":""},{"$f":"IFERROR(IF(AND(Risikoregister[[#This Row],[Zeitraum von num]]<=8,8<=Risikoregister[[#This Row],[Zeitraum bis num]]),Risikoregister[[#This Row],[Risikowert (in Punkten)]],0),\"\")","v":""},{"$f":"IFERROR(IF(AND(Risikoregister[[#This Row],[Zeitraum von num]]<=9,9<=Risikoregister[[#This Row],[Zeitraum bis num]]),Risikoregister[[#This Row],[Risikowert (in Punkten)]],0),\"\")","v":""}]
[null,null,null,null,null,null,null,null,null,null,null,null,null,null,null,null,null,null,{"$f":"IFERROR(Risikoregister[[#This Row],[W. num (vor Maßnahme)]]*Risikoregister[[#This Row],[A. num (vor Maßnahme)]],#N/A)","v":{"$error":"#N/A"}},null,null,null,null,null,{"$f":"IFERROR(Risikoregister[[#This Row],[Wahrscheinlichkeit quant. (vor Maßnahme)]]*Risikoregister[[#This Row],[Auswirkung Kosten quant.]],#N/A)","v":0},null,null,null,null,null,null,null,null,null,{"$f":"IFERROR(VLOOKUP(Risikoregister[[#This Row],[Wahrscheinlichkeit* (nach Maßnahme)]],Tab_Wahrscheinlichkeit[],7,0)*Risikoregister[[#This Row],[A. num (nach Maßnahme)]],#N/A)","v":{"$error":"#N/A"}},{"$f":"IFERROR(VLOOKUP(Risikoregister[[#This Row],[Wahrscheinlichkeit* (nach Maßnahme)]],Tab_Wahrscheinlichkeit[],6,0)*Risikoregister[[#This Row],[Auswirkung Kosten quant.]],#N/A)","v":{"$error":"#N/A"}},null,null,null,null,null,null,{"$f":"IFERROR(VLOOKUP(Risikoregister[[#This Row],[Wahrscheinlichkeit qual. (vor Maßnahme)]],Tab_Wahrscheinlichkeit[],7,FALSE),#N/A)","v":{"$error":"#N/A"}},{"$f":"IFERROR(VLOOKUP(Risikoregister[[#This Row],[Wahrscheinlichkeit qual. (vor Maßnahme)]],Tab_Wahrscheinlichkeit[],5,FALSE)+Versatz_Portfolio,#N/A)","v":{"$error":"#N/A"}},{"$f":"MAX(\n  IF(ISBLANK(Risikoregister[[#This Row],[Auswirkung Kosten qual. (vor Maßnahme)]]),0,\n    VLOOKUP(Risikoregister[[#This Row],[Auswirkung Kosten qual. (vor Maßnahme)]],Tab_Auswirkung[],6,FALSE)\n  ),\n  IF(ISBLANK(Risikoregister[[#This Row],[Auswirkung Termine  qual.  (vor Maßnahme)]]),0,\n    VLOOKUP(Risikoregister[[#This Row],[Auswirkung Termine  qual.  (vor Maßnahme)]],Tab_Auswirkung[],6,FALSE)\n  ),\n  IF(ISBLANK(Risikoregister[[#This Row],[Auswirkung Leistung  qual.  (vor Maßnahme)]]),0,\n    VLOOKUP(Risikoregister[[#This Row],[Auswirkung Leistung  qual.  (vor Maßnahme)]],Tab_Auswirkung[],6,FALSE)\n  ),\n)","v":0},{"$f":"MAX(\n  IF(ISBLANK(Risikoregister[[#This Row],[Auswirkung Kosten (nach Maßnahme)]]),0,\n    VLOOKUP(Risikoregister[[#This Row],[Auswirkung Kosten (nach Maßnahme)]],Tab_Auswirkung[],6,FALSE)\n  ),\n  IF(ISBLANK(Risikoregister[[#This Row],[Auswirkung Termine (nach Maßnahme)]]),0,\n    VLOOKUP(Risikoregister[[#This Row],[Auswirkung Termine (nach Maßnahme)]],Tab_Auswirkung[],6,FALSE)\n  ),\n  IF(ISBLANK(Risikoregister[[#This Row],[Auswirkung Leistung (nach Maßnahme)]]),0,\n    VLOOKUP(Risikoregister[[#This Row],[Auswirkung Leistung (nach Maßnahme)]],Tab_Auswirkung[],6,FALSE)\n  ),\n)","v":0},{"$f":"MAX(\n  IF(ISBLANK(Risikoregister[[#This Row],[Auswirkung Kosten qual. (vor Maßnahme)]]),0,\n    VLOOKUP(Risikoregister[[#This Row],[Auswirkung Kosten qual. (vor Maßnahme)]],Tab_Auswirkung[],5,FALSE)\n  ),\n  IF(ISBLANK(Risikoregister[[#This Row],[Auswirkung Termine  qual.  (vor Maßnahme)]]),0,\n    VLOOKUP(Risikoregister[[#This Row],[Auswirkung Termine  qual.  (vor Maßnahme)]],Tab_Auswirkung[],5,FALSE)\n  ),\n  IF(ISBLANK(Risikoregister[[#This Row],[Auswirkung Leistung  qual.  (vor Maßnahme)]]),0,\n    VLOOKUP(Risikoregister[[#This Row],[Auswirkung Leistung  qual.  (vor Maßnahme)]],Tab_Auswirkung[],5,FALSE)\n  ),\n)","v":0},{"$f":"MAX(\n  IF(ISBLANK(Risikoregister[[#This Row],[Auswirkung Kosten (nach Maßnahme)]]),0,\n    VLOOKUP(Risikoregister[[#This Row],[Auswirkung Kosten (nach Maßnahme)]],Tab_Auswirkung[],5,FALSE)\n  ),\n  IF(ISBLANK(Risikoregister[[#This Row],[Auswirkung Termine (nach Maßnahme)]]),0,\n    VLOOKUP(Risikoregister[[#This Row],[Auswirkung Termine (nach Maßnahme)]],Tab_Auswirkung[],5,FALSE)\n  ),\n  IF(ISBLANK(Risikoregister[[#This Row],[Auswirkung Leistung (nach Maßnahme)]]),0,\n    VLOOKUP(Risikoregister[[#This Row],[Auswirkung Leistung (nach Maßnahme)]],Tab_Auswirkung[],5,FALSE)\n  ),\n)","v":0},{"$f":"IF(Risikoregister[[#This Row],[A. num Portfolio Hilfswert  (vor Maßnahme)]]=0,#N/A,Risikoregister[[#This Row],[A. num Portfolio Hilfswert  (vor Maßnahme)]]+Versatz_Portfolio)","v":{"$error":"#N/A"}},{"$f":"IFERROR(VLOOKUP(Risikoregister[[#This Row],[Wahrscheinlichkeit* (nach Maßnahme)]],Tab_Wahrscheinlichkeit[],5,FALSE)+Versatz_Portfolio,#N/A)","v":{"$error":"#N/A"}},{"$f":"IF(Risikoregister[[#This Row],[A. num Portfolio Hilfswert  (nach Maßnahme)]]=0,#N/A,Risikoregister[[#This Row],[A. num Portfolio Hilfswert  (nach Maßnahme)]]+Versatz_Portfolio)","v":{"$error":"#N/A"}},{"$f":"IF(Risikoregister[[#This Row],[Maßnahmen-Status]]=Planung!$W$9,Risikoregister[[#This Row],[W. num (nach Maßnahme)]],Risikoregister[[#This Row],[W. num Portfolio (vor Maßnahme)]])","v":{"$error":"#N/A"}},{"$f":"IF(Risikoregister[[#This Row],[Maßnahmen-Status]]=Planung!$W$9,Risikoregister[[#This Row],[A. num (nach Maßnahme)2]],Risikoregister[[#This Row],[A. num Portfolio (vor Maßnahme)]])","v":{"$error":"#N/A"}},null,{"$f":"VLOOKUP(Risikoregister[[#This Row],[Zeitraum von]],Zeiträume[],2,FALSE)","v":{"$error":"#N/A"}},{"$f":"IF(ISBLANK(Risikoregister[[#This Row],[Zeitraum bis]]),Risikoregister[[#This Row],[Zeitraum von num]],VLOOKUP(Risikoregister[[#This Row],[Zeitraum bis]],Zeiträume[],2,FALSE))","v":{"$error":"#N/A"}},{"$f":"IFERROR(IF(AND(Risikoregister[[#This Row],[Zeitraum von num]]<=1,1<=Risikoregister[[#This Row],[Zeitraum bis num]]),Risikoregister[[#This Row],[Risikowert (in Punkten)]],0),\"\")","v":""},{"$f":"IFERROR(IF(AND(Risikoregister[[#This Row],[Zeitraum von num]]<=2,2<=Risikoregister[[#This Row],[Zeitraum bis num]]),Risikoregister[[#This Row],[Risikowert (in Punkten)]],0),\"\")","v":""},{"$f":"IFERROR(IF(AND(Risikoregister[[#This Row],[Zeitraum von num]]<=3,3<=Risikoregister[[#This Row],[Zeitraum bis num]]),Risikoregister[[#This Row],[Risikowert (in Punkten)]],0),\"\")","v":""},{"$f":"IFERROR(IF(AND(Risikoregister[[#This Row],[Zeitraum von num]]<=4,4<=Risikoregister[[#This Row],[Zeitraum bis num]]),Risikoregister[[#This Row],[Risikowert (in Punkten)]],0),\"\")","v":""},{"$f":"IFERROR(IF(AND(Risikoregister[[#This Row],[Zeitraum von num]]<=5,5<=Risikoregister[[#This Row],[Zeitraum bis num]]),Risikoregister[[#This Row],[Risikowert (in Punkten)]],0),\"\")","v":""},{"$f":"IFERROR(IF(AND(Risikoregister[[#This Row],[Zeitraum von num]]<=6,6<=Risikoregister[[#This Row],[Zeitraum bis num]]),Risikoregister[[#This Row],[Risikowert (in Punkten)]],0),\"\")","v":""},{"$f":"IFERROR(IF(AND(Risikoregister[[#This Row],[Zeitraum von num]]<=7,7<=Risikoregister[[#This Row],[Zeitraum bis num]]),Risikoregister[[#This Row],[Risikowert (in Punkten)]],0),\"\")","v":""},{"$f":"IFERROR(IF(AND(Risikoregister[[#This Row],[Zeitraum von num]]<=8,8<=Risikoregister[[#This Row],[Zeitraum bis num]]),Risikoregister[[#This Row],[Risikowert (in Punkten)]],0),\"\")","v":""},{"$f":"IFERROR(IF(AND(Risikoregister[[#This Row],[Zeitraum von num]]<=9,9<=Risikoregister[[#This Row],[Zeitraum bis num]]),Risikoregister[[#This Row],[Risikowert (in Punkten)]],0),\"\")","v":""}]
[null,null,null,null,null,null,null,null,null,null,null,null,null,null,null,null,null,null,{"$f":"IFERROR(Risikoregister[[#This Row],[W. num (vor Maßnahme)]]*Risikoregister[[#This Row],[A. num (vor Maßnahme)]],#N/A)","v":{"$error":"#N/A"}},null,null,null,null,null,{"$f":"IFERROR(Risikoregister[[#This Row],[Wahrscheinlichkeit quant. (vor Maßnahme)]]*Risikoregister[[#This Row],[Auswirkung Kosten quant.]],#N/A)","v":0},null,null,null,null,null,null,null,null,null,{"$f":"IFERROR(VLOOKUP(Risikoregister[[#This Row],[Wahrscheinlichkeit* (nach Maßnahme)]],Tab_Wahrscheinlichkeit[],7,0)*Risikoregister[[#This Row],[A. num (nach Maßnahme)]],#N/A)","v":{"$error":"#N/A"}},{"$f":"IFERROR(VLOOKUP(Risikoregister[[#This Row],[Wahrscheinlichkeit* (nach Maßnahme)]],Tab_Wahrscheinlichkeit[],6,0)*Risikoregister[[#This Row],[Auswirkung Kosten quant.]],#N/A)","v":{"$error":"#N/A"}},null,null,null,null,null,null,{"$f":"IFERROR(VLOOKUP(Risikoregister[[#This Row],[Wahrscheinlichkeit qual. (vor Maßnahme)]],Tab_Wahrscheinlichkeit[],7,FALSE),#N/A)","v":{"$error":"#N/A"}},{"$f":"IFERROR(VLOOKUP(Risikoregister[[#This Row],[Wahrscheinlichkeit qual. (vor Maßnahme)]],Tab_Wahrscheinlichkeit[],5,FALSE)+Versatz_Portfolio,#N/A)","v":{"$error":"#N/A"}},{"$f":"MAX(\n  IF(ISBLANK(Risikoregister[[#This Row],[Auswirkung Kosten qual. (vor Maßnahme)]]),0,\n    VLOOKUP(Risikoregister[[#This Row],[Auswirkung Kosten qual. (vor Maßnahme)]],Tab_Auswirkung[],6,FALSE)\n  ),\n  IF(ISBLANK(Risikoregister[[#This Row],[Auswirkung Termine  qual.  (vor Maßnahme)]]),0,\n    VLOOKUP(Risikoregister[[#This Row],[Auswirkung Termine  qual.  (vor Maßnahme)]],Tab_Auswirkung[],6,FALSE)\n  ),\n  IF(ISBLANK(Risikoregister[[#This Row],[Auswirkung Leistung  qual.  (vor Maßnahme)]]),0,\n    VLOOKUP(Risikoregister[[#This Row],[Auswirkung Leistung  qual.  (vor Maßnahme)]],Tab_Auswirkung[],6,FALSE)\n  ),\n)","v":0},{"$f":"MAX(\n  IF(ISBLANK(Risikoregister[[#This Row],[Auswirkung Kosten (nach Maßnahme)]]),0,\n    VLOOKUP(Risikoregister[[#This Row],[Auswirkung Kosten (nach Maßnahme)]],Tab_Auswirkung[],6,FALSE)\n  ),\n  IF(ISBLANK(Risikoregister[[#This Row],[Auswirkung Termine (nach Maßnahme)]]),0,\n    VLOOKUP(Risikoregister[[#This Row],[Auswirkung Termine (nach Maßnahme)]],Tab_Auswirkung[],6,FALSE)\n  ),\n  IF(ISBLANK(Risikoregister[[#This Row],[Auswirkung Leistung (nach Maßnahme)]]),0,\n    VLOOKUP(Risikoregister[[#This Row],[Auswirkung Leistung (nach Maßnahme)]],Tab_Auswirkung[],6,FALSE)\n  ),\n)","v":0},{"$f":"MAX(\n  IF(ISBLANK(Risikoregister[[#This Row],[Auswirkung Kosten qual. (vor Maßnahme)]]),0,\n    VLOOKUP(Risikoregister[[#This Row],[Auswirkung Kosten qual. (vor Maßnahme)]],Tab_Auswirkung[],5,FALSE)\n  ),\n  IF(ISBLANK(Risikoregister[[#This Row],[Auswirkung Termine  qual.  (vor Maßnahme)]]),0,\n    VLOOKUP(Risikoregister[[#This Row],[Auswirkung Termine  qual.  (vor Maßnahme)]],Tab_Auswirkung[],5,FALSE)\n  ),\n  IF(ISBLANK(Risikoregister[[#This Row],[Auswirkung Leistung  qual.  (vor Maßnahme)]]),0,\n    VLOOKUP(Risikoregister[[#This Row],[Auswirkung Leistung  qual.  (vor Maßnahme)]],Tab_Auswirkung[],5,FALSE)\n  ),\n)","v":0},{"$f":"MAX(\n  IF(ISBLANK(Risikoregister[[#This Row],[Auswirkung Kosten (nach Maßnahme)]]),0,\n    VLOOKUP(Risikoregister[[#This Row],[Auswirkung Kosten (nach Maßnahme)]],Tab_Auswirkung[],5,FALSE)\n  ),\n  IF(ISBLANK(Risikoregister[[#This Row],[Auswirkung Termine (nach Maßnahme)]]),0,\n    VLOOKUP(Risikoregister[[#This Row],[Auswirkung Termine (nach Maßnahme)]],Tab_Auswirkung[],5,FALSE)\n  ),\n  IF(ISBLANK(Risikoregister[[#This Row],[Auswirkung Leistung (nach Maßnahme)]]),0,\n    VLOOKUP(Risikoregister[[#This Row],[Auswirkung Leistung (nach Maßnahme)]],Tab_Auswirkung[],5,FALSE)\n  ),\n)","v":0},{"$f":"IF(Risikoregister[[#This Row],[A. num Portfolio Hilfswert  (vor Maßnahme)]]=0,#N/A,Risikoregister[[#This Row],[A. num Portfolio Hilfswert  (vor Maßnahme)]]+Versatz_Portfolio)","v":{"$error":"#N/A"}},{"$f":"IFERROR(VLOOKUP(Risikoregister[[#This Row],[Wahrscheinlichkeit* (nach Maßnahme)]],Tab_Wahrscheinlichkeit[],5,FALSE)+Versatz_Portfolio,#N/A)","v":{"$error":"#N/A"}},{"$f":"IF(Risikoregister[[#This Row],[A. num Portfolio Hilfswert  (nach Maßnahme)]]=0,#N/A,Risikoregister[[#This Row],[A. num Portfolio Hilfswert  (nach Maßnahme)]]+Versatz_Portfolio)","v":{"$error":"#N/A"}},{"$f":"IF(Risikoregister[[#This Row],[Maßnahmen-Status]]=Planung!$W$9,Risikoregister[[#This Row],[W. num (nach Maßnahme)]],Risikoregister[[#This Row],[W. num Portfolio (vor Maßnahme)]])","v":{"$error":"#N/A"}},{"$f":"IF(Risikoregister[[#This Row],[Maßnahmen-Status]]=Planung!$W$9,Risikoregister[[#This Row],[A. num (nach Maßnahme)2]],Risikoregister[[#This Row],[A. num Portfolio (vor Maßnahme)]])","v":{"$error":"#N/A"}},null,{"$f":"VLOOKUP(Risikoregister[[#This Row],[Zeitraum von]],Zeiträume[],2,FALSE)","v":{"$error":"#N/A"}},{"$f":"IF(ISBLANK(Risikoregister[[#This Row],[Zeitraum bis]]),Risikoregister[[#This Row],[Zeitraum von num]],VLOOKUP(Risikoregister[[#This Row],[Zeitraum bis]],Zeiträume[],2,FALSE))","v":{"$error":"#N/A"}},{"$f":"IFERROR(IF(AND(Risikoregister[[#This Row],[Zeitraum von num]]<=1,1<=Risikoregister[[#This Row],[Zeitraum bis num]]),Risikoregister[[#This Row],[Risikowert (in Punkten)]],0),\"\")","v":""},{"$f":"IFERROR(IF(AND(Risikoregister[[#This Row],[Zeitraum von num]]<=2,2<=Risikoregister[[#This Row],[Zeitraum bis num]]),Risikoregister[[#This Row],[Risikowert (in Punkten)]],0),\"\")","v":""},{"$f":"IFERROR(IF(AND(Risikoregister[[#This Row],[Zeitraum von num]]<=3,3<=Risikoregister[[#This Row],[Zeitraum bis num]]),Risikoregister[[#This Row],[Risikowert (in Punkten)]],0),\"\")","v":""},{"$f":"IFERROR(IF(AND(Risikoregister[[#This Row],[Zeitraum von num]]<=4,4<=Risikoregister[[#This Row],[Zeitraum bis num]]),Risikoregister[[#This Row],[Risikowert (in Punkten)]],0),\"\")","v":""},{"$f":"IFERROR(IF(AND(Risikoregister[[#This Row],[Zeitraum von num]]<=5,5<=Risikoregister[[#This Row],[Zeitraum bis num]]),Risikoregister[[#This Row],[Risikowert (in Punkten)]],0),\"\")","v":""},{"$f":"IFERROR(IF(AND(Risikoregister[[#This Row],[Zeitraum von num]]<=6,6<=Risikoregister[[#This Row],[Zeitraum bis num]]),Risikoregister[[#This Row],[Risikowert (in Punkten)]],0),\"\")","v":""},{"$f":"IFERROR(IF(AND(Risikoregister[[#This Row],[Zeitraum von num]]<=7,7<=Risikoregister[[#This Row],[Zeitraum bis num]]),Risikoregister[[#This Row],[Risikowert (in Punkten)]],0),\"\")","v":""},{"$f":"IFERROR(IF(AND(Risikoregister[[#This Row],[Zeitraum von num]]<=8,8<=Risikoregister[[#This Row],[Zeitraum bis num]]),Risikoregister[[#This Row],[Risikowert (in Punkten)]],0),\"\")","v":""},{"$f":"IFERROR(IF(AND(Risikoregister[[#This Row],[Zeitraum von num]]<=9,9<=Risikoregister[[#This Row],[Zeitraum bis num]]),Risikoregister[[#This Row],[Risikowert (in Punkten)]],0),\"\")","v":""}]
[null,null,null,null,null,null,null,null,null,null,null,null,null,null,null,null,null,null,{"$f":"IFERROR(Risikoregister[[#This Row],[W. num (vor Maßnahme)]]*Risikoregister[[#This Row],[A. num (vor Maßnahme)]],#N/A)","v":{"$error":"#N/A"}},null,null,null,null,null,{"$f":"IFERROR(Risikoregister[[#This Row],[Wahrscheinlichkeit quant. (vor Maßnahme)]]*Risikoregister[[#This Row],[Auswirkung Kosten quant.]],#N/A)","v":0},null,null,null,null,null,null,null,null,null,{"$f":"IFERROR(VLOOKUP(Risikoregister[[#This Row],[Wahrscheinlichkeit* (nach Maßnahme)]],Tab_Wahrscheinlichkeit[],7,0)*Risikoregister[[#This Row],[A. num (nach Maßnahme)]],#N/A)","v":{"$error":"#N/A"}},{"$f":"IFERROR(VLOOKUP(Risikoregister[[#This Row],[Wahrscheinlichkeit* (nach Maßnahme)]],Tab_Wahrscheinlichkeit[],6,0)*Risikoregister[[#This Row],[Auswirkung Kosten quant.]],#N/A)","v":{"$error":"#N/A"}},null,null,null,null,null,null,{"$f":"IFERROR(VLOOKUP(Risikoregister[[#This Row],[Wahrscheinlichkeit qual. (vor Maßnahme)]],Tab_Wahrscheinlichkeit[],7,FALSE),#N/A)","v":{"$error":"#N/A"}},{"$f":"IFERROR(VLOOKUP(Risikoregister[[#This Row],[Wahrscheinlichkeit qual. (vor Maßnahme)]],Tab_Wahrscheinlichkeit[],5,FALSE)+Versatz_Portfolio,#N/A)","v":{"$error":"#N/A"}},{"$f":"MAX(\n  IF(ISBLANK(Risikoregister[[#This Row],[Auswirkung Kosten qual. (vor Maßnahme)]]),0,\n    VLOOKUP(Risikoregister[[#This Row],[Auswirkung Kosten qual. (vor Maßnahme)]],Tab_Auswirkung[],6,FALSE)\n  ),\n  IF(ISBLANK(Risikoregister[[#This Row],[Auswirkung Termine  qual.  (vor Maßnahme)]]),0,\n    VLOOKUP(Risikoregister[[#This Row],[Auswirkung Termine  qual.  (vor Maßnahme)]],Tab_Auswirkung[],6,FALSE)\n  ),\n  IF(ISBLANK(Risikoregister[[#This Row],[Auswirkung Leistung  qual.  (vor Maßnahme)]]),0,\n    VLOOKUP(Risikoregister[[#This Row],[Auswirkung Leistung  qual.  (vor Maßnahme)]],Tab_Auswirkung[],6,FALSE)\n  ),\n)","v":0},{"$f":"MAX(\n  IF(ISBLANK(Risikoregister[[#This Row],[Auswirkung Kosten (nach Maßnahme)]]),0,\n    VLOOKUP(Risikoregister[[#This Row],[Auswirkung Kosten (nach Maßnahme)]],Tab_Auswirkung[],6,FALSE)\n  ),\n  IF(ISBLANK(Risikoregister[[#This Row],[Auswirkung Termine (nach Maßnahme)]]),0,\n    VLOOKUP(Risikoregister[[#This Row],[Auswirkung Termine (nach Maßnahme)]],Tab_Auswirkung[],6,FALSE)\n  ),\n  IF(ISBLANK(Risikoregister[[#This Row],[Auswirkung Leistung (nach Maßnahme)]]),0,\n    VLOOKUP(Risikoregister[[#This Row],[Auswirkung Leistung (nach Maßnahme)]],Tab_Auswirkung[],6,FALSE)\n  ),\n)","v":0},{"$f":"MAX(\n  IF(ISBLANK(Risikoregister[[#This Row],[Auswirkung Kosten qual. (vor Maßnahme)]]),0,\n    VLOOKUP(Risikoregister[[#This Row],[Auswirkung Kosten qual. (vor Maßnahme)]],Tab_Auswirkung[],5,FALSE)\n  ),\n  IF(ISBLANK(Risikoregister[[#This Row],[Auswirkung Termine  qual.  (vor Maßnahme)]]),0,\n    VLOOKUP(Risikoregister[[#This Row],[Auswirkung Termine  qual.  (vor Maßnahme)]],Tab_Auswirkung[],5,FALSE)\n  ),\n  IF(ISBLANK(Risikoregister[[#This Row],[Auswirkung Leistung  qual.  (vor Maßnahme)]]),0,\n    VLOOKUP(Risikoregister[[#This Row],[Auswirkung Leistung  qual.  (vor Maßnahme)]],Tab_Auswirkung[],5,FALSE)\n  ),\n)","v":0},{"$f":"MAX(\n  IF(ISBLANK(Risikoregister[[#This Row],[Auswirkung Kosten (nach Maßnahme)]]),0,\n    VLOOKUP(Risikoregister[[#This Row],[Auswirkung Kosten (nach Maßnahme)]],Tab_Auswirkung[],5,FALSE)\n  ),\n  IF(ISBLANK(Risikoregister[[#This Row],[Auswirkung Termine (nach Maßnahme)]]),0,\n    VLOOKUP(Risikoregister[[#This Row],[Auswirkung Termine (nach Maßnahme)]],Tab_Auswirkung[],5,FALSE)\n  ),\n  IF(ISBLANK(Risikoregister[[#This Row],[Auswirkung Leistung (nach Maßnahme)]]),0,\n    VLOOKUP(Risikoregister[[#This Row],[Auswirkung Leistung (nach Maßnahme)]],Tab_Auswirkung[],5,FALSE)\n  ),\n)","v":0},{"$f":"IF(Risikoregister[[#This Row],[A. num Portfolio Hilfswert  (vor Maßnahme)]]=0,#N/A,Risikoregister[[#This Row],[A. num Portfolio Hilfswert  (vor Maßnahme)]]+Versatz_Portfolio)","v":{"$error":"#N/A"}},{"$f":"IFERROR(VLOOKUP(Risikoregister[[#This Row],[Wahrscheinlichkeit* (nach Maßnahme)]],Tab_Wahrscheinlichkeit[],5,FALSE)+Versatz_Portfolio,#N/A)","v":{"$error":"#N/A"}},{"$f":"IF(Risikoregister[[#This Row],[A. num Portfolio Hilfswert  (nach Maßnahme)]]=0,#N/A,Risikoregister[[#This Row],[A. num Portfolio Hilfswert  (nach Maßnahme)]]+Versatz_Portfolio)","v":{"$error":"#N/A"}},{"$f":"IF(Risikoregister[[#This Row],[Maßnahmen-Status]]=Planung!$W$9,Risikoregister[[#This Row],[W. num (nach Maßnahme)]],Risikoregister[[#This Row],[W. num Portfolio (vor Maßnahme)]])","v":{"$error":"#N/A"}},{"$f":"IF(Risikoregister[[#This Row],[Maßnahmen-Status]]=Planung!$W$9,Risikoregister[[#This Row],[A. num (nach Maßnahme)2]],Risikoregister[[#This Row],[A. num Portfolio (vor Maßnahme)]])","v":{"$error":"#N/A"}},null,{"$f":"VLOOKUP(Risikoregister[[#This Row],[Zeitraum von]],Zeiträume[],2,FALSE)","v":{"$error":"#N/A"}},{"$f":"IF(ISBLANK(Risikoregister[[#This Row],[Zeitraum bis]]),Risikoregister[[#This Row],[Zeitraum von num]],VLOOKUP(Risikoregister[[#This Row],[Zeitraum bis]],Zeiträume[],2,FALSE))","v":{"$error":"#N/A"}},{"$f":"IFERROR(IF(AND(Risikoregister[[#This Row],[Zeitraum von num]]<=1,1<=Risikoregister[[#This Row],[Zeitraum bis num]]),Risikoregister[[#This Row],[Risikowert (in Punkten)]],0),\"\")","v":""},{"$f":"IFERROR(IF(AND(Risikoregister[[#This Row],[Zeitraum von num]]<=2,2<=Risikoregister[[#This Row],[Zeitraum bis num]]),Risikoregister[[#This Row],[Risikowert (in Punkten)]],0),\"\")","v":""},{"$f":"IFERROR(IF(AND(Risikoregister[[#This Row],[Zeitraum von num]]<=3,3<=Risikoregister[[#This Row],[Zeitraum bis num]]),Risikoregister[[#This Row],[Risikowert (in Punkten)]],0),\"\")","v":""},{"$f":"IFERROR(IF(AND(Risikoregister[[#This Row],[Zeitraum von num]]<=4,4<=Risikoregister[[#This Row],[Zeitraum bis num]]),Risikoregister[[#This Row],[Risikowert (in Punkten)]],0),\"\")","v":""},{"$f":"IFERROR(IF(AND(Risikoregister[[#This Row],[Zeitraum von num]]<=5,5<=Risikoregister[[#This Row],[Zeitraum bis num]]),Risikoregister[[#This Row],[Risikowert (in Punkten)]],0),\"\")","v":""},{"$f":"IFERROR(IF(AND(Risikoregister[[#This Row],[Zeitraum von num]]<=6,6<=Risikoregister[[#This Row],[Zeitraum bis num]]),Risikoregister[[#This Row],[Risikowert (in Punkten)]],0),\"\")","v":""},{"$f":"IFERROR(IF(AND(Risikoregister[[#This Row],[Zeitraum von num]]<=7,7<=Risikoregister[[#This Row],[Zeitraum bis num]]),Risikoregister[[#This Row],[Risikowert (in Punkten)]],0),\"\")","v":""},{"$f":"IFERROR(IF(AND(Risikoregister[[#This Row],[Zeitraum von num]]<=8,8<=Risikoregister[[#This Row],[Zeitraum bis num]]),Risikoregister[[#This Row],[Risikowert (in Punkten)]],0),\"\")","v":""},{"$f":"IFERROR(IF(AND(Risikoregister[[#This Row],[Zeitraum von num]]<=9,9<=Risikoregister[[#This Row],[Zeitraum bis num]]),Risikoregister[[#This Row],[Risikowert (in Punkten)]],0),\"\")","v":""}]
[null,null,null,null,null,null,null,null,null,null,null,null,null,null,null,null,null,null,{"$f":"IFERROR(Risikoregister[[#This Row],[W. num (vor Maßnahme)]]*Risikoregister[[#This Row],[A. num (vor Maßnahme)]],#N/A)","v":{"$error":"#N/A"}},null,null,null,null,null,{"$f":"IFERROR(Risikoregister[[#This Row],[Wahrscheinlichkeit quant. (vor Maßnahme)]]*Risikoregister[[#This Row],[Auswirkung Kosten quant.]],#N/A)","v":0},null,null,null,null,null,null,null,null,null,{"$f":"IFERROR(VLOOKUP(Risikoregister[[#This Row],[Wahrscheinlichkeit* (nach Maßnahme)]],Tab_Wahrscheinlichkeit[],7,0)*Risikoregister[[#This Row],[A. num (nach Maßnahme)]],#N/A)","v":{"$error":"#N/A"}},{"$f":"IFERROR(VLOOKUP(Risikoregister[[#This Row],[Wahrscheinlichkeit* (nach Maßnahme)]],Tab_Wahrscheinlichkeit[],6,0)*Risikoregister[[#This Row],[Auswirkung Kosten quant.]],#N/A)","v":{"$error":"#N/A"}},null,null,null,null,null,null,{"$f":"IFERROR(VLOOKUP(Risikoregister[[#This Row],[Wahrscheinlichkeit qual. (vor Maßnahme)]],Tab_Wahrscheinlichkeit[],7,FALSE),#N/A)","v":{"$error":"#N/A"}},{"$f":"IFERROR(VLOOKUP(Risikoregister[[#This Row],[Wahrscheinlichkeit qual. (vor Maßnahme)]],Tab_Wahrscheinlichkeit[],5,FALSE)+Versatz_Portfolio,#N/A)","v":{"$error":"#N/A"}},{"$f":"MAX(\n  IF(ISBLANK(Risikoregister[[#This Row],[Auswirkung Kosten qual. (vor Maßnahme)]]),0,\n    VLOOKUP(Risikoregister[[#This Row],[Auswirkung Kosten qual. (vor Maßnahme)]],Tab_Auswirkung[],6,FALSE)\n  ),\n  IF(ISBLANK(Risikoregister[[#This Row],[Auswirkung Termine  qual.  (vor Maßnahme)]]),0,\n    VLOOKUP(Risikoregister[[#This Row],[Auswirkung Termine  qual.  (vor Maßnahme)]],Tab_Auswirkung[],6,FALSE)\n  ),\n  IF(ISBLANK(Risikoregister[[#This Row],[Auswirkung Leistung  qual.  (vor Maßnahme)]]),0,\n    VLOOKUP(Risikoregister[[#This Row],[Auswirkung Leistung  qual.  (vor Maßnahme)]],Tab_Auswirkung[],6,FALSE)\n  ),\n)","v":0},{"$f":"MAX(\n  IF(ISBLANK(Risikoregister[[#This Row],[Auswirkung Kosten (nach Maßnahme)]]),0,\n    VLOOKUP(Risikoregister[[#This Row],[Auswirkung Kosten (nach Maßnahme)]],Tab_Auswirkung[],6,FALSE)\n  ),\n  IF(ISBLANK(Risikoregister[[#This Row],[Auswirkung Termine (nach Maßnahme)]]),0,\n    VLOOKUP(Risikoregister[[#This Row],[Auswirkung Termine (nach Maßnahme)]],Tab_Auswirkung[],6,FALSE)\n  ),\n  IF(ISBLANK(Risikoregister[[#This Row],[Auswirkung Leistung (nach Maßnahme)]]),0,\n    VLOOKUP(Risikoregister[[#This Row],[Auswirkung Leistung (nach Maßnahme)]],Tab_Auswirkung[],6,FALSE)\n  ),\n)","v":0},{"$f":"MAX(\n  IF(ISBLANK(Risikoregister[[#This Row],[Auswirkung Kosten qual. (vor Maßnahme)]]),0,\n    VLOOKUP(Risikoregister[[#This Row],[Auswirkung Kosten qual. (vor Maßnahme)]],Tab_Auswirkung[],5,FALSE)\n  ),\n  IF(ISBLANK(Risikoregister[[#This Row],[Auswirkung Termine  qual.  (vor Maßnahme)]]),0,\n    VLOOKUP(Risikoregister[[#This Row],[Auswirkung Termine  qual.  (vor Maßnahme)]],Tab_Auswirkung[],5,FALSE)\n  ),\n  IF(ISBLANK(Risikoregister[[#This Row],[Auswirkung Leistung  qual.  (vor Maßnahme)]]),0,\n    VLOOKUP(Risikoregister[[#This Row],[Auswirkung Leistung  qual.  (vor Maßnahme)]],Tab_Auswirkung[],5,FALSE)\n  ),\n)","v":0},{"$f":"MAX(\n  IF(ISBLANK(Risikoregister[[#This Row],[Auswirkung Kosten (nach Maßnahme)]]),0,\n    VLOOKUP(Risikoregister[[#This Row],[Auswirkung Kosten (nach Maßnahme)]],Tab_Auswirkung[],5,FALSE)\n  ),\n  IF(ISBLANK(Risikoregister[[#This Row],[Auswirkung Termine (nach Maßnahme)]]),0,\n    VLOOKUP(Risikoregister[[#This Row],[Auswirkung Termine (nach Maßnahme)]],Tab_Auswirkung[],5,FALSE)\n  ),\n  IF(ISBLANK(Risikoregister[[#This Row],[Auswirkung Leistung (nach Maßnahme)]]),0,\n    VLOOKUP(Risikoregister[[#This Row],[Auswirkung Leistung (nach Maßnahme)]],Tab_Auswirkung[],5,FALSE)\n  ),\n)","v":0},{"$f":"IF(Risikoregister[[#This Row],[A. num Portfolio Hilfswert  (vor Maßnahme)]]=0,#N/A,Risikoregister[[#This Row],[A. num Portfolio Hilfswert  (vor Maßnahme)]]+Versatz_Portfolio)","v":{"$error":"#N/A"}},{"$f":"IFERROR(VLOOKUP(Risikoregister[[#This Row],[Wahrscheinlichkeit* (nach Maßnahme)]],Tab_Wahrscheinlichkeit[],5,FALSE)+Versatz_Portfolio,#N/A)","v":{"$error":"#N/A"}},{"$f":"IF(Risikoregister[[#This Row],[A. num Portfolio Hilfswert  (nach Maßnahme)]]=0,#N/A,Risikoregister[[#This Row],[A. num Portfolio Hilfswert  (nach Maßnahme)]]+Versatz_Portfolio)","v":{"$error":"#N/A"}},{"$f":"IF(Risikoregister[[#This Row],[Maßnahmen-Status]]=Planung!$W$9,Risikoregister[[#This Row],[W. num (nach Maßnahme)]],Risikoregister[[#This Row],[W. num Portfolio (vor Maßnahme)]])","v":{"$error":"#N/A"}},{"$f":"IF(Risikoregister[[#This Row],[Maßnahmen-Status]]=Planung!$W$9,Risikoregister[[#This Row],[A. num (nach Maßnahme)2]],Risikoregister[[#This Row],[A. num Portfolio (vor Maßnahme)]])","v":{"$error":"#N/A"}},null,{"$f":"VLOOKUP(Risikoregister[[#This Row],[Zeitraum von]],Zeiträume[],2,FALSE)","v":{"$error":"#N/A"}},{"$f":"IF(ISBLANK(Risikoregister[[#This Row],[Zeitraum bis]]),Risikoregister[[#This Row],[Zeitraum von num]],VLOOKUP(Risikoregister[[#This Row],[Zeitraum bis]],Zeiträume[],2,FALSE))","v":{"$error":"#N/A"}},{"$f":"IFERROR(IF(AND(Risikoregister[[#This Row],[Zeitraum von num]]<=1,1<=Risikoregister[[#This Row],[Zeitraum bis num]]),Risikoregister[[#This Row],[Risikowert (in Punkten)]],0),\"\")","v":""},{"$f":"IFERROR(IF(AND(Risikoregister[[#This Row],[Zeitraum von num]]<=2,2<=Risikoregister[[#This Row],[Zeitraum bis num]]),Risikoregister[[#This Row],[Risikowert (in Punkten)]],0),\"\")","v":""},{"$f":"IFERROR(IF(AND(Risikoregister[[#This Row],[Zeitraum von num]]<=3,3<=Risikoregister[[#This Row],[Zeitraum bis num]]),Risikoregister[[#This Row],[Risikowert (in Punkten)]],0),\"\")","v":""},{"$f":"IFERROR(IF(AND(Risikoregister[[#This Row],[Zeitraum von num]]<=4,4<=Risikoregister[[#This Row],[Zeitraum bis num]]),Risikoregister[[#This Row],[Risikowert (in Punkten)]],0),\"\")","v":""},{"$f":"IFERROR(IF(AND(Risikoregister[[#This Row],[Zeitraum von num]]<=5,5<=Risikoregister[[#This Row],[Zeitraum bis num]]),Risikoregister[[#This Row],[Risikowert (in Punkten)]],0),\"\")","v":""},{"$f":"IFERROR(IF(AND(Risikoregister[[#This Row],[Zeitraum von num]]<=6,6<=Risikoregister[[#This Row],[Zeitraum bis num]]),Risikoregister[[#This Row],[Risikowert (in Punkten)]],0),\"\")","v":""},{"$f":"IFERROR(IF(AND(Risikoregister[[#This Row],[Zeitraum von num]]<=7,7<=Risikoregister[[#This Row],[Zeitraum bis num]]),Risikoregister[[#This Row],[Risikowert (in Punkten)]],0),\"\")","v":""},{"$f":"IFERROR(IF(AND(Risikoregister[[#This Row],[Zeitraum von num]]<=8,8<=Risikoregister[[#This Row],[Zeitraum bis num]]),Risikoregister[[#This Row],[Risikowert (in Punkten)]],0),\"\")","v":""},{"$f":"IFERROR(IF(AND(Risikoregister[[#This Row],[Zeitraum von num]]<=9,9<=Risikoregister[[#This Row],[Zeitraum bis num]]),Risikoregister[[#This Row],[Risikowert (in Punkten)]],0),\"\")","v":""}]
[null,null,null,null,null,null,null,null,null,null,null,null,null,null,null,null,null,null,{"$f":"IFERROR(Risikoregister[[#This Row],[W. num (vor Maßnahme)]]*Risikoregister[[#This Row],[A. num (vor Maßnahme)]],#N/A)","v":{"$error":"#N/A"}},null,null,null,null,null,{"$f":"IFERROR(Risikoregister[[#This Row],[Wahrscheinlichkeit quant. (vor Maßnahme)]]*Risikoregister[[#This Row],[Auswirkung Kosten quant.]],#N/A)","v":0},null,null,null,null,null,null,null,null,null,{"$f":"IFERROR(VLOOKUP(Risikoregister[[#This Row],[Wahrscheinlichkeit* (nach Maßnahme)]],Tab_Wahrscheinlichkeit[],7,0)*Risikoregister[[#This Row],[A. num (nach Maßnahme)]],#N/A)","v":{"$error":"#N/A"}},{"$f":"IFERROR(VLOOKUP(Risikoregister[[#This Row],[Wahrscheinlichkeit* (nach Maßnahme)]],Tab_Wahrscheinlichkeit[],6,0)*Risikoregister[[#This Row],[Auswirkung Kosten quant.]],#N/A)","v":{"$error":"#N/A"}},null,null,null,null,null,null,{"$f":"IFERROR(VLOOKUP(Risikoregister[[#This Row],[Wahrscheinlichkeit qual. (vor Maßnahme)]],Tab_Wahrscheinlichkeit[],7,FALSE),#N/A)","v":{"$error":"#N/A"}},{"$f":"IFERROR(VLOOKUP(Risikoregister[[#This Row],[Wahrscheinlichkeit qual. (vor Maßnahme)]],Tab_Wahrscheinlichkeit[],5,FALSE)+Versatz_Portfolio,#N/A)","v":{"$error":"#N/A"}},{"$f":"MAX(\n  IF(ISBLANK(Risikoregister[[#This Row],[Auswirkung Kosten qual. (vor Maßnahme)]]),0,\n    VLOOKUP(Risikoregister[[#This Row],[Auswirkung Kosten qual. (vor Maßnahme)]],Tab_Auswirkung[],6,FALSE)\n  ),\n  IF(ISBLANK(Risikoregister[[#This Row],[Auswirkung Termine  qual.  (vor Maßnahme)]]),0,\n    VLOOKUP(Risikoregister[[#This Row],[Auswirkung Termine  qual.  (vor Maßnahme)]],Tab_Auswirkung[],6,FALSE)\n  ),\n  IF(ISBLANK(Risikoregister[[#This Row],[Auswirkung Leistung  qual.  (vor Maßnahme)]]),0,\n    VLOOKUP(Risikoregister[[#This Row],[Auswirkung Leistung  qual.  (vor Maßnahme)]],Tab_Auswirkung[],6,FALSE)\n  ),\n)","v":0},{"$f":"MAX(\n  IF(ISBLANK(Risikoregister[[#This Row],[Auswirkung Kosten (nach Maßnahme)]]),0,\n    VLOOKUP(Risikoregister[[#This Row],[Auswirkung Kosten (nach Maßnahme)]],Tab_Auswirkung[],6,FALSE)\n  ),\n  IF(ISBLANK(Risikoregister[[#This Row],[Auswirkung Termine (nach Maßnahme)]]),0,\n    VLOOKUP(Risikoregister[[#This Row],[Auswirkung Termine (nach Maßnahme)]],Tab_Auswirkung[],6,FALSE)\n  ),\n  IF(ISBLANK(Risikoregister[[#This Row],[Auswirkung Leistung (nach Maßnahme)]]),0,\n    VLOOKUP(Risikoregister[[#This Row],[Auswirkung Leistung (nach Maßnahme)]],Tab_Auswirkung[],6,FALSE)\n  ),\n)","v":0},{"$f":"MAX(\n  IF(ISBLANK(Risikoregister[[#This Row],[Auswirkung Kosten qual. (vor Maßnahme)]]),0,\n    VLOOKUP(Risikoregister[[#This Row],[Auswirkung Kosten qual. (vor Maßnahme)]],Tab_Auswirkung[],5,FALSE)\n  ),\n  IF(ISBLANK(Risikoregister[[#This Row],[Auswirkung Termine  qual.  (vor Maßnahme)]]),0,\n    VLOOKUP(Risikoregister[[#This Row],[Auswirkung Termine  qual.  (vor Maßnahme)]],Tab_Auswirkung[],5,FALSE)\n  ),\n  IF(ISBLANK(Risikoregister[[#This Row],[Auswirkung Leistung  qual.  (vor Maßnahme)]]),0,\n    VLOOKUP(Risikoregister[[#This Row],[Auswirkung Leistung  qual.  (vor Maßnahme)]],Tab_Auswirkung[],5,FALSE)\n  ),\n)","v":0},{"$f":"MAX(\n  IF(ISBLANK(Risikoregister[[#This Row],[Auswirkung Kosten (nach Maßnahme)]]),0,\n    VLOOKUP(Risikoregister[[#This Row],[Auswirkung Kosten (nach Maßnahme)]],Tab_Auswirkung[],5,FALSE)\n  ),\n  IF(ISBLANK(Risikoregister[[#This Row],[Auswirkung Termine (nach Maßnahme)]]),0,\n    VLOOKUP(Risikoregister[[#This Row],[Auswirkung Termine (nach Maßnahme)]],Tab_Auswirkung[],5,FALSE)\n  ),\n  IF(ISBLANK(Risikoregister[[#This Row],[Auswirkung Leistung (nach Maßnahme)]]),0,\n    VLOOKUP(Risikoregister[[#This Row],[Auswirkung Leistung (nach Maßnahme)]],Tab_Auswirkung[],5,FALSE)\n  ),\n)","v":0},{"$f":"IF(Risikoregister[[#This Row],[A. num Portfolio Hilfswert  (vor Maßnahme)]]=0,#N/A,Risikoregister[[#This Row],[A. num Portfolio Hilfswert  (vor Maßnahme)]]+Versatz_Portfolio)","v":{"$error":"#N/A"}},{"$f":"IFERROR(VLOOKUP(Risikoregister[[#This Row],[Wahrscheinlichkeit* (nach Maßnahme)]],Tab_Wahrscheinlichkeit[],5,FALSE)+Versatz_Portfolio,#N/A)","v":{"$error":"#N/A"}},{"$f":"IF(Risikoregister[[#This Row],[A. num Portfolio Hilfswert  (nach Maßnahme)]]=0,#N/A,Risikoregister[[#This Row],[A. num Portfolio Hilfswert  (nach Maßnahme)]]+Versatz_Portfolio)","v":{"$error":"#N/A"}},{"$f":"IF(Risikoregister[[#This Row],[Maßnahmen-Status]]=Planung!$W$9,Risikoregister[[#This Row],[W. num (nach Maßnahme)]],Risikoregister[[#This Row],[W. num Portfolio (vor Maßnahme)]])","v":{"$error":"#N/A"}},{"$f":"IF(Risikoregister[[#This Row],[Maßnahmen-Status]]=Planung!$W$9,Risikoregister[[#This Row],[A. num (nach Maßnahme)2]],Risikoregister[[#This Row],[A. num Portfolio (vor Maßnahme)]])","v":{"$error":"#N/A"}},null,{"$f":"VLOOKUP(Risikoregister[[#This Row],[Zeitraum von]],Zeiträume[],2,FALSE)","v":{"$error":"#N/A"}},{"$f":"IF(ISBLANK(Risikoregister[[#This Row],[Zeitraum bis]]),Risikoregister[[#This Row],[Zeitraum von num]],VLOOKUP(Risikoregister[[#This Row],[Zeitraum bis]],Zeiträume[],2,FALSE))","v":{"$error":"#N/A"}},{"$f":"IFERROR(IF(AND(Risikoregister[[#This Row],[Zeitraum von num]]<=1,1<=Risikoregister[[#This Row],[Zeitraum bis num]]),Risikoregister[[#This Row],[Risikowert (in Punkten)]],0),\"\")","v":""},{"$f":"IFERROR(IF(AND(Risikoregister[[#This Row],[Zeitraum von num]]<=2,2<=Risikoregister[[#This Row],[Zeitraum bis num]]),Risikoregister[[#This Row],[Risikowert (in Punkten)]],0),\"\")","v":""},{"$f":"IFERROR(IF(AND(Risikoregister[[#This Row],[Zeitraum von num]]<=3,3<=Risikoregister[[#This Row],[Zeitraum bis num]]),Risikoregister[[#This Row],[Risikowert (in Punkten)]],0),\"\")","v":""},{"$f":"IFERROR(IF(AND(Risikoregister[[#This Row],[Zeitraum von num]]<=4,4<=Risikoregister[[#This Row],[Zeitraum bis num]]),Risikoregister[[#This Row],[Risikowert (in Punkten)]],0),\"\")","v":""},{"$f":"IFERROR(IF(AND(Risikoregister[[#This Row],[Zeitraum von num]]<=5,5<=Risikoregister[[#This Row],[Zeitraum bis num]]),Risikoregister[[#This Row],[Risikowert (in Punkten)]],0),\"\")","v":""},{"$f":"IFERROR(IF(AND(Risikoregister[[#This Row],[Zeitraum von num]]<=6,6<=Risikoregister[[#This Row],[Zeitraum bis num]]),Risikoregister[[#This Row],[Risikowert (in Punkten)]],0),\"\")","v":""},{"$f":"IFERROR(IF(AND(Risikoregister[[#This Row],[Zeitraum von num]]<=7,7<=Risikoregister[[#This Row],[Zeitraum bis num]]),Risikoregister[[#This Row],[Risikowert (in Punkten)]],0),\"\")","v":""},{"$f":"IFERROR(IF(AND(Risikoregister[[#This Row],[Zeitraum von num]]<=8,8<=Risikoregister[[#This Row],[Zeitraum bis num]]),Risikoregister[[#This Row],[Risikowert (in Punkten)]],0),\"\")","v":""},{"$f":"IFERROR(IF(AND(Risikoregister[[#This Row],[Zeitraum von num]]<=9,9<=Risikoregister[[#This Row],[Zeitraum bis num]]),Risikoregister[[#This Row],[Risikowert (in Punkten)]],0),\"\")","v":""}]
[null,null,null,null,null,null,null,null,null,null,null,null,null,null,null,null,null,null,{"$f":"IFERROR(Risikoregister[[#This Row],[W. num (vor Maßnahme)]]*Risikoregister[[#This Row],[A. num (vor Maßnahme)]],#N/A)","v":{"$error":"#N/A"}},null,null,null,null,null,{"$f":"IFERROR(Risikoregister[[#This Row],[Wahrscheinlichkeit quant. (vor Maßnahme)]]*Risikoregister[[#This Row],[Auswirkung Kosten quant.]],#N/A)","v":0},null,null,null,null,null,null,null,null,null,{"$f":"IFERROR(VLOOKUP(Risikoregister[[#This Row],[Wahrscheinlichkeit* (nach Maßnahme)]],Tab_Wahrscheinlichkeit[],7,0)*Risikoregister[[#This Row],[A. num (nach Maßnahme)]],#N/A)","v":{"$error":"#N/A"}},{"$f":"IFERROR(VLOOKUP(Risikoregister[[#This Row],[Wahrscheinlichkeit* (nach Maßnahme)]],Tab_Wahrscheinlichkeit[],6,0)*Risikoregister[[#This Row],[Auswirkung Kosten quant.]],#N/A)","v":{"$error":"#N/A"}},null,null,null,null,null,null,{"$f":"IFERROR(VLOOKUP(Risikoregister[[#This Row],[Wahrscheinlichkeit qual. (vor Maßnahme)]],Tab_Wahrscheinlichkeit[],7,FALSE),#N/A)","v":{"$error":"#N/A"}},{"$f":"IFERROR(VLOOKUP(Risikoregister[[#This Row],[Wahrscheinlichkeit qual. (vor Maßnahme)]],Tab_Wahrscheinlichkeit[],5,FALSE)+Versatz_Portfolio,#N/A)","v":{"$error":"#N/A"}},{"$f":"MAX(\n  IF(ISBLANK(Risikoregister[[#This Row],[Auswirkung Kosten qual. (vor Maßnahme)]]),0,\n    VLOOKUP(Risikoregister[[#This Row],[Auswirkung Kosten qual. (vor Maßnahme)]],Tab_Auswirkung[],6,FALSE)\n  ),\n  IF(ISBLANK(Risikoregister[[#This Row],[Auswirkung Termine  qual.  (vor Maßnahme)]]),0,\n    VLOOKUP(Risikoregister[[#This Row],[Auswirkung Termine  qual.  (vor Maßnahme)]],Tab_Auswirkung[],6,FALSE)\n  ),\n  IF(ISBLANK(Risikoregister[[#This Row],[Auswirkung Leistung  qual.  (vor Maßnahme)]]),0,\n    VLOOKUP(Risikoregister[[#This Row],[Auswirkung Leistung  qual.  (vor Maßnahme)]],Tab_Auswirkung[],6,FALSE)\n  ),\n)","v":0},{"$f":"MAX(\n  IF(ISBLANK(Risikoregister[[#This Row],[Auswirkung Kosten (nach Maßnahme)]]),0,\n    VLOOKUP(Risikoregister[[#This Row],[Auswirkung Kosten (nach Maßnahme)]],Tab_Auswirkung[],6,FALSE)\n  ),\n  IF(ISBLANK(Risikoregister[[#This Row],[Auswirkung Termine (nach Maßnahme)]]),0,\n    VLOOKUP(Risikoregister[[#This Row],[Auswirkung Termine (nach Maßnahme)]],Tab_Auswirkung[],6,FALSE)\n  ),\n  IF(ISBLANK(Risikoregister[[#This Row],[Auswirkung Leistung (nach Maßnahme)]]),0,\n    VLOOKUP(Risikoregister[[#This Row],[Auswirkung Leistung (nach Maßnahme)]],Tab_Auswirkung[],6,FALSE)\n  ),\n)","v":0},{"$f":"MAX(\n  IF(ISBLANK(Risikoregister[[#This Row],[Auswirkung Kosten qual. (vor Maßnahme)]]),0,\n    VLOOKUP(Risikoregister[[#This Row],[Auswirkung Kosten qual. (vor Maßnahme)]],Tab_Auswirkung[],5,FALSE)\n  ),\n  IF(ISBLANK(Risikoregister[[#This Row],[Auswirkung Termine  qual.  (vor Maßnahme)]]),0,\n    VLOOKUP(Risikoregister[[#This Row],[Auswirkung Termine  qual.  (vor Maßnahme)]],Tab_Auswirkung[],5,FALSE)\n  ),\n  IF(ISBLANK(Risikoregister[[#This Row],[Auswirkung Leistung  qual.  (vor Maßnahme)]]),0,\n    VLOOKUP(Risikoregister[[#This Row],[Auswirkung Leistung  qual.  (vor Maßnahme)]],Tab_Auswirkung[],5,FALSE)\n  ),\n)","v":0},{"$f":"MAX(\n  IF(ISBLANK(Risikoregister[[#This Row],[Auswirkung Kosten (nach Maßnahme)]]),0,\n    VLOOKUP(Risikoregister[[#This Row],[Auswirkung Kosten (nach Maßnahme)]],Tab_Auswirkung[],5,FALSE)\n  ),\n  IF(ISBLANK(Risikoregister[[#This Row],[Auswirkung Termine (nach Maßnahme)]]),0,\n    VLOOKUP(Risikoregister[[#This Row],[Auswirkung Termine (nach Maßnahme)]],Tab_Auswirkung[],5,FALSE)\n  ),\n  IF(ISBLANK(Risikoregister[[#This Row],[Auswirkung Leistung (nach Maßnahme)]]),0,\n    VLOOKUP(Risikoregister[[#This Row],[Auswirkung Leistung (nach Maßnahme)]],Tab_Auswirkung[],5,FALSE)\n  ),\n)","v":0},{"$f":"IF(Risikoregister[[#This Row],[A. num Portfolio Hilfswert  (vor Maßnahme)]]=0,#N/A,Risikoregister[[#This Row],[A. num Portfolio Hilfswert  (vor Maßnahme)]]+Versatz_Portfolio)","v":{"$error":"#N/A"}},{"$f":"IFERROR(VLOOKUP(Risikoregister[[#This Row],[Wahrscheinlichkeit* (nach Maßnahme)]],Tab_Wahrscheinlichkeit[],5,FALSE)+Versatz_Portfolio,#N/A)","v":{"$error":"#N/A"}},{"$f":"IF(Risikoregister[[#This Row],[A. num Portfolio Hilfswert  (nach Maßnahme)]]=0,#N/A,Risikoregister[[#This Row],[A. num Portfolio Hilfswert  (nach Maßnahme)]]+Versatz_Portfolio)","v":{"$error":"#N/A"}},{"$f":"IF(Risikoregister[[#This Row],[Maßnahmen-Status]]=Planung!$W$9,Risikoregister[[#This Row],[W. num (nach Maßnahme)]],Risikoregister[[#This Row],[W. num Portfolio (vor Maßnahme)]])","v":{"$error":"#N/A"}},{"$f":"IF(Risikoregister[[#This Row],[Maßnahmen-Status]]=Planung!$W$9,Risikoregister[[#This Row],[A. num (nach Maßnahme)2]],Risikoregister[[#This Row],[A. num Portfolio (vor Maßnahme)]])","v":{"$error":"#N/A"}},null,{"$f":"VLOOKUP(Risikoregister[[#This Row],[Zeitraum von]],Zeiträume[],2,FALSE)","v":{"$error":"#N/A"}},{"$f":"IF(ISBLANK(Risikoregister[[#This Row],[Zeitraum bis]]),Risikoregister[[#This Row],[Zeitraum von num]],VLOOKUP(Risikoregister[[#This Row],[Zeitraum bis]],Zeiträume[],2,FALSE))","v":{"$error":"#N/A"}},{"$f":"IFERROR(IF(AND(Risikoregister[[#This Row],[Zeitraum von num]]<=1,1<=Risikoregister[[#This Row],[Zeitraum bis num]]),Risikoregister[[#This Row],[Risikowert (in Punkten)]],0),\"\")","v":""},{"$f":"IFERROR(IF(AND(Risikoregister[[#This Row],[Zeitraum von num]]<=2,2<=Risikoregister[[#This Row],[Zeitraum bis num]]),Risikoregister[[#This Row],[Risikowert (in Punkten)]],0),\"\")","v":""},{"$f":"IFERROR(IF(AND(Risikoregister[[#This Row],[Zeitraum von num]]<=3,3<=Risikoregister[[#This Row],[Zeitraum bis num]]),Risikoregister[[#This Row],[Risikowert (in Punkten)]],0),\"\")","v":""},{"$f":"IFERROR(IF(AND(Risikoregister[[#This Row],[Zeitraum von num]]<=4,4<=Risikoregister[[#This Row],[Zeitraum bis num]]),Risikoregister[[#This Row],[Risikowert (in Punkten)]],0),\"\")","v":""},{"$f":"IFERROR(IF(AND(Risikoregister[[#This Row],[Zeitraum von num]]<=5,5<=Risikoregister[[#This Row],[Zeitraum bis num]]),Risikoregister[[#This Row],[Risikowert (in Punkten)]],0),\"\")","v":""},{"$f":"IFERROR(IF(AND(Risikoregister[[#This Row],[Zeitraum von num]]<=6,6<=Risikoregister[[#This Row],[Zeitraum bis num]]),Risikoregister[[#This Row],[Risikowert (in Punkten)]],0),\"\")","v":""},{"$f":"IFERROR(IF(AND(Risikoregister[[#This Row],[Zeitraum von num]]<=7,7<=Risikoregister[[#This Row],[Zeitraum bis num]]),Risikoregister[[#This Row],[Risikowert (in Punkten)]],0),\"\")","v":""},{"$f":"IFERROR(IF(AND(Risikoregister[[#This Row],[Zeitraum von num]]<=8,8<=Risikoregister[[#This Row],[Zeitraum bis num]]),Risikoregister[[#This Row],[Risikowert (in Punkten)]],0),\"\")","v":""},{"$f":"IFERROR(IF(AND(Risikoregister[[#This Row],[Zeitraum von num]]<=9,9<=Risikoregister[[#This Row],[Zeitraum bis num]]),Risikoregister[[#This Row],[Risikowert (in Punkten)]],0),\"\")","v":""}]
[null,null,null,null,null,null,null,null,null,null,null,null,null,null,null,null,null,null,{"$f":"IFERROR(Risikoregister[[#This Row],[W. num (vor Maßnahme)]]*Risikoregister[[#This Row],[A. num (vor Maßnahme)]],#N/A)","v":{"$error":"#N/A"}},null,null,null,null,null,{"$f":"IFERROR(Risikoregister[[#This Row],[Wahrscheinlichkeit quant. (vor Maßnahme)]]*Risikoregister[[#This Row],[Auswirkung Kosten quant.]],#N/A)","v":0},null,null,null,null,null,null,null,null,null,{"$f":"IFERROR(VLOOKUP(Risikoregister[[#This Row],[Wahrscheinlichkeit* (nach Maßnahme)]],Tab_Wahrscheinlichkeit[],7,0)*Risikoregister[[#This Row],[A. num (nach Maßnahme)]],#N/A)","v":{"$error":"#N/A"}},{"$f":"IFERROR(VLOOKUP(Risikoregister[[#This Row],[Wahrscheinlichkeit* (nach Maßnahme)]],Tab_Wahrscheinlichkeit[],6,0)*Risikoregister[[#This Row],[Auswirkung Kosten quant.]],#N/A)","v":{"$error":"#N/A"}},null,null,null,null,null,null,{"$f":"IFERROR(VLOOKUP(Risikoregister[[#This Row],[Wahrscheinlichkeit qual. (vor Maßnahme)]],Tab_Wahrscheinlichkeit[],7,FALSE),#N/A)","v":{"$error":"#N/A"}},{"$f":"IFERROR(VLOOKUP(Risikoregister[[#This Row],[Wahrscheinlichkeit qual. (vor Maßnahme)]],Tab_Wahrscheinlichkeit[],5,FALSE)+Versatz_Portfolio,#N/A)","v":{"$error":"#N/A"}},{"$f":"MAX(\n  IF(ISBLANK(Risikoregister[[#This Row],[Auswirkung Kosten qual. (vor Maßnahme)]]),0,\n    VLOOKUP(Risikoregister[[#This Row],[Auswirkung Kosten qual. (vor Maßnahme)]],Tab_Auswirkung[],6,FALSE)\n  ),\n  IF(ISBLANK(Risikoregister[[#This Row],[Auswirkung Termine  qual.  (vor Maßnahme)]]),0,\n    VLOOKUP(Risikoregister[[#This Row],[Auswirkung Termine  qual.  (vor Maßnahme)]],Tab_Auswirkung[],6,FALSE)\n  ),\n  IF(ISBLANK(Risikoregister[[#This Row],[Auswirkung Leistung  qual.  (vor Maßnahme)]]),0,\n    VLOOKUP(Risikoregister[[#This Row],[Auswirkung Leistung  qual.  (vor Maßnahme)]],Tab_Auswirkung[],6,FALSE)\n  ),\n)","v":0},{"$f":"MAX(\n  IF(ISBLANK(Risikoregister[[#This Row],[Auswirkung Kosten (nach Maßnahme)]]),0,\n    VLOOKUP(Risikoregister[[#This Row],[Auswirkung Kosten (nach Maßnahme)]],Tab_Auswirkung[],6,FALSE)\n  ),\n  IF(ISBLANK(Risikoregister[[#This Row],[Auswirkung Termine (nach Maßnahme)]]),0,\n    VLOOKUP(Risikoregister[[#This Row],[Auswirkung Termine (nach Maßnahme)]],Tab_Auswirkung[],6,FALSE)\n  ),\n  IF(ISBLANK(Risikoregister[[#This Row],[Auswirkung Leistung (nach Maßnahme)]]),0,\n    VLOOKUP(Risikoregister[[#This Row],[Auswirkung Leistung (nach Maßnahme)]],Tab_Auswirkung[],6,FALSE)\n  ),\n)","v":0},{"$f":"MAX(\n  IF(ISBLANK(Risikoregister[[#This Row],[Auswirkung Kosten qual. (vor Maßnahme)]]),0,\n    VLOOKUP(Risikoregister[[#This Row],[Auswirkung Kosten qual. (vor Maßnahme)]],Tab_Auswirkung[],5,FALSE)\n  ),\n  IF(ISBLANK(Risikoregister[[#This Row],[Auswirkung Termine  qual.  (vor Maßnahme)]]),0,\n    VLOOKUP(Risikoregister[[#This Row],[Auswirkung Termine  qual.  (vor Maßnahme)]],Tab_Auswirkung[],5,FALSE)\n  ),\n  IF(ISBLANK(Risikoregister[[#This Row],[Auswirkung Leistung  qual.  (vor Maßnahme)]]),0,\n    VLOOKUP(Risikoregister[[#This Row],[Auswirkung Leistung  qual.  (vor Maßnahme)]],Tab_Auswirkung[],5,FALSE)\n  ),\n)","v":0},{"$f":"MAX(\n  IF(ISBLANK(Risikoregister[[#This Row],[Auswirkung Kosten (nach Maßnahme)]]),0,\n    VLOOKUP(Risikoregister[[#This Row],[Auswirkung Kosten (nach Maßnahme)]],Tab_Auswirkung[],5,FALSE)\n  ),\n  IF(ISBLANK(Risikoregister[[#This Row],[Auswirkung Termine (nach Maßnahme)]]),0,\n    VLOOKUP(Risikoregister[[#This Row],[Auswirkung Termine (nach Maßnahme)]],Tab_Auswirkung[],5,FALSE)\n  ),\n  IF(ISBLANK(Risikoregister[[#This Row],[Auswirkung Leistung (nach Maßnahme)]]),0,\n    VLOOKUP(Risikoregister[[#This Row],[Auswirkung Leistung (nach Maßnahme)]],Tab_Auswirkung[],5,FALSE)\n  ),\n)","v":0},{"$f":"IF(Risikoregister[[#This Row],[A. num Portfolio Hilfswert  (vor Maßnahme)]]=0,#N/A,Risikoregister[[#This Row],[A. num Portfolio Hilfswert  (vor Maßnahme)]]+Versatz_Portfolio)","v":{"$error":"#N/A"}},{"$f":"IFERROR(VLOOKUP(Risikoregister[[#This Row],[Wahrscheinlichkeit* (nach Maßnahme)]],Tab_Wahrscheinlichkeit[],5,FALSE)+Versatz_Portfolio,#N/A)","v":{"$error":"#N/A"}},{"$f":"IF(Risikoregister[[#This Row],[A. num Portfolio Hilfswert  (nach Maßnahme)]]=0,#N/A,Risikoregister[[#This Row],[A. num Portfolio Hilfswert  (nach Maßnahme)]]+Versatz_Portfolio)","v":{"$error":"#N/A"}},{"$f":"IF(Risikoregister[[#This Row],[Maßnahmen-Status]]=Planung!$W$9,Risikoregister[[#This Row],[W. num (nach Maßnahme)]],Risikoregister[[#This Row],[W. num Portfolio (vor Maßnahme)]])","v":{"$error":"#N/A"}},{"$f":"IF(Risikoregister[[#This Row],[Maßnahmen-Status]]=Planung!$W$9,Risikoregister[[#This Row],[A. num (nach Maßnahme)2]],Risikoregister[[#This Row],[A. num Portfolio (vor Maßnahme)]])","v":{"$error":"#N/A"}},null,{"$f":"VLOOKUP(Risikoregister[[#This Row],[Zeitraum von]],Zeiträume[],2,FALSE)","v":{"$error":"#N/A"}},{"$f":"IF(ISBLANK(Risikoregister[[#This Row],[Zeitraum bis]]),Risikoregister[[#This Row],[Zeitraum von num]],VLOOKUP(Risikoregister[[#This Row],[Zeitraum bis]],Zeiträume[],2,FALSE))","v":{"$error":"#N/A"}},{"$f":"IFERROR(IF(AND(Risikoregister[[#This Row],[Zeitraum von num]]<=1,1<=Risikoregister[[#This Row],[Zeitraum bis num]]),Risikoregister[[#This Row],[Risikowert (in Punkten)]],0),\"\")","v":""},{"$f":"IFERROR(IF(AND(Risikoregister[[#This Row],[Zeitraum von num]]<=2,2<=Risikoregister[[#This Row],[Zeitraum bis num]]),Risikoregister[[#This Row],[Risikowert (in Punkten)]],0),\"\")","v":""},{"$f":"IFERROR(IF(AND(Risikoregister[[#This Row],[Zeitraum von num]]<=3,3<=Risikoregister[[#This Row],[Zeitraum bis num]]),Risikoregister[[#This Row],[Risikowert (in Punkten)]],0),\"\")","v":""},{"$f":"IFERROR(IF(AND(Risikoregister[[#This Row],[Zeitraum von num]]<=4,4<=Risikoregister[[#This Row],[Zeitraum bis num]]),Risikoregister[[#This Row],[Risikowert (in Punkten)]],0),\"\")","v":""},{"$f":"IFERROR(IF(AND(Risikoregister[[#This Row],[Zeitraum von num]]<=5,5<=Risikoregister[[#This Row],[Zeitraum bis num]]),Risikoregister[[#This Row],[Risikowert (in Punkten)]],0),\"\")","v":""},{"$f":"IFERROR(IF(AND(Risikoregister[[#This Row],[Zeitraum von num]]<=6,6<=Risikoregister[[#This Row],[Zeitraum bis num]]),Risikoregister[[#This Row],[Risikowert (in Punkten)]],0),\"\")","v":""},{"$f":"IFERROR(IF(AND(Risikoregister[[#This Row],[Zeitraum von num]]<=7,7<=Risikoregister[[#This Row],[Zeitraum bis num]]),Risikoregister[[#This Row],[Risikowert (in Punkten)]],0),\"\")","v":""},{"$f":"IFERROR(IF(AND(Risikoregister[[#This Row],[Zeitraum von num]]<=8,8<=Risikoregister[[#This Row],[Zeitraum bis num]]),Risikoregister[[#This Row],[Risikowert (in Punkten)]],0),\"\")","v":""},{"$f":"IFERROR(IF(AND(Risikoregister[[#This Row],[Zeitraum von num]]<=9,9<=Risikoregister[[#This Row],[Zeitraum bis num]]),Risikoregister[[#This Row],[Risikowert (in Punkten)]],0),\"\")","v":""}]
[null,null,null,null,null,null,null,null,null,null,null,null,null,null,null,null,null,null,{"$f":"IFERROR(Risikoregister[[#This Row],[W. num (vor Maßnahme)]]*Risikoregister[[#This Row],[A. num (vor Maßnahme)]],#N/A)","v":{"$error":"#N/A"}},null,null,null,null,null,{"$f":"IFERROR(Risikoregister[[#This Row],[Wahrscheinlichkeit quant. (vor Maßnahme)]]*Risikoregister[[#This Row],[Auswirkung Kosten quant.]],#N/A)","v":0},null,null,null,null,null,null,null,null,null,{"$f":"IFERROR(VLOOKUP(Risikoregister[[#This Row],[Wahrscheinlichkeit* (nach Maßnahme)]],Tab_Wahrscheinlichkeit[],7,0)*Risikoregister[[#This Row],[A. num (nach Maßnahme)]],#N/A)","v":{"$error":"#N/A"}},{"$f":"IFERROR(VLOOKUP(Risikoregister[[#This Row],[Wahrscheinlichkeit* (nach Maßnahme)]],Tab_Wahrscheinlichkeit[],6,0)*Risikoregister[[#This Row],[Auswirkung Kosten quant.]],#N/A)","v":{"$error":"#N/A"}},null,null,null,null,null,null,{"$f":"IFERROR(VLOOKUP(Risikoregister[[#This Row],[Wahrscheinlichkeit qual. (vor Maßnahme)]],Tab_Wahrscheinlichkeit[],7,FALSE),#N/A)","v":{"$error":"#N/A"}},{"$f":"IFERROR(VLOOKUP(Risikoregister[[#This Row],[Wahrscheinlichkeit qual. (vor Maßnahme)]],Tab_Wahrscheinlichkeit[],5,FALSE)+Versatz_Portfolio,#N/A)","v":{"$error":"#N/A"}},{"$f":"MAX(\n  IF(ISBLANK(Risikoregister[[#This Row],[Auswirkung Kosten qual. (vor Maßnahme)]]),0,\n    VLOOKUP(Risikoregister[[#This Row],[Auswirkung Kosten qual. (vor Maßnahme)]],Tab_Auswirkung[],6,FALSE)\n  ),\n  IF(ISBLANK(Risikoregister[[#This Row],[Auswirkung Termine  qual.  (vor Maßnahme)]]),0,\n    VLOOKUP(Risikoregister[[#This Row],[Auswirkung Termine  qual.  (vor Maßnahme)]],Tab_Auswirkung[],6,FALSE)\n  ),\n  IF(ISBLANK(Risikoregister[[#This Row],[Auswirkung Leistung  qual.  (vor Maßnahme)]]),0,\n    VLOOKUP(Risikoregister[[#This Row],[Auswirkung Leistung  qual.  (vor Maßnahme)]],Tab_Auswirkung[],6,FALSE)\n  ),\n)","v":0},{"$f":"MAX(\n  IF(ISBLANK(Risikoregister[[#This Row],[Auswirkung Kosten (nach Maßnahme)]]),0,\n    VLOOKUP(Risikoregister[[#This Row],[Auswirkung Kosten (nach Maßnahme)]],Tab_Auswirkung[],6,FALSE)\n  ),\n  IF(ISBLANK(Risikoregister[[#This Row],[Auswirkung Termine (nach Maßnahme)]]),0,\n    VLOOKUP(Risikoregister[[#This Row],[Auswirkung Termine (nach Maßnahme)]],Tab_Auswirkung[],6,FALSE)\n  ),\n  IF(ISBLANK(Risikoregister[[#This Row],[Auswirkung Leistung (nach Maßnahme)]]),0,\n    VLOOKUP(Risikoregister[[#This Row],[Auswirkung Leistung (nach Maßnahme)]],Tab_Auswirkung[],6,FALSE)\n  ),\n)","v":0},{"$f":"MAX(\n  IF(ISBLANK(Risikoregister[[#This Row],[Auswirkung Kosten qual. (vor Maßnahme)]]),0,\n    VLOOKUP(Risikoregister[[#This Row],[Auswirkung Kosten qual. (vor Maßnahme)]],Tab_Auswirkung[],5,FALSE)\n  ),\n  IF(ISBLANK(Risikoregister[[#This Row],[Auswirkung Termine  qual.  (vor Maßnahme)]]),0,\n    VLOOKUP(Risikoregister[[#This Row],[Auswirkung Termine  qual.  (vor Maßnahme)]],Tab_Auswirkung[],5,FALSE)\n  ),\n  IF(ISBLANK(Risikoregister[[#This Row],[Auswirkung Leistung  qual.  (vor Maßnahme)]]),0,\n    VLOOKUP(Risikoregister[[#This Row],[Auswirkung Leistung  qual.  (vor Maßnahme)]],Tab_Auswirkung[],5,FALSE)\n  ),\n)","v":0},{"$f":"MAX(\n  IF(ISBLANK(Risikoregister[[#This Row],[Auswirkung Kosten (nach Maßnahme)]]),0,\n    VLOOKUP(Risikoregister[[#This Row],[Auswirkung Kosten (nach Maßnahme)]],Tab_Auswirkung[],5,FALSE)\n  ),\n  IF(ISBLANK(Risikoregister[[#This Row],[Auswirkung Termine (nach Maßnahme)]]),0,\n    VLOOKUP(Risikoregister[[#This Row],[Auswirkung Termine (nach Maßnahme)]],Tab_Auswirkung[],5,FALSE)\n  ),\n  IF(ISBLANK(Risikoregister[[#This Row],[Auswirkung Leistung (nach Maßnahme)]]),0,\n    VLOOKUP(Risikoregister[[#This Row],[Auswirkung Leistung (nach Maßnahme)]],Tab_Auswirkung[],5,FALSE)\n  ),\n)","v":0},{"$f":"IF(Risikoregister[[#This Row],[A. num Portfolio Hilfswert  (vor Maßnahme)]]=0,#N/A,Risikoregister[[#This Row],[A. num Portfolio Hilfswert  (vor Maßnahme)]]+Versatz_Portfolio)","v":{"$error":"#N/A"}},{"$f":"IFERROR(VLOOKUP(Risikoregister[[#This Row],[Wahrscheinlichkeit* (nach Maßnahme)]],Tab_Wahrscheinlichkeit[],5,FALSE)+Versatz_Portfolio,#N/A)","v":{"$error":"#N/A"}},{"$f":"IF(Risikoregister[[#This Row],[A. num Portfolio Hilfswert  (nach Maßnahme)]]=0,#N/A,Risikoregister[[#This Row],[A. num Portfolio Hilfswert  (nach Maßnahme)]]+Versatz_Portfolio)","v":{"$error":"#N/A"}},{"$f":"IF(Risikoregister[[#This Row],[Maßnahmen-Status]]=Planung!$W$9,Risikoregister[[#This Row],[W. num (nach Maßnahme)]],Risikoregister[[#This Row],[W. num Portfolio (vor Maßnahme)]])","v":{"$error":"#N/A"}},{"$f":"IF(Risikoregister[[#This Row],[Maßnahmen-Status]]=Planung!$W$9,Risikoregister[[#This Row],[A. num (nach Maßnahme)2]],Risikoregister[[#This Row],[A. num Portfolio (vor Maßnahme)]])","v":{"$error":"#N/A"}},null,{"$f":"VLOOKUP(Risikoregister[[#This Row],[Zeitraum von]],Zeiträume[],2,FALSE)","v":{"$error":"#N/A"}},{"$f":"IF(ISBLANK(Risikoregister[[#This Row],[Zeitraum bis]]),Risikoregister[[#This Row],[Zeitraum von num]],VLOOKUP(Risikoregister[[#This Row],[Zeitraum bis]],Zeiträume[],2,FALSE))","v":{"$error":"#N/A"}},{"$f":"IFERROR(IF(AND(Risikoregister[[#This Row],[Zeitraum von num]]<=1,1<=Risikoregister[[#This Row],[Zeitraum bis num]]),Risikoregister[[#This Row],[Risikowert (in Punkten)]],0),\"\")","v":""},{"$f":"IFERROR(IF(AND(Risikoregister[[#This Row],[Zeitraum von num]]<=2,2<=Risikoregister[[#This Row],[Zeitraum bis num]]),Risikoregister[[#This Row],[Risikowert (in Punkten)]],0),\"\")","v":""},{"$f":"IFERROR(IF(AND(Risikoregister[[#This Row],[Zeitraum von num]]<=3,3<=Risikoregister[[#This Row],[Zeitraum bis num]]),Risikoregister[[#This Row],[Risikowert (in Punkten)]],0),\"\")","v":""},{"$f":"IFERROR(IF(AND(Risikoregister[[#This Row],[Zeitraum von num]]<=4,4<=Risikoregister[[#This Row],[Zeitraum bis num]]),Risikoregister[[#This Row],[Risikowert (in Punkten)]],0),\"\")","v":""},{"$f":"IFERROR(IF(AND(Risikoregister[[#This Row],[Zeitraum von num]]<=5,5<=Risikoregister[[#This Row],[Zeitraum bis num]]),Risikoregister[[#This Row],[Risikowert (in Punkten)]],0),\"\")","v":""},{"$f":"IFERROR(IF(AND(Risikoregister[[#This Row],[Zeitraum von num]]<=6,6<=Risikoregister[[#This Row],[Zeitraum bis num]]),Risikoregister[[#This Row],[Risikowert (in Punkten)]],0),\"\")","v":""},{"$f":"IFERROR(IF(AND(Risikoregister[[#This Row],[Zeitraum von num]]<=7,7<=Risikoregister[[#This Row],[Zeitraum bis num]]),Risikoregister[[#This Row],[Risikowert (in Punkten)]],0),\"\")","v":""},{"$f":"IFERROR(IF(AND(Risikoregister[[#This Row],[Zeitraum von num]]<=8,8<=Risikoregister[[#This Row],[Zeitraum bis num]]),Risikoregister[[#This Row],[Risikowert (in Punkten)]],0),\"\")","v":""},{"$f":"IFERROR(IF(AND(Risikoregister[[#This Row],[Zeitraum von num]]<=9,9<=Risikoregister[[#This Row],[Zeitraum bis num]]),Risikoregister[[#This Row],[Risikowert (in Punkten)]],0),\"\")","v":""}]
["Ergebnis",null,null,null,null,null,null,null,null,null,null,null,null,null,null,null,null,null,null,null,null,null,null,null,null,null,null,null,null,null,null,null,null,null,null,null,null,null,null,null,null,null,null,null,null,null,null,null,null,null,null,null,null,null,null,null,{"$f":"SUBTOTAL(109,Risikoregister[Risikowert Zeitraum 1])","v":110},{"$f":"SUBTOTAL(109,Risikoregister[Risikowert Zeitraum 2])","v":38},{"$f":"SUBTOTAL(109,Risikoregister[Risikowert Zeitraum 3])","v":38},{"$f":"SUBTOTAL(109,Risikoregister[Risikowert Zeitraum 4])","v":98},{"$f":"SUBTOTAL(109,Risikoregister[Risikowert Zeitraum 5])","v":98},{"$f":"SUBTOTAL(109,Risikoregister[Risikowert Zeitraum 6])","v":0},{"$f":"SUBTOTAL(109,Risikoregister[Risikowert Zeitraum 7])","v":0},{"$f":"SUBTOTAL(109,Risikoregister[Risikowert Zeitraum 8])","v":0},{"$f":"SUBTOTAL(109,Risikoregister[Risikowert Zeitraum 9])","v":0}]

{"sheet":"Risikoportfolio","index":1,"n_rows":0,"n_cols":0,"rows_kept":0,"cut":false,"hidden":false,"merged":[]}

{"sheet":"Ganglinien","index":2,"n_rows":0,"n_cols":0,"rows_kept":0,"cut":false,"hidden":false,"merged":[]}

{"sheet":"Planung","index":3,"n_rows":23,"n_cols":44,"rows_kept":23,"cut":false,"hidden":false,"merged":[[3,42,3,43],[4,32,4,37],[3,39,3,40],[3,22,3,23],[3,25,3,26],[3,28,3,37],[2,3,2,4],[3,1,3,7],[3,9,3,14],[3,16,3,17],[3,19,3,20]]}
[]
[]
["HILFE","Auswahlwerte für die Wahrscheinlichkeit. Anzahl soll gerade sein (keine \"Mitte\")","Kurzbeschreibung der Wahrscheinlichkeits-Werte","Definition des Wertebereiches der Wahrscheinlichkeit in Prozent.",null,"Hilfswert für das Risiko-portfolio","%-Wert für die Berechnung mit der Wahrschein-lichkeit","Punkte-Wert für die Berechnung mit der Wahrschein-lichkeit",null,"Auswahlwerte für die Auswirkung. Anzahl soll gerade sein (keine \"Mitte\")","Beschreibung der Auswirkung hinsichtlich der Kosten zur Erklärung","Beschreibung der Auswirkung hinsichtlich der Termine zur Erklärung","Beschreibung der Auswirkung hinsichtlich des Projektergebnisses (Umfang und Qualität) zur Erklärung",null,"Punkte-Wert für die Berechnung mit der Auswirkung",null,"Auswahlwerte für Risikokategorie","weitere Erklärung für die Risikokategorie",null,"Auswahlwerte für Risikostrategie","weitere Erklärung für die Risikostrategie",null,"Auswahlwerte für den Status der Risikomaßnahme","weitere Erklärung für den Maßnahmenstatus",null,"Auswahlwerte für den Status des Risikos","weitere Erklärung für den Risikostatus"]
[null,"Wahrscheinlichkeit",null,null,null,null,null,null,null,"Auswirkung",null,null,null,null,null,null,"Kategorie",null,null,"Strategie",null,null,"Maßnahmenstatus",null,null,"Risikostatus",null,null,"Risikoappetit",null,null,null,null,null,null,null,null,null,null,"Zeiträume Ganglinien",null,null,"Risikoteam"]
[null,"Wert","Beschreibung","von","bis","Port-folio","Berech-nung %","Berech-nung Pkt",null,"Wert","auf Kosten","auf Zeit","auf Ergebnis","Port-folio","Berech-nung Pkt",null,"Wert","Erklärung",null,"Wert","Erklärung",null,"Wert","Erklärung",null,"Wert","Erklärung",null,"Kritikalität","max. Wert","Erklärung",null,"Risikoportfolio mit Toleranzlinien",null,null,null,null,null,null,"Zeitraum-Name","Zeitraum-Nr.2",null,"Person","Spalte2"]
[null,"kaum denkbar (< 10%)","Eintritt des Risikos ist kaum denkbar.",0,0.1,0.5,{"$f":"(E6-D6)/2+D6","v":0.05},1,null,"unbedeutend","Unter 5% des Projektbudgets und unter 0,005% der Kosten des Unternehmensbereichs","unbedeutender Zeitanstieg","kaum wahrnehmbar",0.5,1,null,"TECHNIK: Komplexität der Technologie",null,null,"Bedrohung: vermeiden","Eintritt ausschließen",null,"definiert",null,null,"offen",null,null,"grün",16,null,{"$f":"H11","v":9},{"$f":"AF6*AG$12","v":9},{"$f":"AF6*AH$12","v":18},{"$f":"AF6*AI$12","v":36},{"$f":"AF6*AJ$12","v":54},{"$f":"AF6*AK$12","v":72},{"$f":"AF6*AL$12","v":81},null,"Fahrt Bonn - Dortmund",1,null,"Herr Müller "]
[null,"selten (10 - 35%)","Eintritt des Risikos ist denkbar unter aussergewöhnlichen Umständen.",0.1,0.35,1.5,{"$f":"(E7-D7)/2+D7","v":0.22499999999999998},2,null,"gering","Unter 10% des Projektbudgets und unter 0,01% der Kosten des Unternehmensbereichs","< 5% Zeitanstieg","kleine Bereiche betroffen",1.5,2,null,"TECHNIK: Qualität der Technologie",null,null,"Bedrohung: verlagern","Versichern oder weitergeben",null,"geplant",null,null,"eingetreten",null,null,"gelb",48,null,{"$f":"H10","v":8},8,16,32,48,64,72,null,"Fahrt Dortmund - Bielefeld",2,null,"Frau Müller"]
[null,"unwahrscheinlich (35 - 50%)","Das Risikos kann unter sehr ungünstigen Umständen \neintreten.",0.35,0.5,2.5,0.42499999999999999,4,null,"mäßig","Unter 20% des Projektbudgets und unter 0,02% der Kosten des Unternehmensbereichs","bis 10% Zeitanstieg","größere Bereiche betroffen",2.5,4,null,"TECHNIK: Sonstige",null,null,"Bedrohung: vermindern","Korrektive & präventive Maßnahmen",null,"in Arbeit",null,null,"geschlossen",null,null,"rot",null,null,{"$f":"H9","v":6},6,12,24,36,48,54,null,"Fahrt Bielefeld - Braunschweig",3]
[null,"möglich (50 - 65%)","Das Risiko kann unter ungünstigen Umständen eintreten.",0.5,0.65,3.5,0.57499999999999996,6,null,"erheblich","Unter 35% des Projektbudgets und unter 0,035% der Kosten des Unternehmensbereichs","bis 20% Zeitanstieg","Kernbereich betroffen",3.5,6,null,"ORGANISATION: Unangemessene Zeit-, Kosten-, Inhaltserwartungen",null,null,"Bedrohung: akzeptieren","Zuschläge, Reserven bilden",null,"abgeschlossen","nicht ändern, Status wird in Formel abgefragt!",null,null,null,null,null,null,null,{"$f":"H8","v":4},4,8,16,24,32,36,null,"Fahrt Braunschweig - Magdeburg",4]
[null,"wahrscheinlich (65 - 90%)","Das Risiko wird unter ungünstigen Umständen wahrscheinlich eintreten.",0.65,0.9,4.5,0.77500000000000002,8,null,"hoch","Unter 50% des Projektbudgets und unter 0,05% der Kosten des Unternehmensbereichs","bis 35% Zeitanstieg","Für Sponsor nicht akzeptabel",4.5,8,null,"ORGANISATION: Einsatzmittel (Finanzen, Ressourcen, …)",null,null,"Chance: nutzen","Eintritt sicherstellen",null,"zurückgestellt",null,null,null,null,null,null,null,null,{"$f":"H7","v":2},2,4,8,12,16,18,null,"Fahrt Magdeburg - Berlin",5]
[null,"fast sicher (90 - 100%)","Eintritt des Risikos wird erwartet.",0.9,1,5.5,0.95,9,null,"fatal","Über 50% des Projektbudgets und über 0,05% der Kosten des Unternehmensbereichs","> 35% Zeitanstieg","Bereich ist bis zum Ende des Projektes nutzlos",5.5,9,null,"ORGANISATION: Sonstige",null,null,"Chance: teilen","z. B. Partnerschaften bilden",null,null,null,null,null,null,null,null,null,null,{"$f":"H6","v":1},1,2,4,6,8,9,null,null,6]
[null,null,null,null,null,null,null,null,null,null,null,null,null,null,null,null,"PM: Ziele, Inhalt und Umfang",null,null,"Chance: steigern","Korrektive & präventive Maßnahmen",null,null,null,null,null,null,null,null,null,null,null,{"$f":"O6","v":1},{"$f":"O7","v":2},{"$f":"O8","v":4},{"$f":"O9","v":6},{"$f":"O10","v":8},{"$f":"O11","v":9},null,null,7]
[null,null,null,null,null,null,null,null,null,null,null,null,null,null,null,null,"PM: Kosten",null,null,"Chance: ignorieren",null,null,null,null,null,null,null,null,null,null,null,null,null,null,null,null,null,null,null,null,8]
[null,null,null,null,null,null,null,null,null,null,null,null,null,null,null,null,"PM: Qualität Projektergebnisse",null,null,null,null,null,null,null,null,null,null,null,null,null,null,null,null,null,null,null,null,null,null,null,9]
[null,null,null,null,null,null,null,null,null,null,null,null,null,null,null,null,"PM: Einsatzmittel"]
[null,null,null,null,null,null,null,null,null,null,null,null,null,null,null,null,"PM: Beschaffung"]
[null,null,null,null,null,null,null,null,null,null,null,null,null,null,null,null,"PM: Kommunikation und Stakeholder"]
[null,null,null,null,null,null,null,null,null,null,null,null,null,null,null,null,"PM: Sonstige"]
[null,null,null,null,null,null,null,null,null,null,null,null,null,null,null,null,"EXTERN: Auftragnehmer"]
[null,null,null,null,null,null,null,null,null,null,null,null,null,null,null,null,"EXTERN: Gesetze, Verordnungen"]
[null,null,null,null,null,null,null,null,null,null,null,null,null,null,null,null,"EXTERN: Markt, Wettbewerb"]
[null,null,null,null,null,null,null,null,null,null,null,null,null,null,null,null,"EXTERN: Kunde"]
[null,null,null,null,null,null,null,null,null,null,null,null,null,null,null,null,"EXTERN: Sonstige"]